﻿Body Name,Service Area,Expenses Type,Invoice Payment Date,Transaction Number,Supplier Name,Net Amount
Manchester City Council,Childrens & Education Services,Grant Payments,01-Jun-23,5105874773,CoramBAAF,"£4,916.75"
Manchester City Council,Childrens & Education Services,Foster Payments,01-Jun-23,5105874828,CoramBAAF,"£5,848.77"
Manchester City Council,Manchester Leisure,Subsistence and Conference Expenses,01-Jun-23,5105874803,Keep Britain Tidy,"£4,495.00"
Manchester City Council,Chief Executives,Agency staff provision,01-Jun-23,5105874783,Osborne Richardson,"£2,886.00"
Manchester City Council,Chief Executives,Hire of Equipment,01-Jun-23,5105874797,Jigsaw Systems Limited,"£16,825.00"
Manchester City Council,Chief Executives,Security,01-Jun-23,5105874823,Showsec International Ltd,"£2,011.42"
Manchester City Council,Childrens & Education Services,Professional fees,01-Jun-23,5105874801,Mosscare Housing Ltd,£887.36
Manchester City Council,Corporate Services,Fees,01-Jun-23,1908119423,Jacobs,"£4,323.00"
Manchester City Council,Corporate Services,Fees,01-Jun-23,1908119423,Jacobs,"-£4,323.00"
Manchester City Council,Manchester Leisure,Professional fees,01-Jun-23,5105874774,Experian Limited,£904.35
Manchester City Council,Hospitality + Trading Services,I T Provision,01-Jun-23,5105874770,Civica UK Ltd,"£2,500.00"
Manchester City Council,Childrens & Education Services,Third party payments to other Local Authorities,01-Jun-23,5105874791,Co-Op Academy,"£28,200.00"
Manchester City Council,Childrens & Education Services,Carer Support Payments ,01-Jun-23,5105874789,Stockport Metropolitan Borough,"£1,821,768.00"
Manchester City Council,Regeneration Finance,Hire of Premises,01-Jun-23,5105874804,Bolton Mbc,£792.00
Manchester City Council,Highways Services,Payments to Sub-Contractors,01-Jun-23,5105874589,Fairway Landscapes Ltd,"£5,492.00"
Manchester City Council,Adult Social Care,Third party payments relating to Voluntary Organisations,01-Jun-23,5105874768,Manchester Carers Forum,"£6,359.33"
Manchester City Council,Collection Fund,Levies,01-Jun-23,#,GMCA,"£4,241,509.00"
Manchester City Council,Adult Social Care,Bed & Breakfast Acc,01-Jun-23,5105874805,Redacted Personal Information,"£12,208.00"
Manchester City Council,Corporate Services,Fees,01-Jun-23,1908123379,Newlyn Plc,"£11,734.85"
Manchester City Council,Corporate Services,Fees,01-Jun-23,1908123378,Newlyn Plc,"£18,459.20"
Manchester City Council,Corporate Services,Fees,01-Jun-23,1908123378,Newlyn Plc,"-£18,459.20"
Manchester City Council,Corporate Services,Fees,01-Jun-23,1908123379,Newlyn Plc,"-£11,734.85"
Manchester City Council,Adult Social Care,Equipment,01-Jun-23,5105874590,Drive Devilbiss Healthcare Ltd,"£2,655.00"
Manchester City Council,Hospitality + Trading Services,Legal Fees,01-Jun-23,1908126634,Simpson Millar LLP,"£9,032.00"
Manchester City Council,Highways Services,Professional fees,01-Jun-23,5105874587,Wilde Consultants Ltd,£775.43
Manchester City Council,Highways Services,Professional fees,01-Jun-23,5105874586,Wilde Consultants Ltd,£962.93
Manchester City Council,Highways Services,Professional fees,01-Jun-23,5105874588,Wilde Consultants Ltd,"£1,542.77"
Manchester City Council,Childrens Services,Building Works,01-Jun-23,5105874787,M/cr Creative & Media Academy,"£132,563.86"
Manchester City Council,Manchester Leisure,Grant and subscriptions awarded,01-Jun-23,5105874748,Platt Claremont Residents Assoc,"£1,800.00"
Manchester City Council,Childrens & Education Services,Professional fees,01-Jun-23,5105874771,Alpha Biolaboratories Limited,"£1,020.00"
Manchester City Council,Manchester Leisure,Building Materials for direct delivery,01-Jun-23,5105874754,Biffa Municipal Limited,"£11,593.75"
Manchester City Council,Childrens & Education Services,Grounds Maintenance,01-Jun-23,5105874752,Biffa Municipal Limited,£844.92
Manchester City Council,Manchester Leisure,Reuse credits,01-Jun-23,5105874547,Biffa Municipal Limited,"£4,550.00"
Manchester City Council,Manchester Leisure,Reuse credits,01-Jun-23,5105874545,Biffa Municipal Limited,"£5,166.67"
Manchester City Council,Regeneration Finance,Refuse Collection,01-Jun-23,5105874751,Biffa Municipal Limited,£798.93
Manchester City Council,Manchester Leisure,Professional fees,01-Jun-23,5105874782,Redacted Personal Information,£561.39
Manchester City Council,Childrens & Education Services,Professional fees,01-Jun-23,5105874747,Forensic Testing Service Ltd,£512.50
Manchester City Council,Adult Social Care,Rents,01-Jun-23,5105874759,Housing Social Ltd,"£4,720.00"
Manchester City Council,Adult Social Care,Grant and subscriptions awarded,01-Jun-23,5105874760,On The Out CIC,"£20,985.58"
Manchester City Council,Hospitality + Trading Services,Vehicle Fuel Costs,01-Jun-23,5105874826,Standard Fuels Oils,"£16,671.88"
Manchester City Council,Childrens & Education Services,Professional fees,01-Jun-23,5105874788,SMS Coaching Ltd,"£17,500.00"
Manchester City Council,Adult Social Care,Rents,01-Jun-23,5105874809,Houses4Homes 4U Ltd,"£8,536.00"
Manchester City Council,Childrens & Education Services,Third party payments to other Local Authorities,01-Jun-23,5105874750,Our Lady & St Anselms,"£2,229.00"
Manchester City Council,Adult Social Care,Rents,01-Jun-23,5105874745,M&D Residential Ltd,"£11,153.40"
Manchester City Council,Adult Social Care,Bed & Breakfast Acc,01-Jun-23,5105874650,Parkview Residence,"£43,120.00"
Manchester City Council,Chief Executives,Counsel Costs,01-Jun-23,5105874807,Francis Taylor Building,"£2,000.00"
Manchester City Council,Manchester Leisure,Professional fees,01-Jun-23,5105874812,Moderado Ltd,£900.00
Manchester City Council,Adult Social Care,Rents,01-Jun-23,1908126629,Rennsolutions Ltd,"£2,200.00"
Manchester City Council,Adult Social Care,Rents,01-Jun-23,1908126635,SB Real Estate Ltd,£680.00
Manchester City Council,Insurance Fund,Insurance,01-Jun-23,1908126632,Sedgwick International UK,"£6,210.00"
Manchester City Council,Manchester Leisure,Refuse Collection,02-Jun-23,5105874819,Ramora Ltd,"£1,654.48"
Manchester City Council,Manchester Leisure,Professional fees,02-Jun-23,1908126778,Sph Costing Services Ltd,£918.99
Manchester City Council,Manchester Leisure,Professional fees,02-Jun-23,1908126777,Sph Costing Services Ltd,"£2,820.98"
Manchester City Council,Manchester Leisure,Removal and Storage of Furniture,02-Jun-23,5105874952,Master Moves Ltd,£678.74
Manchester City Council,Regeneration Finance,Removal and Storage of Furniture,02-Jun-23,5105874976,Master Moves Ltd,"£1,076.53"
Manchester City Council,Adult Social Care,Payments for services,02-Jun-23,5105874932,Standwalk Ltd,"£349,370.41"
Manchester City Council,Highways Services,Building Materials for direct delivery,02-Jun-23,5105874956,TARMAC,£984.79
Manchester City Council,Highways Services,Building Materials for direct delivery,02-Jun-23,5105874954,TARMAC,"£1,204.17"
Manchester City Council,Highways Services,Building Materials for direct delivery,02-Jun-23,5105874959,TARMAC,"£1,328.49"
Manchester City Council,Manchester Leisure,Payments to Sub-Contractors,02-Jun-23,5105874975,Arboricultural Services Treework,£800.00
Manchester City Council,Manchester Leisure,Grant and subscriptions awarded,02-Jun-23,5105874848,42nd Street,"-£31,670.00"
Manchester City Council,Manchester Leisure,Grant and subscriptions awarded,02-Jun-23,5105874849,42nd Street,"£31,670.00"
Manchester City Council,Adult Social Care,Third party payments relating to Voluntary Organisations,02-Jun-23,5105874896,Great Places Housing Association,"-£2,290.00"
Manchester City Council,Adult Social Care,Third party payments relating to Voluntary Organisations,02-Jun-23,5105874897,Great Places Housing Association,"£2,290.00"
Manchester City Council,Adult Social Care,Payments for services,02-Jun-23,5105874930,Creative Support Ltd,"£50,810.72"
Manchester City Council,Hospitality + Trading Services,Funeral and coroner related services,02-Jun-23,5105874969,G E Robinson & Co Ltd,"£10,913.44"
Manchester City Council,Highways Services,Building Materials for direct delivery,02-Jun-23,5105875004,Viewprint,"£1,232.00"
Manchester City Council,Chief Executives,I T Provision,02-Jun-23,5105874855,Insight Direct (Uk) Ltd,"£2,559.50"
Manchester City Council,Childrens & Education Services,Licences Purchase,02-Jun-23,5105874859,Insight Direct (Uk) Ltd,£501.04
Manchester City Council,Adult Social Care,Furniture,02-Jun-23,5105874820,Bennett Workplace Solutions Ltd,£550.00
Manchester City Council,Adult Social Care,Bed & Breakfast Acc,02-Jun-23,5105874941,Redacted Personal Information,"£6,360.00"
Manchester City Council,Adult Social Care,Bed & Breakfast Acc,02-Jun-23,5105874880,Redacted Personal Information,"£11,792.00"
Manchester City Council,Adult Social Care,Equipment,02-Jun-23,5105874983,Drive Devilbiss Healthcare Ltd,"£4,479.66"
Manchester City Council,Chief Executives,Counsel Costs,02-Jun-23,1908126641,18 St John Street Chambers,£650.00
Manchester City Council,Chief Executives,Counsel Costs,02-Jun-23,1908126628,18 St John Street Chambers,"£1,730.00"
Manchester City Council,Chief Executives,Counsel Costs,02-Jun-23,1908123397,Redacted Personal Information,£650.00
Manchester City Council,Chief Executives,Counsel Costs,02-Jun-23,1908126622,Kenworthy's Chambers,£600.00
Manchester City Council,Chief Executives,Counsel Costs,02-Jun-23,1908126638,Kenworthy's Chambers,£610.00
Manchester City Council,Chief Executives,Counsel Costs,02-Jun-23,1908126618,Kenworthy's Chambers,£750.00
Manchester City Council,Childrens & Education Services,Professional fees,02-Jun-23,5105874914,BB Heritage Studio Ltd,"£1,575.00"
Manchester City Council,Childrens & Education Services,GRIR,02-Jun-23,5105874940,The Growth Company Limited,"-£2,500.00"
Manchester City Council,Childrens & Education Services,Professional fees,02-Jun-23,5105874939,The Growth Company Limited,"£2,500.00"
Manchester City Council,Manchester Leisure,Equipment,02-Jun-23,5105875003,Willfab Ltd,£500.00
Manchester City Council,Corporate Services,I T Provision,02-Jun-23,5105874903,Bentley Systems International Ltd,"£2,914.00"
Manchester City Council,Childrens & Education Services,Professional fees,02-Jun-23,5105874989,Protocol Education Ltd,£820.00
Manchester City Council,Chief Executives,Payments to Sub-Contractors,02-Jun-23,5105874904,Redacted Personal Information,£847.05
Manchester City Council,Childrens & Education Services,Professional fees,02-Jun-23,5105874953,Redacted Personal Information,£770.00
Manchester City Council,Chief Executives,Counsel Costs,02-Jun-23,1908123394,Central Chambers,£550.00
Manchester City Council,Chief Executives,Counsel Costs,02-Jun-23,1908125514,Central Chambers,£650.00
Manchester City Council,Chief Executives,Counsel Costs,02-Jun-23,1908123396,Central Chambers,£850.00
Manchester City Council,Chief Executives,Counsel Costs,02-Jun-23,1908126626,Central Chambers,"£1,400.00"
Manchester City Council,Adult Social Care,Bed & Breakfast Acc,02-Jun-23,1700151137,HOLIDAY INN P CARD ONLY,"-£1,416.80"
Manchester City Council,Adult Social Care,Grant and subscriptions awarded,02-Jun-23,5105874957,Supporting People In Need,"£22,000.00"
Manchester City Council,Corporate Services,WPS Awards,02-Jun-23,5105874879,Furniture Resource Centre Ltd,£703.32
Manchester City Council,Chief Executives,Agency staff provision,02-Jun-23,5105874991,Osbourne Thomas Ltd,"£10,656.25"
Manchester City Council,Adult Social Care,Payments for services,02-Jun-23,5105875011,Morelife (UK) Ltd,"£12,400.65"
Manchester City Council,Adult Social Care,Payments for services,02-Jun-23,5105875012,Morelife (UK) Ltd,"£13,466.67"
Manchester City Council,Adult Social Care,Payments for services,02-Jun-23,5105875013,Morelife (UK) Ltd,"£13,466.67"
Manchester City Council,Chief Executives,Counsel Costs,02-Jun-23,1908126639,Redacted Personal Information,"£1,010.42"
Manchester City Council,Chief Executives,Counsel Costs,02-Jun-23,1908123395,Redacted Personal Information,"£1,385.42"
Manchester City Council,Regeneration Finance,Contract Cleaning External,02-Jun-23,5105874971,Westgrove Support Services Ltd,"£1,023.46"
Manchester City Council,Manchester Leisure,Compensation Payments,02-Jun-23,1908126827,Bond Turner Solicitors,"£2,159.61"
Manchester City Council,Childrens & Education Services,Transport Coach Hire,02-Jun-23,5105874874,Britannia Minibuses Ltd,"-£1,700.00"
Manchester City Council,Childrens & Education Services,Transport Coach Hire,02-Jun-23,5105874873,Britannia Minibuses Ltd,"-£1,530.00"
Manchester City Council,Childrens & Education Services,Transport Taxis,02-Jun-23,5105874875,Britannia Minibuses Ltd,"£1,530.00"
Manchester City Council,Childrens & Education Services,Transport Taxis,02-Jun-23,5105874876,Britannia Minibuses Ltd,"£1,700.00"
Manchester City Council,Adult Social Care,Bed & Breakfast Acc,02-Jun-23,5105875000,247Hotel.Com,"£2,416.66"
Manchester City Council,Adult Social Care,Bed & Breakfast Acc,02-Jun-23,5105874986,VSP BEAUCLIFFE LTD,"£105,060.00"
Manchester City Council,Adult Social Care,Bed & Breakfast Acc,02-Jun-23,5105874936,VSP BEAUCLIFFE LTD,"£153,802.00"
Manchester City Council,Childrens & Education Services,Carer Support Payments ,02-Jun-23,5105874994,Care Solutions Recruitment,"£9,793.30"
Manchester City Council,Childrens & Education Services,Carer Support Payments ,02-Jun-23,5105875002,Care Solutions Recruitment,"£9,793.30"
Manchester City Council,Adult Social Care,"Consumable items eg Toilet rolls, soap etc",02-Jun-23,1700151170,ALLPAY *PARKWAY GREEN HOU,-£511.92
Manchester City Council,Chief Executives,Professional fees,02-Jun-23,1908125511,APL Packaging Ltd,£583.30
Manchester City Council,Chief Executives,Professional fees,02-Jun-23,1908126604,Expert Psychology Consultancy Ltd,£936.00
Manchester City Council,Chief Executives,Counsel Costs,02-Jun-23,1908126631,Four Paper Buildings,£750.00
Manchester City Council,Manchester Leisure,Library Materials Acquisition,02-Jun-23,1700151084,HACHETTE UK DISTRIBUTI,"-£1,623.37"
Manchester City Council,Manchester Leisure,Library Materials Acquisition,02-Jun-23,1700151148,HACHETTE UK DISTRIBUTI,"-£1,623.37"
Manchester City Council,Housing Revenue Account,Professional fees,02-Jun-23,1908069977,Redacted Personal Information,"£15,500.00"
Manchester City Council,Adult Social Care,Bed & Breakfast Acc,02-Jun-23,1700151089,MOTEL ONE COM MAN ROYA,"-£2,680.00"
Manchester City Council,Chief Executives,Counsel Costs,02-Jun-23,1908126640,Redacted Personal Information,£800.00
Manchester City Council,Childrens & Education Services,Equipment,02-Jun-23,1700151120,OAK FURNITURELAND GROUP L,-£769.98
Manchester City Council,Manchester Leisure,"Consumable items eg Toilet rolls, soap etc",02-Jun-23,1700151179,PMC ELECTRICS LIMI,-£666.00
Manchester City Council,Regeneration Finance,Training and Development,02-Jun-23,1908125435,The University of Liverpool,"£4,950.00"
Manchester City Council,Highways Services,Compensation Payments,02-Jun-23,1908126826,U UK Law Ltd T/A Harris & Co,"£4,000.00"
Manchester City Council,Adult Social Care,"Consumable items eg Toilet rolls, soap etc",02-Jun-23,1700151169,WWW.RMGLTD.CO.UK,-£627.03
Manchester City Council,Manchester Leisure,Cleaning Equipment and Materials,05-Jun-23,1908127451,PHS Group,£585.00
Manchester City Council,Regeneration Finance,Cleaning Equipment and Materials,05-Jun-23,1908127458,PHS Group,£720.00
Manchester City Council,Chief Executives,Agency staff provision,05-Jun-23,5105875036,Solace In Business Ltd,"£18,810.00"
Manchester City Council,Housing General Fund,Works and associated costs for Land and Buildings,05-Jun-23,5105875142,Wates Construction Ltd,"-£145,623.21"
Manchester City Council,Housing General Fund,Works and associated costs for Land and Buildings,05-Jun-23,5105875142,Wates Construction Ltd,"-£7,619.41"
Manchester City Council,Housing General Fund,Works and associated costs for Land and Buildings,05-Jun-23,5105875143,Wates Construction Ltd,"£7,619.41"
Manchester City Council,Housing General Fund,Works and associated costs for Land and Buildings,05-Jun-23,5105875143,Wates Construction Ltd,"£145,623.21"
Manchester City Council,Manchester Leisure,Contract Cleaning External,05-Jun-23,5105875191,Clearview Event Services Limited,"£17,119.60"
Manchester City Council,Hospitality + Trading Services,Hire of Machinery,05-Jun-23,5105875111,R & M Developments Ltd,£858.80
Manchester City Council,Hospitality + Trading Services,Hire of Machinery,05-Jun-23,5105875112,R & M Developments Ltd,£858.80
Manchester City Council,Manchester Leisure,Professional fees,05-Jun-23,1908126810,Sph Costing Services Ltd,"£2,366.60"
Manchester City Council,Housing Revenue Account,Works and associated costs for Land and Buildings,05-Jun-23,5105875141,J Greenwood (Builders) Limited,"£8,149.58"
Manchester City Council,Housing Revenue Account,Works and associated costs for Land and Buildings,05-Jun-23,5105875141,J Greenwood (Builders) Limited,"£67,134.26"
Manchester City Council,Childrens & Education Services,Professional fees,05-Jun-23,5105874948,Mosscare Housing Ltd,"£1,058.90"
Manchester City Council,Manchester Leisure,Security,05-Jun-23,5105874885,JLA Ltd,£517.00
Manchester City Council,Manchester Leisure,Security,05-Jun-23,5105875029,JLA Ltd,£570.00
Manchester City Council,Manchester Leisure,Security,05-Jun-23,5105874889,JLA Ltd,£855.00
Manchester City Council,Manchester Leisure,Security,05-Jun-23,5105875023,JLA Ltd,£855.00
Manchester City Council,Manchester Leisure,Payments to Sub-Contractors,05-Jun-23,5105874974,Arboricultural Services Treework,"£1,200.00"
Manchester City Council,Adult Social Care,"Consumable items eg Toilet rolls, soap etc",05-Jun-23,5105875058,Redacted Personal Information,"£3,009.19"
Manchester City Council,Chief Executives,Agency staff provision,05-Jun-23,5105875027,Deekay Technical Recruitment Ltd,"£11,037.46"
Manchester City Council,Adult Social Care,Training and Development,05-Jun-23,5105875093,Greater Manchester Immigration Aid,£700.00
Manchester City Council,Regeneration Finance,Professional fees,05-Jun-23,5105875104,H.M. Land Registry,"£1,544.00"
Manchester City Council,Childrens & Education Services,Professional fees,05-Jun-23,5105875006,GMCA,"£52,000.00"
Manchester City Council,Regeneration Finance,Grounds Maintenance,05-Jun-23,5105875074,Countrywide Grounds Maintenance Ltd,"£4,250.00"
Manchester City Council,Childrens & Education Services,Rents,05-Jun-23,5105875077,Diocese of Salford,"£5,564.75"
Manchester City Council,Childrens & Education Services,Professional fees,05-Jun-23,5105875209,Museum of Science & Industry,"£2,000.00"
Manchester City Council,Childrens & Education Services,Rates,05-Jun-23,5105875128,Brighter Beginnings (Newton Heath),"£2,014.96"
Manchester City Council,Adult Social Care,Telecoms Equip,05-Jun-23,5105875131,Voice Connect Ltd,"£2,747.70"
Manchester City Council,Housing Revenue Account,Works and associated costs for Land and Buildings,05-Jun-23,5105875206,Jacobs UK Ltd,"£2,300.00"
Manchester City Council,Chief Executives,Legal Fees,05-Jun-23,5105875108,Weightmans LLP Solicitors,"£1,279.75"
Manchester City Council,Chief Executives,Legal Fees,05-Jun-23,5105875109,Weightmans LLP Solicitors,"£2,543.75"
Manchester City Council,Highways Services,Building Materials for direct delivery,05-Jun-23,5105875200,Ecomix Concrete Ltd,"£1,200.00"
Manchester City Council,Manchester Leisure,Grant and subscriptions awarded,05-Jun-23,5105875094,Manchester Youth Zone,£700.00
Manchester City Council,Adult Social Care,Third party payments relating to Voluntary Organisations,05-Jun-23,5105875110,Change Grow Live,"£117,434.79"
Manchester City Council,Highways Services,Purchase of stores for re-distribution,05-Jun-23,5105875197,Benchmark Building Supplies Ltd,"£1,062.52"
Manchester City Council,Highways Services,Purchase of stores for re-distribution,05-Jun-23,5105875198,Benchmark Building Supplies Ltd,"£1,256.64"
Manchester City Council,Corporate Services,Gym Membership,05-Jun-23,1908128151,Greenwich Leisure Limited,"£2,016.00"
Manchester City Council,Manchester Leisure,Responsive Repairs Work,05-Jun-23,5105875043,EQUANS Regeneration Limited,"£14,491.20"
Manchester City Council,Manchester Leisure,Responsive Repairs Work,05-Jun-23,5105875044,EQUANS Regeneration Limited,"£20,441.29"
Manchester City Council,Manchester Leisure,Responsive Repairs Work,05-Jun-23,5105875049,EQUANS Regeneration Limited,"£35,187.37"
Manchester City Council,Manchester Leisure,Responsive Repairs Work,05-Jun-23,5105875062,EQUANS Regeneration Limited,"£35,187.37"
Manchester City Council,Manchester Leisure,Responsive Repairs Work,05-Jun-23,5105875010,EQUANS Regeneration Limited,"£45,363.40"
Manchester City Council,Manchester Leisure,Responsive Repairs Work,05-Jun-23,5105875042,EQUANS Regeneration Limited,"£83,514.66"
Manchester City Council,Manchester Leisure,Responsive Repairs Work,05-Jun-23,5105875041,EQUANS Regeneration Limited,"£90,236.57"
Manchester City Council,Manchester Leisure,Responsive Repairs Work,05-Jun-23,5105875046,EQUANS Regeneration Limited,"£91,677.06"
Manchester City Council,Manchester Leisure,Responsive Repairs Work,05-Jun-23,5105875061,EQUANS Regeneration Limited,"£91,677.06"
Manchester City Council,Manchester Leisure,Responsive Repairs Work,05-Jun-23,5105875009,EQUANS Regeneration Limited,"£138,771.19"
Manchester City Council,Manchester Leisure,Responsive Repairs Work,05-Jun-23,5105875063,EQUANS Regeneration Limited,"£217,296.66"
Manchester City Council,Manchester Leisure,Responsive Repairs Work,05-Jun-23,5105875045,EQUANS Regeneration Limited,"£217,307.14"
Manchester City Council,Manchester Leisure,Responsive Repairs Work,05-Jun-23,5105875048,EQUANS Regeneration Limited,"£298,454.12"
Manchester City Council,Manchester Leisure,Responsive Repairs Work,05-Jun-23,5105875047,EQUANS Regeneration Limited,"£552,170.14"
Manchester City Council,Manchester Leisure,Responsive Repairs Work,05-Jun-23,5105875050,EQUANS Regeneration Limited,"£552,170.14"
Manchester City Council,Housing Revenue Account,Council Dwelling Adaptations,05-Jun-23,5105875073,Solargen Energy Ltd,"£83,628.27"
Manchester City Council,Adult Social Care,Stationery,05-Jun-23,5105875167,Banner Group Limited,£539.60
Manchester City Council,Adult Social Care,Rents,05-Jun-23,5105874784,K L Properties,"£15,667.00"
Manchester City Council,Adult Social Care,Rents,05-Jun-23,5105875152,Housing Social Ltd,"£4,720.00"
Manchester City Council,Adult Social Care,Rents,05-Jun-23,5105875153,Housing Social Ltd,"£4,720.00"
Manchester City Council,Adult Social Care,Bed & Breakfast Acc,05-Jun-23,5105875202,Redacted Personal Information,"£2,325.00"
Manchester City Council,Regeneration Finance,Cleaning Equipment and Materials,05-Jun-23,5105875066,Arrow County Supplies,"-£1,384.84"
Manchester City Council,Corporate Services,External repairs and maintenance for buildings,05-Jun-23,5105875149,EQUANS Services Limited,£522.50
Manchester City Council,Chief Executives,Printing,05-Jun-23,5105875054,Geiger Limited,"£4,050.00"
Manchester City Council,Chief Executives,Counsel Costs,05-Jun-23,1908126853,Central Chambers,£500.00
Manchester City Council,Chief Executives,Counsel Costs,05-Jun-23,1908126801,Central Chambers,£550.00
Manchester City Council,Chief Executives,Counsel Costs,05-Jun-23,1908126851,Central Chambers,£650.00
Manchester City Council,Childrens & Education Services,I T Provision,05-Jun-23,5105875040,Twinkl,"£2,049.90"
Manchester City Council,Manchester Leisure,Grant and subscriptions awarded,05-Jun-23,5105875075,Burnage Foodbank,"£3,183.34"
Manchester City Council,Childrens & Education Services,Professional fees,05-Jun-23,5105875146,Xais Asset Management Ltd,"£15,375.00"
Manchester City Council,Adult Social Care,Bed & Breakfast Acc,05-Jun-23,5105875154,Medlock House Ltd,"£8,183.00"
Manchester City Council,Manchester Leisure,I T Provision,05-Jun-23,5105875139,Arena Group Ltd,£865.01
Manchester City Council,Manchester Leisure,Building Materials for direct delivery,05-Jun-23,5105874999,My Sports Turf,"£1,500.00"
Manchester City Council,Childrens & Education Services,Professional fees,05-Jun-23,5105875132,The Movez Movement,"£2,697.50"
Manchester City Council,Childrens & Education Services,Professional fees,05-Jun-23,5105875207,Beate Wagner Associates Ltd,£600.00
Manchester City Council,Childrens & Education Services,General Payments not otherwise categorised,05-Jun-23,1908126804,Redacted Personal Information,"£15,123.88"
Manchester City Council,Corporate Services,Professional fees,05-Jun-23,1908119466,Clear Presentations Ltd,"£1,500.00"
Manchester City Council,Housing General Fund,Building Works,05-Jun-23,1908126502,Redacted Personal Information,"£11,109.93"
Manchester City Council,Corporate Services,Subsistence and Conference Expenses,05-Jun-23,1908123374,East Riding of Yorkshire Council,"£2,000.00"
Manchester City Council,Manchester Leisure,Special Event,05-Jun-23,1908126656,Education Policy Institute,"£6,000.00"
Manchester City Council,Corporate Services,Misc Insrnce Premium,05-Jun-23,1908119210,Institute of Risk Management,£800.00
Manchester City Council,Adult Social Care,Rents,05-Jun-23,1908128195,Redacted Personal Information,"£2,800.00"
Manchester City Council,Manchester Leisure,Special Event,05-Jun-23,1908126658,UK Onward Thinktank Ltd,"£8,750.00"
Manchester City Council,Adult Social Care,Personal needs of client,06-Jun-23,5105874785,Drive Devilbiss Sidhil Ltd,"£28,000.00"
Manchester City Council,Adult Social Care,Personal needs of client,06-Jun-23,5105874786,Drive Devilbiss Sidhil Ltd,"£28,000.00"
Manchester City Council,Regeneration Finance,Grant Payments,06-Jun-23,5105875318,Haymarket Publishing Services Ltd,"£13,000.00"
Manchester City Council,Chief Executives,Works and associated costs for Land and Buildings,06-Jun-23,5105874951,Briggs Equipment UK Limited,"£15,611.11"
Manchester City Council,Hospitality + Trading Services,Vehicle Hire Costs,06-Jun-23,5105875222,F.R.Sharrock Ltd,"£4,880.00"
Manchester City Council,Adult Social Care,Rents,06-Jun-23,5105875380,B & A Properties,"£44,478.56"
Manchester City Council,Corporate Services,Transport Taxis,06-Jun-23,1908128454,Mantax Radio Taxis Ltd,"£24,335.64"
Manchester City Council,Corporate Services,Transport Taxis,06-Jun-23,1908128284,Mantax Radio Taxis Ltd,"£37,210.39"
Manchester City Council,Childrens & Education Services,Transport Taxis,06-Jun-23,1908128306,Mantax Radio Taxis Ltd,"£39,416.01"
Manchester City Council,Childrens & Education Services,Transport Taxis,06-Jun-23,1908128305,Mantax Radio Taxis Ltd,"£55,865.60"
Manchester City Council,Childrens & Education Services,Transport Taxis,06-Jun-23,1908128304,Mantax Radio Taxis Ltd,"£58,089.15"
Manchester City Council,Chief Executives,Agency staff provision,06-Jun-23,5105875265,Michael Page International,"£7,000.00"
Manchester City Council,Highways Services,Professional fees,06-Jun-23,5105875379,Mace Ltd,"-£7,269.00"
Manchester City Council,Highways Services,Professional fees,06-Jun-23,5105875309,Mace Ltd,"£7,269.00"
Manchester City Council,Chief Executives,General Office expenses,06-Jun-23,1908128249,Millennium Translations Ltd,"£2,734.68"
Manchester City Council,Manchester Leisure,Professional fees,06-Jun-23,5105875320,Mosscare Housing Ltd,"£5,500.00"
Manchester City Council,Environment and Operations,Construction Works,06-Jun-23,5105875275,Vodafone (Ex C&W),"£2,500.00"
Manchester City Council,Corporate Services,Travel Season TLS,06-Jun-23,5105875248,Transport for Greater Manchester,£608.40
Manchester City Council,Childrens & Education Services,Internal Repairs and Maintenance for buildings,06-Jun-23,5105875349,Manchester School Services Limited,£849.18
Manchester City Council,Childrens & Education Services,Private Finance and Public Private partnership initiatives,06-Jun-23,5105875305,Manchester School Services Limited,"£457,087.67"
Manchester City Council,Manchester Leisure,Works and associated costs for Land and Buildings,06-Jun-23,5105875391,Kier Construction North and,"£515,169.87"
Manchester City Council,Manchester Leisure,Works and associated costs for Land and Buildings,06-Jun-23,5105875391,Kier Construction North and,"£1,242,367.83"
Manchester City Council,Adult Social Care,Grant and subscriptions awarded,06-Jun-23,5105875369,The Booth Centre,"£10,121.08"
Manchester City Council,Manchester Leisure,Equipment,06-Jun-23,5105875347,Sovereign Design Play Systems,"-£2,623.55"
Manchester City Council,Manchester Leisure,Equipment,06-Jun-23,5105875371,Sovereign Design Play Systems,"£2,623.55"
Manchester City Council,Adult Social Care,Third party payments relating to Voluntary Organisations,06-Jun-23,5105875360,Manchester Carers Forum,"£24,500.00"
Manchester City Council,Childrens & Education Services,Third party payments to other Local Authorities,06-Jun-23,5105875292,Kings Road Primary School,"£3,256.00"
Manchester City Council,Childrens & Education Services,Contract Cleaning External,06-Jun-23,5105875225,Family Action,"£1,509.90"
Manchester City Council,Childrens & Education Services,Contract Cleaning External,06-Jun-23,5105875226,Family Action,"£1,514.70"
Manchester City Council,Chief Executives,Agency staff provision,06-Jun-23,5105875272,Capita Resourcing Limited,"£8,325.00"
Manchester City Council,Adult Social Care,Counsel Costs,06-Jun-23,1908126831,Gray's Inn Square Chambers Ltd,"£1,250.00"
Manchester City Council,Adult Social Care,Counsel Costs,06-Jun-23,1908126844,Gray's Inn Square Chambers Ltd,"£1,500.00"
Manchester City Council,Adult Social Care,Counsel Costs,06-Jun-23,1908128170,Gray's Inn Square Chambers Ltd,"£3,201.39"
Manchester City Council,Chief Executives,Counsel Costs,06-Jun-23,1908128164,18 St John Street Chambers,£650.00
Manchester City Council,Chief Executives,Counsel Costs,06-Jun-23,1908127394,18 St John Street Chambers,£710.00
Manchester City Council,Chief Executives,Counsel Costs,06-Jun-23,1908127398,18 St John Street Chambers,£950.00
Manchester City Council,Adult Social Care,Professional fees,06-Jun-23,5105875214,The Proud Trust,"£10,000.00"
Manchester City Council,Manchester Leisure,Mobilephone Charges,06-Jun-23,5105875398,O2 (UK) Ltd,"£1,991.34"
Manchester City Council,Childrens & Education Services,Third party payments to other Local Authorities,06-Jun-23,5105875316,Holy Family Catholic Primary Sch,"£4,351.00"
Manchester City Council,Manchester Leisure,Grant and subscriptions awarded,06-Jun-23,5105875220,Greater Manchester Youth,"£15,000.00"
Manchester City Council,Adult Social Care,Rents,06-Jun-23,5105875344,Accommodation Links Ltd,"£89,369.14"
Manchester City Council,Chief Executives,Works and associated costs for Land and Buildings,06-Jun-23,5105875259,Turner & Townsend Project,"£10,260.00"
Manchester City Council,Adult Social Care,Grant and subscriptions awarded,06-Jun-23,5105875335,Manchester Womens Aid,"£2,916.66"
Manchester City Council,Adult Social Care,Rents,06-Jun-23,5105875365,United Property Management Ltd,"£5,426.00"
Manchester City Council,GMIST (Greater Mcr Integrated),Professional fees,06-Jun-23,5105875342,DeepStore,"£4,358.40"
Manchester City Council,Chief Executives,Agency staff provision,06-Jun-23,5105875213,Ashberry Recruitment Ltd,"£1,574.64"
Manchester City Council,Chief Executives,Agency staff provision,06-Jun-23,5105875212,Ashberry Recruitment Ltd,"£1,968.30"
Manchester City Council,Childrens & Education Services,Third party payments to other Local Authorities,06-Jun-23,5105875317,Worthington Primary School,"£3,256.00"
Manchester City Council,Chief Executives,Works and associated costs for Land and Buildings,06-Jun-23,5105875337,Planit,"£23,750.00"
Manchester City Council,Hospitality + Trading Services,Vehicle Hire Costs,06-Jun-23,5105875140,Fleet Dynamic Consultancy Ltd,£806.22
Manchester City Council,Chief Executives,Counsel Costs,06-Jun-23,1908126881,Kenworthy's Chambers,£750.00
Manchester City Council,Adult Social Care,Third party payments to Health Authority,06-Jun-23,5105875264,NHS Supply Chain,£525.00
Manchester City Council,Adult Social Care,Third party payments to Health Authority,06-Jun-23,1908125471,Liverpool University Hospitals,£686.00
Manchester City Council,Chief Executives,Training and Development,06-Jun-23,5105875096,Softcat,"£10,250.00"
Manchester City Council,Chief Executives,Vehicle Plant Furniture and Equipment,06-Jun-23,5105875098,Softcat,"£200,053.53"
Manchester City Council,Childrens & Education Services,Professional fees,06-Jun-23,5105875311,Aareon UK Ltd,"£2,600.00"
Manchester City Council,Chief Executives,Agency staff provision,06-Jun-23,5105875271,Buckingham Futures Limited,"£4,706.40"
Manchester City Council,Manchester Leisure,Goods purchased for resale in Council outlets,06-Jun-23,5105875273,The School of Life,"£1,145.67"
Manchester City Council,Childrens & Education Services,Third party payments to other Local Authorities,06-Jun-23,5105875274,Pictor Academy,"£73,824.12"
Manchester City Council,Chief Executives,Professional fees,06-Jun-23,1908128162,Forensic Testing Service Ltd,£571.05
Manchester City Council,Chief Executives,Payments to Sub-Contractors,06-Jun-23,5105875285,Redacted Personal Information,£509.30
Manchester City Council,Chief Executives,Payments to Sub-Contractors,06-Jun-23,5105875237,Redacted Personal Information,£563.25
Manchester City Council,Chief Executives,Payments to Sub-Contractors,06-Jun-23,5105875242,Yousef Safari,£581.83
Manchester City Council,Childrens & Education Services,Third party payments to other Local Authorities,06-Jun-23,5105875314,St Anne’s RC Voluntary Academy,"£9,571.00"
Manchester City Council,Childrens & Education Services,Third party payments to other Local Authorities,06-Jun-23,5105875327,St Anne’s RC Voluntary Academy,"£11,788.00"
Manchester City Council,Adult Social Care,Rents,06-Jun-23,5105875221,Eeven Homes Ltd.,"£19,048.00"
Manchester City Council,Adult Social Care,Funeral and coroner related services,06-Jun-23,5105875350,Greater Manchester Funeral Service,"£1,235.00"
Manchester City Council,Adult Social Care,Funeral and coroner related services,06-Jun-23,5105875357,Greater Manchester Funeral Service,"£1,490.00"
Manchester City Council,Adult Social Care,Funeral and coroner related services,06-Jun-23,5105875358,Greater Manchester Funeral Service,"£2,653.00"
Manchester City Council,Adult Social Care,Funeral and coroner related services,06-Jun-23,5105875333,Greater Manchester Funeral Service,"£4,058.00"
Manchester City Council,Adult Social Care,Funeral and coroner related services,06-Jun-23,5105875315,Greater Manchester Funeral Service,"£1,490.00"
Manchester City Council,Adult Social Care,Funeral and coroner related services,06-Jun-23,5105875334,Greater Manchester Funeral Service,"£1,490.00"
Manchester City Council,Childrens & Education Services,Third party payments to other Local Authorities,06-Jun-23,5105875348,Whitegate End,"£6,512.00"
Manchester City Council,Chief Executives,Counsel Costs,06-Jun-23,1908128161,Central Chambers,£600.00
Manchester City Council,Chief Executives,Counsel Costs,06-Jun-23,1908127409,Central Chambers,£650.00
Manchester City Council,Chief Executives,Counsel Costs,06-Jun-23,1908128163,Central Chambers,£650.00
Manchester City Council,Chief Executives,Counsel Costs,06-Jun-23,1908128165,Central Chambers,£650.00
Manchester City Council,Chief Executives,Counsel Costs,06-Jun-23,1908128186,Central Chambers,£650.00
Manchester City Council,Chief Executives,Counsel Costs,06-Jun-23,1908126885,Central Chambers,£700.00
Manchester City Council,Chief Executives,Counsel Costs,06-Jun-23,1908128172,Central Chambers,£750.00
Manchester City Council,Chief Executives,Counsel Costs,06-Jun-23,1908128150,Central Chambers,£850.00
Manchester City Council,Chief Executives,Counsel Costs,06-Jun-23,1908127387,Central Chambers,"£4,000.00"
Manchester City Council,Manchester Leisure,Cash Collection,06-Jun-23,5105875278,APCOA PARKING UK Ltd,"£23,929.19"
Manchester City Council,Manchester Leisure,Cash Collection,06-Jun-23,5105875279,APCOA PARKING UK Ltd,"£24,192.17"
Manchester City Council,Manchester Leisure,Cash Collection,06-Jun-23,5105875276,APCOA PARKING UK Ltd,"£38,597.91"
Manchester City Council,Adult Social Care,Bed & Breakfast Acc,06-Jun-23,1908128527,HOLIDAY INN P CARD ONLY,"£1,416.80"
Manchester City Council,Adult Social Care,Professional fees,06-Jun-23,5105875217,Prepaid Financial Services Limited,"£1,386.15"
Manchester City Council,Childrens & Education Services,Professional fees,06-Jun-23,5105875384,Prospero Teaching,£500.00
Manchester City Council,Corporate Services,WPS Awards,06-Jun-23,5105875253,Furniture Resource Centre Ltd,£577.31
Manchester City Council,Corporate Services,WPS Awards,06-Jun-23,5105875257,Furniture Resource Centre Ltd,£577.31
Manchester City Council,Corporate Services,WPS Awards,06-Jun-23,5105875258,Furniture Resource Centre Ltd,£880.71
Manchester City Council,Corporate Services,WPS Awards,06-Jun-23,5105875245,Furniture Resource Centre Ltd,£952.68
Manchester City Council,Corporate Services,WPS Awards,06-Jun-23,5105875296,Furniture Resource Centre Ltd,"£1,198.43"
Manchester City Council,Childrens & Education Services,Transport Coach Hire,06-Jun-23,5105875238,PDR Travel Ltd,"£1,750.00"
Manchester City Council,Adult Social Care,Bed & Breakfast Acc,06-Jun-23,5105875249,Medlock House Ltd,"£7,644.00"
Manchester City Council,Chief Executives,Expenditure re Internal Trading Ordered Externally,06-Jun-23,5105875269,Civica Election Services,"£185,500.19"
Manchester City Council,Childrens & Education Services,Childrens Allowances,06-Jun-23,1908126660,Barclays Debit Card - Remand,"£3,000.00"
Manchester City Council,Regeneration Finance,Grant and subscriptions awarded,06-Jun-23,5105875373,Diverse and Equal,"£18,000.00"
Manchester City Council,Housing Revenue Account,Council Dwelling Adaptations,06-Jun-23,5105875270,Fieldway Supplies Ltd,"£14,520.98"
Manchester City Council,Adult Social Care,Rents,06-Jun-23,5105875157,M&D Residential Ltd,"£12,093.40"
Manchester City Council,Adult Social Care,Rents,06-Jun-23,5105875156,M&D Residential Ltd,"£12,330.00"
Manchester City Council,Childrens Services,Building Works,06-Jun-23,5105875341,Co-op Academy Belle Vue,"£25,103.18"
Manchester City Council,Childrens & Education Services,Third party payments to other Local Authorities,06-Jun-23,5105875338,Oakgrove School,"£4,652.50"
Manchester City Council,Chief Executives,Works and associated costs for Land and Buildings,06-Jun-23,5105875216,WSP UK Limited,"£7,251.25"
Manchester City Council,Adult Social Care,Personal needs of client,06-Jun-23,5105875354,Schuchmann LLP,"£2,890.00"
Manchester City Council,Manchester Leisure,I T Provision,06-Jun-23,5105875240,Cleardata,£723.25
Manchester City Council,Manchester Leisure,I T Provision,06-Jun-23,5105875241,Cleardata,£723.25
Manchester City Council,Manchester Leisure,Rents,06-Jun-23,1908126880,Mason Owen Property,"£8,250.00"
Manchester City Council,Manchester Leisure,Other Allowances,06-Jun-23,1908126790,Tusker Direct,"£5,800.14"
Manchester City Council,Manchester Leisure,Goods purchased for resale in Council outlets,06-Jun-23,5105875120,The Sculpture Design Studio Ltd,£610.00
Manchester City Council,Adult Social Care,Counsel Costs,06-Jun-23,1908126837,Trinity Chambers,£850.00
Manchester City Council,Adult Social Care,Carer Support Payments ,06-Jun-23,5105875385,Goldcrest Care Services Ltd,"£1,291.50"
Manchester City Council,Childrens & Education Services,Grant Payments,06-Jun-23,1908128424,Paypoint,"£9,800.89"
Manchester City Council,Childrens & Education Services,Third party payments to other Local Authorities,06-Jun-23,5105875359,St Thomas of Canterbury,"£20,489.00"
Manchester City Council,Chief Executives,Payments to Sub-Contractors,06-Jun-23,5105875394,Redacted Personal Information,£600.00
Manchester City Council,Regeneration Finance,Grant and subscriptions awarded,06-Jun-23,5105875291,Factory of Creativity,"£2,344.80"
Manchester City Council,Adult Social Care,Rents,06-Jun-23,5105875366,NWA Housing Ltd,"£2,490.18"
Manchester City Council,Adult Social Care,Rents,06-Jun-23,5105875155,Rtech Group Limited,"£6,712.50"
Manchester City Council,Adult Social Care,Rents,06-Jun-23,5105875229,Devon Homes,"£2,250.00"
Manchester City Council,Adult Social Care,Furniture,06-Jun-23,5105875378,Devon Homes,"£3,750.00"
Manchester City Council,Adult Social Care,"Consumable items eg Toilet rolls, soap etc",06-Jun-23,1908128560,ALLPAY *PARKWAY GREEN HOU,£511.92
Manchester City Council,Corporate Services,Compensation Payments,06-Jun-23,1908128856,Redacted Personal Information,"£1,500.00"
Manchester City Council,Chief Executives,Professional fees,06-Jun-23,1908128182,Redacted Personal Information,£839.00
Manchester City Council,Adult Social Care,Rents,06-Jun-23,1908128864,Modern Solutions Ltd,"£3,000.00"
Manchester City Council,Adult Social Care,Rents,06-Jun-23,1908128864,Modern Solutions Ltd,"£4,692.00"
Manchester City Council,Adult Social Care,Bed & Breakfast Acc,06-Jun-23,1908128478,MOTEL ONE COM MAN ROYA,"£2,680.00"
Manchester City Council,Childrens & Education Services,Compensation Payments,06-Jun-23,1908128256,Redacted Personal Information,"£2,650.00"
Manchester City Council,Chief Executives,Counsel Costs,06-Jun-23,1908127406,Redacted Personal Information,"£1,000.00"
Manchester City Council,Childrens & Education Services,Foster Payments,06-Jun-23,1908128849,Redacted Personal Information,£660.00
Manchester City Council,Childrens & Education Services,Equipment,06-Jun-23,1908128510,OAK FURNITURELAND GROUP L,£769.98
Manchester City Council,Manchester Leisure,"Consumable items eg Toilet rolls, soap etc",06-Jun-23,1908128569,PMC ELECTRICS LIMI,£666.00
Manchester City Council,Adult Social Care,"Consumable items eg Toilet rolls, soap etc",06-Jun-23,1908128559,WWW.RMGLTD.CO.UK,£627.03
Manchester City Council,Childrens & Education Services,Payments for services,07-Jun-23,5105875438,The Together Trust,£725.00
Manchester City Council,Chief Executives,Postage,07-Jun-23,5105875401,Royal Mail Group Plc,"£3,411.60"
Manchester City Council,Chief Executives,Works and associated costs for Land and Buildings,07-Jun-23,1908128814,Eversheds Llp,"£5,385.00"
Manchester City Council,Chief Executives,CRB Fees,07-Jun-23,5105875451,Disclosure & Barring Service,"£21,046.00"
Manchester City Council,Hospitality + Trading Services,Insurance,07-Jun-23,1908126839,Zurich Municipal,"£4,188.50"
Manchester City Council,Hospitality + Trading Services,Bank Interest Rec'd,07-Jun-23,1908126839,Zurich Municipal,"-£1,231.33"
Manchester City Council,Adult Social Care,Payments for services,07-Jun-23,5105875567,ADFERIAD RECOVERY,"£3,375.00"
Manchester City Council,Adult Social Care,Payments for services,07-Jun-23,5105875566,ADFERIAD RECOVERY,"£5,737.50"
Manchester City Council,Childrens & Education Services,Transport Taxis,07-Jun-23,1908130455,Mantax Radio Taxis Ltd,"£15,027.20"
Manchester City Council,Childrens & Education Services,Transport Taxis,07-Jun-23,1908130456,Mantax Radio Taxis Ltd,"£58,091.67"
Manchester City Council,Childrens & Education Services,"Consumable items eg Toilet rolls, soap etc",07-Jun-23,1700151588,Argos Business Solutions,£731.99
Manchester City Council,Chief Executives,Agency staff provision,07-Jun-23,5105875490,Adecco Uk Ltd,"£1,348.32"
Manchester City Council,Chief Executives,Agency staff provision,07-Jun-23,5105875513,Adecco Uk Ltd,"£1,641.04"
Manchester City Council,Chief Executives,Agency staff provision,07-Jun-23,5105875487,Search Consultancy Ltd,"£2,661.84"
Manchester City Council,Environment and Operations,Construction Works,07-Jun-23,5105875428,J.Hopkins (Contractors) Ltd.,"£19,600.00"
Manchester City Council,Environment and Operations,Construction Works,07-Jun-23,5105875429,J.Hopkins (Contractors) Ltd.,"£25,350.00"
Manchester City Council,Environment and Operations,Construction Works,07-Jun-23,5105875430,J.Hopkins (Contractors) Ltd.,"£77,750.00"
Manchester City Council,Environment and Operations,Construction Works,07-Jun-23,5105875425,J.Hopkins (Contractors) Ltd.,"£4,058.90"
Manchester City Council,Environment and Operations,Construction Works,07-Jun-23,5105875423,J.Hopkins (Contractors) Ltd.,"£5,798.76"
Manchester City Council,Environment and Operations,Construction Works,07-Jun-23,5105875424,J.Hopkins (Contractors) Ltd.,"£82,939.95"
Manchester City Council,Environment and Operations,Construction Works,07-Jun-23,5105875455,J.Hopkins (Contractors) Ltd.,"£33,600.00"
Manchester City Council,Environment and Operations,Construction Works,07-Jun-23,5105875427,J.Hopkins (Contractors) Ltd.,"£14,870.27"
Manchester City Council,Environment and Operations,Construction Works,07-Jun-23,5105875422,J.Hopkins (Contractors) Ltd.,"£32,650.00"
Manchester City Council,Adult Social Care,Payments for services,07-Jun-23,5105874808,Big Life Centres,"-£238,358.00"
Manchester City Council,Adult Social Care,Payments for services,07-Jun-23,5105875419,Big Life Centres,"£238,508.00"
Manchester City Council,Adult Social Care,Payments for services,07-Jun-23,5105875523,Big Life Centres,"£238,508.00"
Manchester City Council,Childrens & Education Services,Signers/Interpreters,07-Jun-23,5105875526,Language Line Ltd,"£4,568.31"
Manchester City Council,Insurance Fund,Bal of Rsk InsPrem,07-Jun-23,1908127434,St.Marys Ce Primary School,"£24,923.35"
Manchester City Council,Childrens & Education Services,Payments for services,07-Jun-23,5105875449,Tameside College,"£3,587.79"
Manchester City Council,Manchester Leisure,I T Provision,07-Jun-23,5105875510,Insight Direct (Uk) Ltd,£527.94
Manchester City Council,Hospitality + Trading Services,Vehicle Repairs,07-Jun-23,5105875561,Winners Contract Hire Ltd,"£2,762.79"
Manchester City Council,Childrens & Education Services,Training and Development,07-Jun-23,5105875452,Afruca,-£700.00
Manchester City Council,Childrens & Education Services,Training and Development,07-Jun-23,5105875454,Afruca,-£700.00
Manchester City Council,Childrens & Education Services,Training and Development,07-Jun-23,5105875103,Afruca,£700.00
Manchester City Council,Childrens & Education Services,Training and Development,07-Jun-23,5105875210,Afruca,£700.00
Manchester City Council,Childrens & Education Services,Training and Development,07-Jun-23,5105875457,Afruca,£700.00
Manchester City Council,Childrens & Education Services,Training and Development,07-Jun-23,5105875458,Afruca,£700.00
Manchester City Council,Childrens & Education Services,Hire of Premises,07-Jun-23,5105875515,Cityco,"£1,679.60"
Manchester City Council,Highways Services,I T Provision,07-Jun-23,5105875551,Buchanan computing Limited,"£23,100.00"
Manchester City Council,Environment and Operations,Construction Works,07-Jun-23,5105875467,Virgin Media Limited,£529.68
Manchester City Council,Chief Executives,Postage,07-Jun-23,5105875489,Whistl North Ltd,"£9,969.89"
Manchester City Council,Chief Executives,Counsel Costs,07-Jun-23,1908128462,18 St John Street Chambers,£650.00
Manchester City Council,Manchester Leisure,Professional fees,07-Jun-23,5105875518,The Mustard Tree,"£10,000.00"
Manchester City Council,Childrens & Education Services,Payments for services,07-Jun-23,5105875431,Enhance EHC Ltd,"£9,529.74"
Manchester City Council,Environment and Operations,Construction Works,07-Jun-23,5105875463,OCU Services Limited,"£4,500.00"
Manchester City Council,Childrens & Education Services,Professional fees,07-Jun-23,5105875543,One Education Ltd,"£62,000.00"
Manchester City Council,Insurance Fund,Counsel Costs,07-Jun-23,1908126841,Clyde & Co Claims LLP,"£2,488.00"
Manchester City Council,Childrens & Education Services,"Consumable items eg Toilet rolls, soap etc",07-Jun-23,1700151587,B & Q (CARD ONLY),-£614.84
Manchester City Council,Chief Executives,Counsel Costs,07-Jun-23,1908128466,Kenworthy's Chambers,£750.00
Manchester City Council,Childrens & Education Services,Professional fees,07-Jun-23,5105875488,Redacted Personal Information,"£1,400.00"
Manchester City Council,Childrens & Education Services,Professional fees,07-Jun-23,5105875486,Redacted Personal Information,"£3,500.00"
Manchester City Council,Childrens & Education Services,Payments for services,07-Jun-23,5105875432,Link Mediation Services,"£5,550.00"
Manchester City Council,Manchester Leisure,Refuse Collection,07-Jun-23,5105875267,Biffa Municipal Limited,"£1,359.54"
Manchester City Council,Manchester Leisure,Professional fees,07-Jun-23,5105875533,Redacted Personal Information,£575.10
Manchester City Council,Adult Social Care,Bed & Breakfast Acc,07-Jun-23,5105875450,Redacted Personal Information,"£1,620.00"
Manchester City Council,Manchester Leisure,Agency staff provision,07-Jun-23,5105875493,Manchester Art Gallery,"£1,987.55"
Manchester City Council,Adult Social Care,Rents,07-Jun-23,5105875426,AJD Property Limited,"£9,565.71"
Manchester City Council,Chief Executives,Professional fees,07-Jun-23,1908128258,Pickering Psychology Services Ltd,"£1,419.55"
Manchester City Council,Childrens & Education Services,Payments for services,07-Jun-23,5105875501,National Offender Mgt Services,"£5,833.00"
Manchester City Council,Childrens & Education Services,Payments for services,07-Jun-23,5105875495,National Offender Mgt Services,"£9,210.00"
Manchester City Council,Childrens & Education Services,Payments for services,07-Jun-23,5105875498,National Offender Mgt Services,"£9,210.00"
Manchester City Council,Childrens & Education Services,Payments for services,07-Jun-23,5105875499,National Offender Mgt Services,"£9,210.00"
Manchester City Council,Childrens & Education Services,Payments for services,07-Jun-23,5105875496,National Offender Mgt Services,"£9,517.00"
Manchester City Council,Childrens & Education Services,Payments for services,07-Jun-23,5105875497,National Offender Mgt Services,"£9,517.00"
Manchester City Council,Childrens & Education Services,Payments for services,07-Jun-23,5105875500,National Offender Mgt Services,"£9,517.00"
Manchester City Council,Childrens & Education Services,Payments for services,07-Jun-23,5105875502,National Offender Mgt Services,"£9,517.00"
Manchester City Council,Childrens & Education Services,Payments for services,07-Jun-23,5105875503,National Offender Mgt Services,"£9,517.00"
Manchester City Council,Manchester Leisure,Professional fees,07-Jun-23,5105875559,Eville & Jones Commercial Services,"£5,305.52"
Manchester City Council,Chief Executives,Counsel Costs,07-Jun-23,1908128753,Central Chambers,£750.00
Manchester City Council,Chief Executives,Counsel Costs,07-Jun-23,1908128669,Central Chambers,"£1,200.00"
Manchester City Council,Adult Social Care,Professional fees,07-Jun-23,5105875525,Prepaid Financial Services Limited,"£1,444.10"
Manchester City Council,Adult Social Care,Professional fees,07-Jun-23,5105875441,Prepaid Financial Services Limited,"£1,457.55"
Manchester City Council,Adult Social Care,Professional fees,07-Jun-23,5105875442,Prepaid Financial Services Limited,"£1,461.50"
Manchester City Council,Corporate Services,WPS Awards,07-Jun-23,5105875421,Furniture Resource Centre Ltd,£720.05
Manchester City Council,Corporate Services,WPS Awards,07-Jun-23,5105875482,Furniture Resource Centre Ltd,"£1,071.35"
Manchester City Council,Chief Executives,Counsel Costs,07-Jun-23,1908128467,Redacted Personal Information,"£1,000.00"
Manchester City Council,Insurance Fund,Insurance,07-Jun-23,5105875537,Redacted Personal Information,"£8,400.00"
Manchester City Council,Insurance Fund,Insurance,07-Jun-23,5105875538,Redacted Personal Information,"£14,504.00"
Manchester City Council,Insurance Fund,Insurance,07-Jun-23,5105875539,Redacted Personal Information,"£26,012.00"
Manchester City Council,Insurance Fund,Insurance,07-Jun-23,5105875542,Redacted Personal Information,"£53,737.60"
Manchester City Council,Insurance Fund,Insurance,07-Jun-23,5105875541,Redacted Personal Information,"£517,081.53"
Manchester City Council,Childrens & Education Services,Payments for services,07-Jun-23,5105875440,Citywall,"£4,992.00"
Manchester City Council,Manchester Leisure,I T Provision,07-Jun-23,5105875563,Eldercare (UK) Ltd,"£1,472.05"
Manchester City Council,Manchester Leisure,Professional fees,07-Jun-23,5105875476,Response Team 247 Ltd,£531.92
Manchester City Council,Corporate Services,Compensation Payments,07-Jun-23,1908130516,Bond Turner Solicitors,"£5,000.00"
Manchester City Council,Childrens & Education Services,Payments for services,07-Jun-23,5105875434,4syte Funding Limited,£507.63
Manchester City Council,Adult Social Care,Carer Support Payments ,07-Jun-23,5105875581,Goldcrest Care Services Ltd,£635.50
Manchester City Council,Childrens & Education Services,Payments for services,07-Jun-23,5105875443,Meadows Care Ltd,"£3,835.71"
Manchester City Council,Childrens & Education Services,Payments for services,07-Jun-23,5105875446,Meadows Care Ltd,"£3,963.57"
Manchester City Council,Childrens & Education Services,Payments for services,07-Jun-23,5105875444,Meadows Care Ltd,"£4,264.29"
Manchester City Council,Childrens & Education Services,Payments for services,07-Jun-23,5105875445,Meadows Care Ltd,"£4,264.29"
Manchester City Council,Childrens & Education Services,Payments for services,07-Jun-23,5105875447,Meadows Care Ltd,"£4,406.43"
Manchester City Council,Childrens & Education Services,Payments for services,07-Jun-23,5105875448,Meadows Care Ltd,"£4,406.43"
Manchester City Council,Childrens & Education Services,Carer Support Payments ,07-Jun-23,5105875465,Care Solutions Recruitment,"£9,640.05"
Manchester City Council,Environment and Operations,Construction Works,07-Jun-23,5105875468,C A Telecom Uk Ltd,"£2,500.00"
Manchester City Council,Childrens & Education Services,Payments for services,07-Jun-23,5105875439,Vision for Education Limited,£625.05
Manchester City Council,Adult Social Care,Furniture,07-Jun-23,5105875555,Rtech Group Limited,"£4,283.33"
Manchester City Council,Adult Social Care,Furniture,07-Jun-23,5105875522,Rtech Group Limited,"£5,016.66"
Manchester City Council,Manchester Leisure,Special Event,07-Jun-23,5105875461,Redacted Personal Information,£500.00
Manchester City Council,Regeneration Finance,I T Provision,07-Jun-23,5105875560,HACT Social Value Insight,"£6,500.00"
Manchester City Council,Childrens & Education Services,"Consumable items eg Toilet rolls, soap etc",07-Jun-23,1700151583,CAMILLA CARPETS HARPUR,-£570.00
Manchester City Council,Adult Social Care,Rents,07-Jun-23,1908130493,CHEONG KONG ASSET MANAGEMENT LTD,"£1,800.00"
Manchester City Council,Manchester Leisure,Special Event,07-Jun-23,1908128841,ENV Graphics & Signage Ltd,"£2,017.12"
Manchester City Council,Childrens & Education Services,Professional fees,07-Jun-23,1908119455,Further Education Tutorial Network,£900.00
Manchester City Council,Highways Services,Compensation Payments,07-Jun-23,1908126780,Redacted Personal Information,£922.83
Manchester City Council,Corporate Services,Works and associated costs for Land and Buildings,07-Jun-23,1908126657,Oxford Archaeology Ltd,"£1,200.00"
Manchester City Council,Hospitality + Trading Services,Ext Sales - Other,07-Jun-23,1908126807,RCD Electrical Engineers Ltd,"£1,928.00"
Manchester City Council,Childrens & Education Services,"Consumable items eg Toilet rolls, soap etc",07-Jun-23,1700151582,WWW.ARGOS.CO.UK,-£735.94
Manchester City Council,Regeneration Finance,Cleaning Equipment,08-Jun-23,5105875534,Edmundson Electrical Ltd,£721.16
Manchester City Council,Chief Executives,Works and associated costs for Land and Buildings,08-Jun-23,5105875669,BCL,"£1,344.90"
Manchester City Council,Highways Services,Payments to Sub-Contractors,08-Jun-23,5105875973,Clearway Drainage Systems Ltd,"£1,850.00"
Manchester City Council,Highways Services,Payments to Sub-Contractors,08-Jun-23,5105875971,Clearway Drainage Systems Ltd,"£2,550.00"
Manchester City Council,Highways Services,Payments to Sub-Contractors,08-Jun-23,5105875929,Clearway Drainage Systems Ltd,"£4,250.00"
Manchester City Council,Highways Services,Payments to Sub-Contractors,08-Jun-23,5105875930,Clearway Drainage Systems Ltd,"£4,250.00"
Manchester City Council,Highways Services,Payments to Sub-Contractors,08-Jun-23,5105875974,Clearway Drainage Systems Ltd,"£6,600.00"
Manchester City Council,Highways Services,Payments to Sub-Contractors,08-Jun-23,5105875972,Clearway Drainage Systems Ltd,"£16,624.00"
Manchester City Council,Highways Services,Payments to Sub-Contractors,08-Jun-23,5105875928,Clearway Drainage Systems Ltd,"£30,152.00"
Manchester City Council,Chief Executives,Printing,08-Jun-23,5105875855,Alphatec 2000 Ltd,£635.00
Manchester City Council,Regeneration Finance,Refuse Collection,08-Jun-23,1908130528,Shred-It Ltd,"£1,095.53"
Manchester City Council,Corporate Services,Agency staff provision,08-Jun-23,5105875577,Michael Page International,£896.00
Manchester City Council,Corporate Services,Agency staff provision,08-Jun-23,5105875579,Michael Page International,£896.00
Manchester City Council,Corporate Services,Agency staff provision,08-Jun-23,5105875578,Michael Page International,"£1,120.00"
Manchester City Council,Corporate Services,Agency staff provision,08-Jun-23,5105875580,Michael Page International,"£1,120.00"
Manchester City Council,Manchester Leisure,Hire of Equipment,08-Jun-23,5105875565,Tube UK Ltd,"£7,665.25"
Manchester City Council,Childrens & Education Services,Professional fees,08-Jun-23,5105875692,Mather & Ellis Ltd,£680.00
Manchester City Council,Manchester Leisure,Grant and subscriptions awarded,08-Jun-23,5105875527,"Groundwork Manchester, Salford","£17,500.00"
Manchester City Council,Hospitality + Trading Services,Equipment,08-Jun-23,5105875857,Rigby Taylor Ltd,"£8,258.40"
Manchester City Council,Adult Social Care,Home Care ,08-Jun-23,5105875658,Standwalk Ltd,£846.40
Manchester City Council,Adult Social Care,Home Care ,08-Jun-23,5105875659,Standwalk Ltd,"£1,259.02"
Manchester City Council,Adult Social Care,Home Care ,08-Jun-23,5105875671,Standwalk Ltd,"£2,902.38"
Manchester City Council,Environment and Operations,Construction Works,08-Jun-23,5105875770,J.Hopkins (Contractors) Ltd.,"£1,287.06"
Manchester City Council,Environment and Operations,Construction Works,08-Jun-23,5105875821,J.Hopkins (Contractors) Ltd.,"£54,764.73"
Manchester City Council,Environment and Operations,Construction Works,08-Jun-23,5105875766,J.Hopkins (Contractors) Ltd.,"-£1,948.77"
Manchester City Council,Environment and Operations,Construction Works,08-Jun-23,5105875768,J.Hopkins (Contractors) Ltd.,"£32,900.00"
Manchester City Council,Environment and Operations,Construction Works,08-Jun-23,5105875763,J.Hopkins (Contractors) Ltd.,"£44,961.32"
Manchester City Council,Environment and Operations,Construction Works,08-Jun-23,5105875767,J.Hopkins (Contractors) Ltd.,"£49,972.43"
Manchester City Council,Environment and Operations,Construction Works,08-Jun-23,5105875764,J.Hopkins (Contractors) Ltd.,"£58,900.00"
Manchester City Council,Adult Social Care,Equipment,08-Jun-23,5105875585,NRS Healthcare,"£2,493.00"
Manchester City Council,Adult Social Care,Third party payments relating to Voluntary Organisations,08-Jun-23,5105875840,Afro Carribean Care Group,"£20,000.00"
Manchester City Council,Manchester Leisure,Compensation Payments,08-Jun-23,1908131225,Peasegoods,"£1,600.00"
Manchester City Council,Adult Social Care,Payments for services,08-Jun-23,5105875735,Mosscare St Vincent's Housing,£517.36
Manchester City Council,Adult Social Care,Payments for services,08-Jun-23,5105875691,Mosscare St Vincent's Housing,£561.56
Manchester City Council,Adult Social Care,Payments for services,08-Jun-23,5105875678,Mosscare St Vincent's Housing,£629.40
Manchester City Council,Adult Social Care,Third party payments relating to Voluntary Organisations,08-Jun-23,5105875680,Caritas Diocese of Salford,£536.24
Manchester City Council,Regeneration Finance,Third party payments relating to Voluntary Organisations,08-Jun-23,5105875816,Caritas Diocese of Salford,"£9,427.40"
Manchester City Council,Manchester Leisure,Compensation Payments,08-Jun-23,1908131239,Antony Hodari Holding Ltd,"£3,990.00"
Manchester City Council,Manchester Leisure,Compensation Payments,08-Jun-23,1908131237,Antony Hodari Holding Ltd,"£11,500.00"
Manchester City Council,Corporate Services,Works and associated costs for Land and Buildings,08-Jun-23,1908128823,DWF LLP,"£1,770.00"
Manchester City Council,Adult Social Care,Payments for services,08-Jun-23,5105875673,Creative Support Ltd,"£3,216.80"
Manchester City Council,Adult Social Care,Payments for services,08-Jun-23,5105875676,Creative Support Ltd,"£3,216.80"
Manchester City Council,Corporate Services,Signers/Interpreters,08-Jun-23,5105875818,Language Line Ltd,£946.97
Manchester City Council,Highways Services,Private Finance and Public Private partnership initiatives,08-Jun-23,5105875005,Amey Highways Lighting (Manchester),"£758,404.72"
Manchester City Council,Childrens & Education Services,Third party payments to other Local Authorities,08-Jun-23,5105875662,Tameside Metropolitan Bouough,"-£1,575.00"
Manchester City Council,Highways Services,Payments to Sub-Contractors,08-Jun-23,5105875517,Transport for Greater Manchester,£854.25
Manchester City Council,Adult Social Care,Third party payments relating to Voluntary Organisations,08-Jun-23,5105875544,Citizens Advice Manchester,"£80,000.00"
Manchester City Council,Manchester Leisure,External repairs and maintenance for buildings,08-Jun-23,5105875755,Ashlea Ltd,£628.33
Manchester City Council,Manchester Leisure,External repairs and maintenance for buildings,08-Jun-23,5105875754,Ashlea Ltd,"£2,850.80"
Manchester City Council,Hospitality + Trading Services,Internal Repairs and Maintenance for buildings,08-Jun-23,5105875572,Event Technical Support,"£1,297.20"
Manchester City Council,Childrens & Education Services,Grant Payments,08-Jun-23,5105875806,Ofsted,"£2,059.00"
Manchester City Council,Chief Executives,Printing,08-Jun-23,5105875835,Browns CTP Ltd,£678.00
Manchester City Council,Adult Social Care,Third party payments relating to Voluntary Organisations,08-Jun-23,5105875575,Manchester Carers Forum,"£20,000.00"
Manchester City Council,Childrens & Education Services,Day Care Payments,08-Jun-23,5105875660,Tiddlywinks Day Nursery Ltd,"£2,125.40"
Manchester City Council,Hospitality + Trading Services,Compensation Payments,08-Jun-23,1908131242,Simpson Millar LLP,"£54,192.00"
Manchester City Council,Chief Executives,Legal Fees,08-Jun-23,5105875795,Russell & Russell Solicitors LLP,"£2,429.50"
Manchester City Council,Chief Executives,Legal Fees,08-Jun-23,5105875796,Russell & Russell Solicitors LLP,"£3,331.65"
Manchester City Council,Chief Executives,Legal Fees,08-Jun-23,5105875797,Russell & Russell Solicitors LLP,"£3,628.00"
Manchester City Council,Chief Executives,Legal Fees,08-Jun-23,5105875798,Russell & Russell Solicitors LLP,"£3,667.63"
Manchester City Council,Chief Executives,Legal Fees,08-Jun-23,5105875811,Russell & Russell Solicitors LLP,"£3,855.71"
Manchester City Council,Chief Executives,Legal Fees,08-Jun-23,5105875813,Russell & Russell Solicitors LLP,"£4,057.00"
Manchester City Council,Chief Executives,Legal Fees,08-Jun-23,5105875815,Russell & Russell Solicitors LLP,"£4,643.75"
Manchester City Council,Chief Executives,Legal Fees,08-Jun-23,5105875817,Russell & Russell Solicitors LLP,"£5,044.00"
Manchester City Council,Manchester Leisure,Grant and subscriptions awarded,08-Jun-23,1908130348,Abraham Moss Warriors JFC,"£1,000.00"
Manchester City Council,Regeneration Finance,Hire of Premises,08-Jun-23,5105875792,Grove Village Residents association,"£2,000.00"
Manchester City Council,Highways Services,Professional fees,08-Jun-23,5105874915,Wilde Consultants Ltd,£976.23
Manchester City Council,Housing Revenue Account,Peaks & Plains Mgmt,08-Jun-23,5105875856,Cheshire Peaks & Plains,"£3,566.74"
Manchester City Council,Hospitality + Trading Services,Goods purchased for resale in Council outlets,08-Jun-23,5105875655,Albert Jones Memorials,"£2,762.10"
Manchester City Council,Hospitality + Trading Services,Goods purchased for resale in Council outlets,08-Jun-23,5105875654,Albert Jones Memorials,"£4,335.40"
Manchester City Council,Childrens & Education Services,Professional fees,08-Jun-23,5105875810,One Education Ltd,"£5,760.00"
Manchester City Council,Manchester Leisure,Gas,08-Jun-23,1908130803,SEFE ENERGY Ltd,£755.93
Manchester City Council,Adult Social Care,Grant and subscriptions awarded,08-Jun-23,5105875569,Manchester Mind,"£18,117.50"
Manchester City Council,Adult Social Care,Bed & Breakfast Acc,08-Jun-23,5105875600,Redacted Personal Information,"£18,330.00"
Manchester City Council,Corporate Services,Fees,08-Jun-23,5105875574,Pannone Corporate LLP,"£1,478.15"
Manchester City Council,Manchester Leisure,Building Materials for direct delivery,08-Jun-23,5105875802,Willfab Ltd,"-£1,950.00"
Manchester City Council,Manchester Leisure,Building Materials for direct delivery,08-Jun-23,5105875790,Willfab Ltd,"£1,950.00"
Manchester City Council,Manchester Leisure,Building Materials for direct delivery,08-Jun-23,5105875803,Willfab Ltd,"£1,950.00"
Manchester City Council,Chief Executives,Hire of Equipment,08-Jun-23,5105875571,Universal Live,£800.00
Manchester City Council,Chief Executives,ICT Sup & Maintnance,08-Jun-23,5105875556,Softcat,"-£1,193,014.65"
Manchester City Council,Chief Executives,ICT Sup & Maintnance,08-Jun-23,5105875558,Softcat,"£1,192,850.01"
Manchester City Council,Chief Executives,ICT Sup & Maintnance,08-Jun-23,5105875097,Softcat,"£1,193,014.65"
Manchester City Council,Adult Social Care,Third party payments relating to Voluntary Organisations,08-Jun-23,5105875822,Coffee4Craig Ltd,"£8,750.00"
Manchester City Council,Adult Social Care,Third party payments relating to Voluntary Organisations,08-Jun-23,5105875823,Coffee4Craig Ltd,"£8,750.00"
Manchester City Council,Adult Social Care,Bed & Breakfast Acc,08-Jun-23,5105875743,Redacted Personal Information,£900.00
Manchester City Council,Manchester Leisure,Special Event,08-Jun-23,5105875494,Vixfacepainting,£975.00
Manchester City Council,Chief Executives,Agency staff provision,08-Jun-23,5105875573,Tripod Partners,"£6,415.29"
Manchester City Council,Adult Social Care,Funeral and coroner related services,08-Jun-23,5105875853,Greater Manchester Funeral Service,£705.00
Manchester City Council,Adult Social Care,Funeral and coroner related services,08-Jun-23,5105875834,Greater Manchester Funeral Service,£825.00
Manchester City Council,Adult Social Care,Funeral and coroner related services,08-Jun-23,5105875852,Greater Manchester Funeral Service,£825.00
Manchester City Council,Adult Social Care,Funeral and coroner related services,08-Jun-23,5105875838,Greater Manchester Funeral Service,"£2,857.00"
Manchester City Council,Adult Social Care,Funeral and coroner related services,08-Jun-23,5105875839,Greater Manchester Funeral Service,"£1,455.00"
Manchester City Council,Regeneration Finance,Cleaning Equipment and Materials,08-Jun-23,5105875081,Arrow County Supplies,£870.72
Manchester City Council,Manchester Leisure,Grant and subscriptions awarded,08-Jun-23,5105875603,Crowden Road Allotments,"£1,970.00"
Manchester City Council,Corporate Services,Catering,08-Jun-23,5105875634,The Bread and Butter Thing,"£37,338.94"
Manchester City Council,Childrens & Education Services,Professional fees,08-Jun-23,5105875627,Prospero Teaching,£500.00
Manchester City Council,Childrens & Education Services,Professional fees,08-Jun-23,5105875641,Prospero Teaching,£500.00
Manchester City Council,Hospitality + Trading Services,Vehicle Fuel Costs,08-Jun-23,5105875656,Standard Fuels Oils,"£22,284.19"
Manchester City Council,Chief Executives,Hire of Equipment,08-Jun-23,5105875787,NatCen for Social Research,"£16,199.96"
Manchester City Council,Adult Social Care,Furniture,08-Jun-23,5105875637,Furniture Resource Centre Ltd,£621.75
Manchester City Council,Chief Executives,Printing,08-Jun-23,5105875576,Psycho Peacock Limited,£925.39
Manchester City Council,Manchester Leisure,Professional fees,08-Jun-23,5105875646,Redacted Personal Information,£750.00
Manchester City Council,Adult Social Care,Subsistence and Conference Expenses,08-Jun-23,5105875751,Genuine Property Investments,"£7,100.00"
Manchester City Council,Manchester Leisure,Electricity,08-Jun-23,1908119034,E.ON Next,£532.15
Manchester City Council,Manchester Leisure,Special Event,08-Jun-23,5105875530,NASIMA J DUNNE LTD,"£13,479.58"
Manchester City Council,Adult Social Care,Carer Support Payments ,08-Jun-23,5105875159,Goldcrest Care Services Ltd,"£1,291.50"
Manchester City Council,Adult Social Care,Carer Support Payments ,08-Jun-23,5105875160,Goldcrest Care Services Ltd,"£1,291.50"
Manchester City Council,Adult Social Care,Carer Support Payments ,08-Jun-23,5105875582,Goldcrest Care Services Ltd,"£1,291.50"
Manchester City Council,Adult Social Care,Carer Support Payments ,08-Jun-23,5105875583,Goldcrest Care Services Ltd,"£1,291.50"
Manchester City Council,Adult Social Care,Carer Support Payments ,08-Jun-23,5105875586,Goldcrest Care Services Ltd,"£1,291.50"
Manchester City Council,Adult Social Care,Carer Support Payments ,08-Jun-23,5105875594,Goldcrest Care Services Ltd,"£1,291.50"
Manchester City Council,Adult Social Care,Carer Support Payments ,08-Jun-23,5105875596,Goldcrest Care Services Ltd,"£1,291.50"
Manchester City Council,Adult Social Care,Carer Support Payments ,08-Jun-23,5105875621,Goldcrest Care Services Ltd,"£1,291.50"
Manchester City Council,Adult Social Care,Carer Support Payments ,08-Jun-23,5105875623,Goldcrest Care Services Ltd,"£1,291.50"
Manchester City Council,Adult Social Care,Carer Support Payments ,08-Jun-23,5105875625,Goldcrest Care Services Ltd,"£1,291.50"
Manchester City Council,Adult Social Care,Carer Support Payments ,08-Jun-23,5105875652,Goldcrest Care Services Ltd,"£1,291.50"
Manchester City Council,Adult Social Care,Carer Support Payments ,08-Jun-23,5105875675,Goldcrest Care Services Ltd,"£1,291.50"
Manchester City Council,Adult Social Care,Carer Support Payments ,08-Jun-23,5105875677,Goldcrest Care Services Ltd,"£1,291.50"
Manchester City Council,Adult Social Care,Carer Support Payments ,08-Jun-23,5105875693,Goldcrest Care Services Ltd,"£1,291.50"
Manchester City Council,Childrens & Education Services,Professional fees,08-Jun-23,1908119418,Pinnacle Building and Surveying,"£1,100.00"
Manchester City Council,Childrens & Education Services,Payments for services,08-Jun-23,5105875665,Care Solutions Recruitment,£825.70
Manchester City Council,Childrens & Education Services,Payments for services,08-Jun-23,5105875667,Care Solutions Recruitment,"£1,038.40"
Manchester City Council,Adult Social Care,Equipment,08-Jun-23,5105875615,Bellman and Symfon UK Ltd,£514.10
Manchester City Council,Adult Social Care,Rents,08-Jun-23,5105875865,Rtech Group Limited,"£5,229.18"
Manchester City Council,Adult Social Care,Furniture,08-Jun-23,5105875863,VSPG Housing Ltd,"£4,125.00"
Manchester City Council,Manchester Leisure,Professional fees,08-Jun-23,5105875844,MOULD SPECIALISTS UK LIMITED,£788.76
Manchester City Council,Manchester Leisure,Professional fees,08-Jun-23,5105875843,MOULD SPECIALISTS UK LIMITED,"£1,493.83"
Manchester City Council,Manchester Leisure,Grant and subscriptions awarded,08-Jun-23,1908126805,105th Manchester Scout Troop,"£1,000.00"
Manchester City Council,Adult Social Care,Counsel Costs,08-Jun-23,1908130458,A-D Directed (Michael Leibe),"£1,728.00"
Manchester City Council,Adult Social Care,Personal needs of client,08-Jun-23,1908130341,Anywastenorthwest,£550.00
Manchester City Council,Manchester Leisure,Grant and subscriptions awarded,08-Jun-23,1908130415,Redacted Personal Information,£500.00
Manchester City Council,Manchester Leisure,Electricity,08-Jun-23,1908126789,EON NEXT,£532.15
Manchester City Council,Regeneration Finance,Compensation Payments,08-Jun-23,1908130491,Gowing Law Solicitors,"£7,500.00"
Manchester City Council,Adult Social Care,Professional fees,08-Jun-23,1908130362,GTD Healthcare,"£2,500.00"
Manchester City Council,Manchester Leisure,Grant and subscriptions awarded,08-Jun-23,1908126798,Heathfield User Group Committee,£500.00
Manchester City Council,Manchester Leisure,Equipment,08-Jun-23,1908128461,Redacted Personal Information,"£10,775.00"
Manchester City Council,Childrens & Education Services,Payments for services,08-Jun-23,1908130472,Redacted Personal Information,"£2,138.50"
Manchester City Council,Corporate Services,Compensation Payments,08-Jun-23,1908131241,Kudos Legal Limited,"£16,000.00"
Manchester City Council,Manchester Leisure,Grant and subscriptions awarded,08-Jun-23,1908126812,Redacted Personal Information,"£1,000.00"
Manchester City Council,Childrens & Education Services,Expenditure re Internal Trading Ordered Externally,08-Jun-23,1908130480,Lemur Creative Limited,"£4,044.00"
Manchester City Council,Childrens & Education Services,PNOR-Holidays,08-Jun-23,1908130520,Redacted Personal Information,£720.00
Manchester City Council,Manchester Leisure,Grant and subscriptions awarded,08-Jun-23,1908126813,Manchester Panthers Football Club,£500.00
Manchester City Council,Manchester Leisure,Responsive Repairs Work,08-Jun-23,1908130457,Redacted Personal Information,"£5,072.24"
Manchester City Council,Manchester Leisure,Grant and subscriptions awarded,08-Jun-23,1908126800,Redacted Personal Information,"£1,000.00"
Manchester City Council,Adult Social Care,Rents,08-Jun-23,1908131244,Modern Solutions Ltd,"£2,400.00"
Manchester City Council,Adult Social Care,Professional fees,08-Jun-23,1908127412,Nice Cat Media,"£1,715.00"
Manchester City Council,Adult Social Care,Rents,08-Jun-23,1908131249,Rennsolution,"£1,000.00"
Manchester City Council,Adult Social Care,Rents,08-Jun-23,1908131252,Rennsolution,"£2,850.00"
Manchester City Council,Corporate Services,Compensation Payments,08-Jun-23,1908131254,RMJ Law Ltd t/a/ RMD Legal Client A,"£2,583.00"
Manchester City Council,Childrens & Education Services,Training and Development,08-Jun-23,1908130782,Safeguarding Network LTD,"£1,615.50"
Manchester City Council,Childrens & Education Services,Professional fees,08-Jun-23,1908130486,School of Shabs Ltd,£750.00
Manchester City Council,Childrens & Education Services,Payments for services,08-Jun-23,1908130536,The LIPA Multi Academy Trust,"£14,756.04"
Manchester City Council,Manchester Leisure,Grant and subscriptions awarded,08-Jun-23,1908126803,The Officials Collyhurst and Moston,"£1,000.00"
Manchester City Council,Manchester Leisure,Grant and subscriptions awarded,08-Jun-23,1908126814,The Pankhurst Trust,£500.00
Manchester City Council,Chief Executives,Works and associated costs for Land and Buildings,09-Jun-23,1908130463,Eversheds Llp,"£2,025.00"
Manchester City Council,Chief Executives,Works and associated costs for Land and Buildings,09-Jun-23,1908130464,Eversheds Llp,"£2,025.00"
Manchester City Council,Childrens & Education Services,Furniture,09-Jun-23,5105876252,Eps Supplies Ltd,£504.19
Manchester City Council,Childrens & Education Services,Furniture,09-Jun-23,5105876251,Eps Supplies Ltd,£546.58
Manchester City Council,Childrens & Education Services,Furniture,09-Jun-23,5105876249,Eps Supplies Ltd,"£1,132.07"
Manchester City Council,Manchester Leisure,Payments to Contractors,09-Jun-23,5105875925,NSL Ltd,"£60,171.18"
Manchester City Council,Adult Social Care,Equipment,09-Jun-23,5105876054,Mangar International Ltd/Winncare,"£6,300.00"
Manchester City Council,Chief Executives,Works and associated costs for Land and Buildings,09-Jun-23,1908128168,Landmark Information Group Ltd,£522.50
Manchester City Council,Childrens & Education Services,Transport Taxis,09-Jun-23,1908131527,Mantax Radio Taxis Ltd,"£25,114.25"
Manchester City Council,Childrens & Education Services,Transport Taxis,09-Jun-23,1908131525,Mantax Radio Taxis Ltd,"£53,528.56"
Manchester City Council,Childrens & Education Services,Transport Taxis,09-Jun-23,1908131526,Mantax Radio Taxis Ltd,"£58,102.68"
Manchester City Council,Adult Social Care,Grant and subscriptions awarded,09-Jun-23,5105875921,SignHealth,"£13,000.00"
Manchester City Council,Adult Social Care,Personal needs of client,09-Jun-23,5105875786,Cpc,£549.60
Manchester City Council,Manchester Leisure,Payments to Sub-Contractors,09-Jun-23,5105875977,Osborne Richardson,"£1,166.00"
Manchester City Council,Chief Executives,Equipment,09-Jun-23,5105875917,Xerox (Uk) Ltd,"£1,793.97"
Manchester City Council,Highways Services,Grounds Maintenance,09-Jun-23,5105876002,Mather & Ellis Ltd,"£7,075.00"
Manchester City Council,Highways Services,Professional fees,09-Jun-23,5105875885,Mace Ltd,"£7,269.00"
Manchester City Council,Childrens & Education Services,Catering,09-Jun-23,5105875926,Spie Limited,"£14,196.00"
Manchester City Council,Childrens & Education Services,Payments for services,09-Jun-23,5105875990,Reed Employment Plc,"£3,975.00"
Manchester City Council,Childrens & Education Services,Payments for services,09-Jun-23,5105876019,Myerscough College,"£1,926.67"
Manchester City Council,Highways Services,Building Materials for direct delivery,09-Jun-23,5105875891,TARMAC,"£1,240.74"
Manchester City Council,Childrens & Education Services,Payments for services,09-Jun-23,5105875986,Seashell trust,"£2,117.52"
Manchester City Council,Manchester Leisure,Grant and subscriptions awarded,09-Jun-23,5105875788,HOME,"£30,170.00"
Manchester City Council,Manchester Leisure,Cleaning Equipment and Materials,09-Jun-23,5105875960,Redgate Holdings Ltd,"£17,414.32"
Manchester City Council,Manchester Leisure,Grounds Maintenance,09-Jun-23,5105875992,Redgate Holdings Ltd,"£9,756.02"
Manchester City Council,Manchester Leisure,Disposables,09-Jun-23,5105875994,Redgate Holdings Ltd,"£71,387.58"
Manchester City Council,Manchester Leisure,Liquid Contnr Recycl,09-Jun-23,5105875993,Redgate Holdings Ltd,"£11,887.70"
Manchester City Council,Manchester Leisure,Tipping - Tonnage,09-Jun-23,5105875997,Redgate Holdings Ltd,"£69,906.73"
Manchester City Council,Manchester Leisure,Tipping - Skips,09-Jun-23,5105875991,Redgate Holdings Ltd,"£35,222.07"
Manchester City Council,Manchester Leisure,Recycling Facilities,09-Jun-23,5105875996,Redgate Holdings Ltd,"£15,912.46"
Manchester City Council,Manchester Leisure,Refuse Collection,09-Jun-23,5105875995,Redgate Holdings Ltd,"£29,286.68"
Manchester City Council,Regeneration Finance,Subsistence and Conference Expenses,09-Jun-23,5105875886,Marketing Manchester,£730.00
Manchester City Council,Environment and Operations,Construction Works,09-Jun-23,5105876065,Electricity North West Limited,"£7,144.36"
Manchester City Council,Adult Social Care,Rents,09-Jun-23,5105875940,Amco Management,"-£39,220.65"
Manchester City Council,Regeneration Finance,Subsistence and Conference Expenses,09-Jun-23,5105876053,Trinity College London,£510.00
Manchester City Council,Regeneration Finance,Subsistence and Conference Expenses,09-Jun-23,5105876050,Trinity College London,£629.00
Manchester City Council,Childrens & Education Services,Licences Purchase,09-Jun-23,5105875916,Insight Direct (Uk) Ltd,£501.04
Manchester City Council,Housing Revenue Account,Council Dwelling Adaptations,09-Jun-23,5105875927,Manchester Working Ltd,"£39,227.60"
Manchester City Council,Adult Social Care,Contract Cleaning External,09-Jun-23,5105876243,Alliance Disposables Ltd,"£1,258.04"
Manchester City Council,Corporate Services,Compensation Payments,09-Jun-23,1908132163,Weightmans LLP Solicitors,£750.00
Manchester City Council,Chief Executives,Legal Fees,09-Jun-23,5105876126,Weightmans LLP Solicitors,"£1,399.05"
Manchester City Council,Chief Executives,Legal Fees,09-Jun-23,5105876123,Weightmans LLP Solicitors,"£2,079.42"
Manchester City Council,Chief Executives,Legal Fees,09-Jun-23,5105876128,Weightmans LLP Solicitors,"£6,590.35"
Manchester City Council,Adult Social Care,Supported Accommodation,09-Jun-23,5105875760,Care Quality Commission,"£15,026.00"
Manchester City Council,Manchester Leisure,Payments to Sub-Contractors,09-Jun-23,5105875866,Scrutiny Cleaning Services,"£7,400.00"
Manchester City Council,Regeneration Finance,Grant and subscriptions awarded,09-Jun-23,5105875872,Impact For All,"£9,230.00"
Manchester City Council,Regeneration Finance,Transport Taxis,09-Jun-23,5105876044,MCR Blackcab Ltd,"£1,249.88"
Manchester City Council,Childrens & Education Services,Transport Taxis,09-Jun-23,5105875943,Alt Payee Acorn Care & Education,"£1,450.00"
Manchester City Council,Childrens & Education Services,Transport Taxis,09-Jun-23,5105875963,Alt Payee Acorn Care & Education,"£2,610.00"
Manchester City Council,Manchester Leisure,Grant and subscriptions awarded,09-Jun-23,5105875955,Yaran Northwest C.i.c,£500.00
Manchester City Council,Childrens & Education Services,Payments for services,09-Jun-23,5105876020,Cedar House School,"£6,740.66"
Manchester City Council,Childrens & Education Services,Payments for services,09-Jun-23,5105876096,Cedar House School,"£7,193.59"
Manchester City Council,Childrens & Education Services,Payments for services,09-Jun-23,5105876101,Cedar House School,"£10,639.21"
Manchester City Council,Corporate Services,Refuse Collection,09-Jun-23,5105875653,Biffa Municipal Limited,"£1,272.41"
Manchester City Council,Adult Social Care,Third party payments relating to Voluntary Organisations,09-Jun-23,5105876082,Together Dementia Support,"£24,500.00"
Manchester City Council,Adult Social Care,Professional fees,09-Jun-23,5105875874,Policy Partners Project Ltd,"£7,300.00"
Manchester City Council,Hospitality + Trading Services,Radio Charges,09-Jun-23,5105874829,North West Radio Communications Ltd,"£1,608.00"
Manchester City Council,Adult Social Care,Bed & Breakfast Acc,09-Jun-23,5105875867,Redacted Personal Information,"£4,050.00"
Manchester City Council,Adult Social Care,Bed & Breakfast Acc,09-Jun-23,5105875870,Redacted Personal Information,"£11,410.00"
Manchester City Council,Adult Social Care,Funeral and coroner related services,09-Jun-23,5105875858,Greater Manchester Funeral Service,"£3,010.00"
Manchester City Council,Adult Social Care,Bed & Breakfast Acc,09-Jun-23,5105875869,Redacted Personal Information,"£2,390.00"
Manchester City Council,Adult Social Care,Payments for services,09-Jun-23,5105876100,Kaleidoscope Project,"£8,400.00"
Manchester City Council,Environment and Operations,Construction Works,09-Jun-23,5105875999,Balfour Beatty Living Places Ltd,£911.70
Manchester City Council,Environment and Operations,Construction Works,09-Jun-23,5105875998,Balfour Beatty Living Places Ltd,"£2,428.20"
Manchester City Council,Hospitality + Trading Services,Vehicle Fuel Costs,09-Jun-23,5105875008,Standard Fuels Oils,"£16,318.59"
Manchester City Council,Adult Social Care,Bed & Breakfast Acc,09-Jun-23,5105875868,Hala Guest House,"£2,250.00"
Manchester City Council,Corporate Services,WPS Awards,09-Jun-23,5105876063,Furniture Resource Centre Ltd,£716.00
Manchester City Council,Corporate Services,WPS Awards,09-Jun-23,5105875894,Furniture Resource Centre Ltd,£720.05
Manchester City Council,Corporate Services,WPS Awards,09-Jun-23,5105876056,Furniture Resource Centre Ltd,"£1,110.87"
Manchester City Council,Corporate Services,WPS Awards,09-Jun-23,5105876016,Furniture Resource Centre Ltd,"£1,123.36"
Manchester City Council,Childrens & Education Services,Payments for services,09-Jun-23,5105876102,Thompsons Academy Ltd,"£3,325.00"
Manchester City Council,Childrens & Education Services,Payments for services,09-Jun-23,5105875924,Thompsons Academy Ltd,"£44,244.70"
Manchester City Council,Childrens & Education Services,Payments for services,09-Jun-23,5105876068,Keys PCE Limited,"£4,007.86"
Manchester City Council,Childrens & Education Services,Payments for services,09-Jun-23,5105876099,Keys PCE Limited,"£6,801.38"
Manchester City Council,Childrens & Education Services,Payments for services,09-Jun-23,5105876067,Keys PCE Limited,"£8,775.98"
Manchester City Council,Childrens & Education Services,Payments for services,09-Jun-23,5105876105,Teenage Works,"£96,328.47"
Manchester City Council,Childrens & Education Services,Third party payments to other Local Authorities,09-Jun-23,5105876095,Vernon Park Primary School,"£3,256.00"
Manchester City Council,Childrens & Education Services,Transport Taxis,09-Jun-23,5105876124,MS Minibuses Ltd,"£3,038.00"
Manchester City Council,Housing Revenue Account,Council Dwelling Adaptations,09-Jun-23,5105876070,Fieldway Supplies Ltd,"£89,957.14"
Manchester City Council,Manchester Leisure,Rents,09-Jun-23,1908131213,Mason Owen Property,"£2,342.32"
Manchester City Council,Housing Revenue Account,Works and associated costs for Land and Buildings,09-Jun-23,1908132170,Northern Gateway (FEC) No.10 Limite,"£5,897.26"
Manchester City Council,Housing Revenue Account,Works and associated costs for Land and Buildings,09-Jun-23,1908132170,Northern Gateway (FEC) No.10 Limite,"£294,863.00"
Manchester City Council,Corporate Services,Compensation Payments,09-Jun-23,1908132168,Bond Turner Solicitors,"£1,420.00"
Manchester City Council,Manchester Leisure,Counsel Costs,09-Jun-23,1908125225,Trinity Chambers,£500.00
Manchester City Council,Manchester Leisure,Counsel Costs,09-Jun-23,1908128754,Trinity Chambers,£750.00
Manchester City Council,Corporate Services,Counsel Costs,09-Jun-23,1908119422,Trinity Chambers,"£1,750.00"
Manchester City Council,Adult Social Care,Grant and subscriptions awarded,09-Jun-23,5105876000,Divrse Ltd,"£55,350.00"
Manchester City Council,Adult Social Care,Bed & Breakfast Acc,09-Jun-23,5105875883,Parkview Residence,"£58,520.00"
Manchester City Council,Manchester Leisure,Legal Fees,09-Jun-23,1908125473,Pinnacle Building and Surveying,£550.00
Manchester City Council,Childrens & Education Services,Carer Support Payments ,09-Jun-23,5105875938,Care Solutions Recruitment,"£11,497.98"
Manchester City Council,Childrens & Education Services,Payments for services,09-Jun-23,5105875988,Care Solutions Recruitment,"£1,557.60"
Manchester City Council,Manchester Leisure,Building Materials for direct delivery,09-Jun-23,5105876131,Sants Fabrications Ltd,"£2,000.00"
Manchester City Council,Manchester Leisure,ClothsUniformLaundry,09-Jun-23,5105876133,Sants Fabrications Ltd,"£2,000.00"
Manchester City Council,Childrens & Education Services,Transport Coach Hire,09-Jun-23,5105875903,AFJ Ltd,"£2,840.00"
Manchester City Council,Childrens & Education Services,Transport Coach Hire,09-Jun-23,5105875954,AFJ Ltd,"£3,302.00"
Manchester City Council,Childrens & Education Services,Transport Coach Hire,09-Jun-23,5105875951,AFJ Ltd,"£3,556.00"
Manchester City Council,Childrens & Education Services,Transport Coach Hire,09-Jun-23,5105875906,AFJ Ltd,"£3,810.00"
Manchester City Council,Childrens & Education Services,Transport Coach Hire,09-Jun-23,5105875907,AFJ Ltd,"£3,810.00"
Manchester City Council,Childrens & Education Services,Transport Coach Hire,09-Jun-23,5105875952,AFJ Ltd,"£3,810.00"
Manchester City Council,Childrens & Education Services,Transport Coach Hire,09-Jun-23,5105875850,AFJ Ltd,"£4,370.00"
Manchester City Council,Childrens & Education Services,Transport Coach Hire,09-Jun-23,5105875901,AFJ Ltd,"£4,370.00"
Manchester City Council,Childrens & Education Services,Transport Coach Hire,09-Jun-23,5105875902,AFJ Ltd,"£4,370.00"
Manchester City Council,Childrens & Education Services,Transport Coach Hire,09-Jun-23,5105875905,AFJ Ltd,"£4,370.00"
Manchester City Council,Childrens & Education Services,Transport Coach Hire,09-Jun-23,5105875848,AFJ Ltd,"£5,842.00"
Manchester City Council,Childrens & Education Services,Transport Coach Hire,09-Jun-23,5105875849,AFJ Ltd,"£5,842.00"
Manchester City Council,Childrens & Education Services,Transport Coach Hire,09-Jun-23,5105875904,AFJ Ltd,"£5,842.00"
Manchester City Council,Manchester Leisure,Special Event,09-Jun-23,5105875846,Redacted Personal Information,"£3,500.00"
Manchester City Council,Manchester Leisure,Goods purchased for resale in Council outlets,09-Jun-23,1908130367,Redacted Personal Information,"£1,002.50"
Manchester City Council,Chief Executives,Advertising,09-Jun-23,1908128973,Huge Media Advertising Ltd,£500.00
Manchester City Council,Adult Social Care,Rents,09-Jun-23,1908128820,Intra City Investments,"£1,110.00"
Manchester City Council,Adult Social Care,Rents,09-Jun-23,1908128824,Intra City Investments,"£1,110.00"
Manchester City Council,Corporate Services,Equipment,09-Jun-23,1908130814,Jesucina Foundation,"£1,839.00"
Manchester City Council,Chief Executives,Internet access,09-Jun-23,1700151837,MIDLANDS PRINTING COMPANY,"-£2,357.99"
Manchester City Council,Manchester Leisure,Responsive Repairs Work,09-Jun-23,1908126643,Redacted Personal Information,"£1,794.48"
Manchester City Council,Manchester Leisure,Legal Fees,09-Jun-23,1908119464,Peter Dickeson Associates Ltd,"£1,059.28"
Manchester City Council,Manchester Leisure,Security,09-Jun-23,1908130780,Practical Event Security Solutions,"£16,891.80"
Manchester City Council,Adult Social Care,Bed & Breakfast Acc,09-Jun-23,1908119000,Radisson Blu Hotel Manchester Airpo,"£1,562.50"
Manchester City Council,Housing General Fund,Building Works,12-Jun-23,1908133197,Pollock Lifts Ltd,"£12,664.00"
Manchester City Council,Housing General Fund,Building Works,12-Jun-23,1908133187,Pollock Lifts Ltd,"£12,866.00"
Manchester City Council,Housing General Fund,Building Works,12-Jun-23,1908133183,Pollock Lifts Ltd,"£13,371.00"
Manchester City Council,Chief Executives,Postage,12-Jun-23,5105875881,Royal Mail Group Plc,"£32,076.25"
Manchester City Council,Adult Social Care,Third party payments relating to Voluntary Organisations,12-Jun-23,5105874982,Nacro,"£117,306.00"
Manchester City Council,Adult Social Care,Equipment,12-Jun-23,5105876315,Ethitec,"£1,489.95"
Manchester City Council,Adult Social Care,Personal needs of client,12-Jun-23,5105875026,Tunstall Healthcare (UK) Ltd,"£3,800.00"
Manchester City Council,Libraries and Theatres,Works and associated costs for Land and Buildings,12-Jun-23,1908126796,Eversheds Llp,£644.50
Manchester City Council,Libraries and Theatres,Works and associated costs for Land and Buildings,12-Jun-23,1908126795,Eversheds Llp,"£1,643.00"
Manchester City Council,Housing Revenue Account,Works and associated costs for Land and Buildings,12-Jun-23,1908133253,DLP Services (Northern) Ltd,"£60,932.97"
Manchester City Council,Chief Executives,Construction Works,12-Jun-23,5105876196,United Utilities Water Plc,"-£6,528.00"
Manchester City Council,Chief Executives,Construction Works,12-Jun-23,5105876195,United Utilities Water Plc,"£6,528.00"
Manchester City Council,Corporate Services,Hire of Equipment,12-Jun-23,5105876224,Flowbird Smart City Uk Ltd,"£13,820.00"
Manchester City Council,Manchester Leisure,Works and associated costs for Land and Buildings,12-Jun-23,5105876181,Kompan Ltd,"£2,000.00"
Manchester City Council,Adult Social Care,Personal needs of client,12-Jun-23,5105876172,Etac Ltd,£675.00
Manchester City Council,Adult Social Care,Personal needs of client,12-Jun-23,5105876179,Etac Ltd,£738.00
Manchester City Council,Manchester Leisure,Hire of Equipment,12-Jun-23,5105876129,William G.Search Ltd,£715.00
Manchester City Council,Manchester Leisure,Hire of Equipment,12-Jun-23,5105876127,William G.Search Ltd,"£2,265.00"
Manchester City Council,Regeneration Finance,Stationery,12-Jun-23,5105876318,Digital ID Ltd,"£1,483.55"
Manchester City Council,Chief Executives,Agency staff provision,12-Jun-23,5105875546,Michael Page International,"£4,500.00"
Manchester City Council,Chief Executives,Agency staff provision,12-Jun-23,5105875548,Michael Page International,"£5,409.60"
Manchester City Council,Chief Executives,Agency staff provision,12-Jun-23,5105875547,Michael Page International,"£11,730.00"
Manchester City Council,Chief Executives,Agency staff provision,12-Jun-23,5105875545,Michael Page International,"£11,891.00"
Manchester City Council,Chief Executives,Agency staff provision,12-Jun-23,5105875549,Michael Page International,"£12,995.00"
Manchester City Council,Manchester Leisure,Refuse Collection,12-Jun-23,5105874964,GTS Steam Cleaners,-£623.83
Manchester City Council,Manchester Leisure,Refuse Collection,12-Jun-23,5105876138,GTS Steam Cleaners,"£2,170.68"
Manchester City Council,Housing Revenue Account,Council Dwelling Adaptations,12-Jun-23,5105876176,Moores Furniture Group Limited,"£10,237.73"
Manchester City Council,Manchester Leisure,Compensation Payments,12-Jun-23,1908133198,Sph Costing Services Ltd,"£1,582.13"
Manchester City Council,Manchester Leisure,Building Materials for direct delivery,12-Jun-23,5105876270,Rigby Taylor Ltd,"£1,750.00"
Manchester City Council,Manchester Leisure,Building Materials for direct delivery,12-Jun-23,5105876281,Rigby Taylor Ltd,"£2,900.00"
Manchester City Council,Childrens & Education Services,Payments for services,12-Jun-23,5105875346,Trafford College,"£68,455.82"
Manchester City Council,Highways Services,Building Materials for direct delivery,12-Jun-23,5105876345,TARMAC,£609.40
Manchester City Council,Highways Services,Building Materials for direct delivery,12-Jun-23,5105876343,TARMAC,£743.47
Manchester City Council,Highways Services,Building Materials for direct delivery,12-Jun-23,5105876348,TARMAC,"£2,281.59"
Manchester City Council,Manchester Leisure,Payments to Sub-Contractors,12-Jun-23,5105876161,Arboricultural Services Treework,"£8,250.00"
Manchester City Council,Childrens & Education Services,Professional fees,12-Jun-23,5105876265,Assoc of Directors of Childrens Svs,"£3,726.00"
Manchester City Council,Housing General Fund,Building Works,12-Jun-23,1908133186,Stannah Lift Services Ltd,"£2,974.00"
Manchester City Council,Housing General Fund,Building Works,12-Jun-23,1908133189,Stannah Lift Services Ltd,"£3,010.00"
Manchester City Council,Housing General Fund,Building Works,12-Jun-23,1908133188,Stannah Lift Services Ltd,"£3,255.00"
Manchester City Council,Housing General Fund,Building Works,12-Jun-23,1908133194,Stannah Lift Services Ltd,"£4,386.00"
Manchester City Council,Housing General Fund,Building Works,12-Jun-23,1908133191,Stannah Lift Services Ltd,"£5,941.00"
Manchester City Council,Housing General Fund,Building Works,12-Jun-23,1908133190,Stannah Lift Services Ltd,"£3,053.00"
Manchester City Council,Housing General Fund,Building Works,12-Jun-23,1908133184,Stannah Lift Services Ltd,"£5,835.00"
Manchester City Council,Housing General Fund,Building Works,12-Jun-23,1908133196,Stannah Lift Services Ltd,"£6,709.00"
Manchester City Council,Environment and Operations,Construction Works,12-Jun-23,5105874843,Stockport Metropolitan Borough,"-£48,000.00"
Manchester City Council,Environment and Operations,Construction Works,12-Jun-23,5105874842,Stockport Metropolitan Borough,"£48,000.00"
Manchester City Council,Childrens & Education Services,Hire of Premises,12-Jun-23,5105876335,Quaker Trading Ltd,£714.59
Manchester City Council,Adult Social Care,Payments for services,12-Jun-23,5105876295,Brook,"£14,584.80"
Manchester City Council,Housing Revenue Account,Council Dwelling Adaptations,12-Jun-23,5105876200,P Casey & Co Ltd,"£16,618.93"
Manchester City Council,Environment and Operations,Construction Works,12-Jun-23,5105874779,Rosgal Ltd,"£6,765.58"
Manchester City Council,Environment and Operations,Construction Works,12-Jun-23,5105874778,Rosgal Ltd,"£54,449.12"
Manchester City Council,Highways Services,Payments to Sub-Contractors,12-Jun-23,5105874766,Rosgal Ltd,£574.00
Manchester City Council,Highways Services,Payments to Sub-Contractors,12-Jun-23,5105874765,Rosgal Ltd,£765.00
Manchester City Council,Adult Social Care,Third party payments relating to Voluntary Organisations,12-Jun-23,5105876064,The Depaul Trust,"£100,000.00"
Manchester City Council,Regeneration Finance,Stationery,12-Jun-23,5105876356,Waterstone Booksellers Ltd,£786.73
Manchester City Council,Housing Revenue Account,Vehicle Plant Furniture and Equipment,12-Jun-23,5105875007,Insight Direct (Uk) Ltd,"£55,814.88"
Manchester City Council,Housing Revenue Account,Council Dwelling Adaptations,12-Jun-23,5105876290,Pts Plumbing Trade Supplies,"-£3,958.44"
Manchester City Council,Housing Revenue Account,Council Dwelling Adaptations,12-Jun-23,5105876287,Pts Plumbing Trade Supplies,£757.12
Manchester City Council,Housing Revenue Account,Council Dwelling Adaptations,12-Jun-23,5105876286,Pts Plumbing Trade Supplies,£786.42
Manchester City Council,Housing Revenue Account,Council Dwelling Adaptations,12-Jun-23,5105876288,Pts Plumbing Trade Supplies,"£3,958.44"
Manchester City Council,Housing Revenue Account,Council Dwelling Adaptations,12-Jun-23,5105876313,Pts Plumbing Trade Supplies,"£3,958.44"
Manchester City Council,Housing Revenue Account,Council Dwelling Adaptations,12-Jun-23,5105876312,Pts Plumbing Trade Supplies,"£4,420.17"
Manchester City Council,Housing Revenue Account,Council Dwelling Adaptations,12-Jun-23,5105876311,Pts Plumbing Trade Supplies,"£5,517.01"
Manchester City Council,Childrens & Education Services,Contract Cleaning External,12-Jun-23,5105876225,Family Action,"£1,472.70"
Manchester City Council,Housing General Fund,Building Works,12-Jun-23,1908133192,Hoist & Shower Chair Company,"£2,670.50"
Manchester City Council,Housing General Fund,Building Works,12-Jun-23,1908133185,Hoist & Shower Chair Company,"£2,783.00"
Manchester City Council,Housing General Fund,Building Works,12-Jun-23,1908133193,Hoist & Shower Chair Company,"£2,895.50"
Manchester City Council,Childrens & Education Services,Professional fees,12-Jun-23,5105876242,Heritage Architecture Ltd,"£1,506.10"
Manchester City Council,Adult Social Care,Equipment,12-Jun-23,5105874949,Drive Devilbiss Healthcare Ltd,"£9,586.50"
Manchester City Council,Regeneration Finance,Grant and subscriptions awarded,12-Jun-23,5105875196,Museum of Science & Industry,"£24,445.24"
Manchester City Council,Regeneration Finance,Professional fees,12-Jun-23,5105876298,Jacobs UK Ltd,"£13,000.00"
Manchester City Council,Chief Executives,Legal Fees,12-Jun-23,5105876359,Weightmans LLP Solicitors,"£1,768.00"
Manchester City Council,Chief Executives,Legal Fees,12-Jun-23,5105876336,Weightmans LLP Solicitors,"£1,795.00"
Manchester City Council,Chief Executives,Legal Fees,12-Jun-23,5105876357,Weightmans LLP Solicitors,"£2,383.25"
Manchester City Council,Chief Executives,Legal Fees,12-Jun-23,5105876338,Weightmans LLP Solicitors,"£2,776.48"
Manchester City Council,Chief Executives,Legal Fees,12-Jun-23,5105876333,Weightmans LLP Solicitors,"£3,416.50"
Manchester City Council,Chief Executives,Legal Fees,12-Jun-23,5105876360,Weightmans LLP Solicitors,"£3,871.95"
Manchester City Council,Chief Executives,Legal Fees,12-Jun-23,5105876331,Weightmans LLP Solicitors,"£3,914.75"
Manchester City Council,Chief Executives,Legal Fees,12-Jun-23,5105876351,Weightmans LLP Solicitors,"£4,119.92"
Manchester City Council,Highways Services,Professional fees,12-Jun-23,5105876203,Wilde Consultants Ltd,"-£8,021.25"
Manchester City Council,Highways Services,Professional fees,12-Jun-23,5105876202,Wilde Consultants Ltd,"£6,779.25"
Manchester City Council,Adult Social Care,Grant and subscriptions awarded,12-Jun-23,5105876077,Manchester Womens Aid,"£3,333.33"
Manchester City Council,Adult Social Care,Grant and subscriptions awarded,12-Jun-23,5105876078,Manchester Womens Aid,"£3,333.37"
Manchester City Council,Corporate Services,Vehicle Costs,12-Jun-23,1908133026,Cyclescheme Ltd,£591.67
Manchester City Council,Corporate Services,Vehicle Costs,12-Jun-23,1908133021,Cyclescheme Ltd,"£1,866.67"
Manchester City Council,Corporate Services,Vehicle Costs,12-Jun-23,1908133016,Cyclescheme Ltd,"£2,233.44"
Manchester City Council,Corporate Services,Vehicle Costs,12-Jun-23,1908133020,Cyclescheme Ltd,"£3,932.49"
Manchester City Council,Chief Executives,Agency staff provision,12-Jun-23,5105876142,Liquid Personnel Ltd,"£27,907.61"
Manchester City Council,Highways Services,Payments to Sub-Contractors,12-Jun-23,5105876135,Steer Davies & Geave Limited,"£1,872.50"
Manchester City Council,Highways Services,Payments to Sub-Contractors,12-Jun-23,5105876134,Steer Davies & Geave Limited,"£2,308.75"
Manchester City Council,Chief Executives,Works and associated costs for Land and Buildings,12-Jun-23,5105876190,Ryder Architecture Ltd,"£1,470.00"
Manchester City Council,Chief Executives,Works and associated costs for Land and Buildings,12-Jun-23,5105876189,Ryder Architecture Ltd,"£27,388.00"
Manchester City Council,Manchester Leisure,Grant and subscriptions awarded,12-Jun-23,5105876263,Holy Innocents Church,"£2,698.00"
Manchester City Council,Hospitality + Trading Services,Vehicle Hire Costs,12-Jun-23,5105876154,Peter Douglass Platforms,"£1,400.00"
Manchester City Council,Hospitality + Trading Services,Vehicle Hire Costs,12-Jun-23,5105876156,Peter Douglass Platforms,"£1,480.00"
Manchester City Council,Hospitality + Trading Services,Vehicle Hire Costs,12-Jun-23,5105876157,Peter Douglass Platforms,"£1,702.00"
Manchester City Council,Hospitality + Trading Services,Vehicle Hire Costs,12-Jun-23,5105876155,Peter Douglass Platforms,"£2,000.00"
Manchester City Council,Adult Social Care,Third party payments relating to Voluntary Organisations,12-Jun-23,5105876309,Connect Support Ltd,"£35,000.00"
Manchester City Council,Manchester Leisure,Grant and subscriptions awarded,12-Jun-23,5105876352,Chorlton Civic Society,£500.00
Manchester City Council,Corporate Services,Heart of Manc Bid,12-Jun-23,5105875345,Heart of Manchester BID Co Ltd,"£200,000.00"
Manchester City Council,Regeneration Finance,Refuse Collection,12-Jun-23,5105876334,Restore Datashred Limited,"£4,449.35"
Manchester City Council,Childrens & Education Services,Transport Coach Hire,12-Jun-23,5105876223,Redacted Personal Information,"£7,762.50"
Manchester City Council,Childrens & Education Services,Subsistence and Conference Expenses,12-Jun-23,5105874845,Career Connect,"£62,311.76"
Manchester City Council,Manchester Leisure,Refuse Collection,12-Jun-23,5105876362,Biffa Municipal Limited,"£1,253.20"
Manchester City Council,Manchester Leisure,Refuse Collection,12-Jun-23,5105874548,Biffa Municipal Limited,"£25,441.84"
Manchester City Council,Housing Revenue Account,Council Dwelling Adaptations,12-Jun-23,5105876143,Rothwell Plumbing Services Ltd,"£15,332.84"
Manchester City Council,Housing Revenue Account,Council Dwelling Adaptations,12-Jun-23,5105876144,Rothwell Plumbing Services Ltd,"£123,315.41"
Manchester City Council,Environment and Operations,Construction Works,12-Jun-23,5105875372,Kiely Bros Ltd,"£34,767.28"
Manchester City Council,Chief Executives,Works and associated costs for Land and Buildings,12-Jun-23,5105876201,Gardiner & Theobald LLP,"£12,000.00"
Manchester City Council,Housing General Fund,Building Works,12-Jun-23,1908133195,UPS Building & Maintenance Ltd,"£9,903.73"
Manchester City Council,Adult Social Care,Rents,12-Jun-23,5105876197,T15 Consultancy Ltd,"£95,374.71"
Manchester City Council,Childrens & Education Services,Signers/Interpreters,12-Jun-23,5105876110,UK Language Solutions Ltd,£675.55
Manchester City Council,Childrens & Education Services,Payments for services,12-Jun-23,5105876306,Young Manchester,"£167,193.17"
Manchester City Council,Regeneration Finance,Removal and Storage of Furniture,12-Jun-23,5105875890,Restore PLC,£657.34
Manchester City Council,Corporate Services,Works and associated costs for Land and Buildings,12-Jun-23,5105874927,BMS Software (Northern) Ltd,"£1,350.00"
Manchester City Council,Highways Services,Professional fees,12-Jun-23,5105876147,Waterman Aspen Ltd,£870.50
Manchester City Council,Highways Services,Professional fees,12-Jun-23,5105875759,Waterman Aspen Ltd,"£3,510.00"
Manchester City Council,Highways Services,Professional fees,12-Jun-23,5105875756,Waterman Aspen Ltd,"£9,063.00"
Manchester City Council,Highways Services,Professional fees,12-Jun-23,5105876147,Waterman Aspen Ltd,"£14,529.50"
Manchester City Council,Highways Services,Professional fees,12-Jun-23,5105875758,Waterman Aspen Ltd,"£16,765.00"
Manchester City Council,Regeneration Finance,Agency staff provision,12-Jun-23,5105876153,Proventure Consulting,£975.00
Manchester City Council,Regeneration Finance,Internal Repairs and Maintenance for buildings,12-Jun-23,5105874970,EQUANS Services Limited,"£60,452.12"
Manchester City Council,Regeneration Finance,Internal Repairs and Maintenance for buildings,12-Jun-23,5105874981,EQUANS Services Limited,"£62,986.66"
Manchester City Council,Manchester Leisure,Payments to Sub-Contractors,12-Jun-23,5105876137,Greenfingers Landscape Ltd,"£11,836.54"
Manchester City Council,Manchester Leisure,Vehicle Plant Furniture and Equipment,12-Jun-23,5105876284,Stellar Network Solutions Ltd,"£1,412.50"
Manchester City Council,Corporate Services,WPS Awards,12-Jun-23,5105876046,Furniture Resource Centre Ltd,£606.39
Manchester City Council,Corporate Services,WPS Awards,12-Jun-23,5105876009,Furniture Resource Centre Ltd,£720.05
Manchester City Council,Corporate Services,WPS Awards,12-Jun-23,5105876008,Furniture Resource Centre Ltd,£868.09
Manchester City Council,Manchester Leisure,Grant and subscriptions awarded,12-Jun-23,5105876303,Whalley Range Womens Group,"£1,440.00"
Manchester City Council,Housing Revenue Account,Council Dwelling Adaptations,12-Jun-23,5105876175,Procare Shower & Bathroom Centre Lt,£741.39
Manchester City Council,Corporate Services,Professional fees,12-Jun-23,5105874967,Mace Cost Consultancy Ltd,"£6,543.00"
Manchester City Council,Regeneration Finance,External repairs and maintenance for buildings,12-Jun-23,5105876355,Access UK Ltd,£689.66
Manchester City Council,Highways Services,Professional fees,12-Jun-23,5105875145,Pell Frischmann Consultants Ltd,"-£7,176.00"
Manchester City Council,Highways Services,Professional fees,12-Jun-23,5105875148,Pell Frischmann Consultants Ltd,"-£7,176.00"
Manchester City Council,Highways Services,Professional fees,12-Jun-23,5105875147,Pell Frischmann Consultants Ltd,"£2,805.00"
Manchester City Council,Highways Services,Professional fees,12-Jun-23,5105875144,Pell Frischmann Consultants Ltd,"£12,696.00"
Manchester City Council,Corporate Services,Works and associated costs for Land and Buildings,12-Jun-23,5105875473,Pell Frischmann Consultants Ltd,"£10,000.00"
Manchester City Council,Adult Social Care,Security,12-Jun-23,5105876269,UNIQUE SPECIALIST SERVICES,"£2,964.00"
Manchester City Council,Chief Executives,Landline Telephone,12-Jun-23,5105876146,8x8 UK Ltd,"-£3,585.67"
Manchester City Council,Chief Executives,Landline Telephone,12-Jun-23,5105876145,8x8 UK Ltd,"£52,745.87"
Manchester City Council,Manchester Leisure,Compensation Payments,12-Jun-23,1908133250,Bond Turner Solicitors,"£5,750.00"
Manchester City Council,Corporate Services,Works and associated costs for Land and Buildings,12-Jun-23,5105876186,Bam Nuttall Ltd,"£399,939.62"
Manchester City Council,Chief Executives,Counsel Costs,12-Jun-23,1908131253,DEANS COURT CHAMBERS,"£4,250.00"
Manchester City Council,Manchester Leisure,Grant and subscriptions awarded,12-Jun-23,5105876304,Manchester Carnival Together CIC,"£2,000.00"
Manchester City Council,Childrens & Education Services,Day Care Payments,12-Jun-23,5105876177,LITTLE SPROUTS DAY NURSERY,£676.40
Manchester City Council,Chief Executives,Licences Purchase,12-Jun-23,5105876151,ITS Software Systems Ltd,"£3,750.00"
Manchester City Council,Manchester Leisure,ClothsUniformLaundry,12-Jun-23,5105876130,Sants Fabrications Ltd,"£2,000.00"
Manchester City Council,Manchester Leisure,ClothsUniformLaundry,12-Jun-23,5105876132,Sants Fabrications Ltd,"£2,000.00"
Manchester City Council,Chief Executives,Examination Fees,12-Jun-23,5105876140,Toxicology UK Ltd,"£7,850.00"
Manchester City Council,Childrens Services,Building Works,12-Jun-23,5105876308,GJS (Education) Investments Limited,"£888,625.00"
Manchester City Council,Corporate Services,Works and associated costs for Land and Buildings,12-Jun-23,5105875958,Real Control Solutions Limited,"£8,000.00"
Manchester City Council,Corporate Services,Works and associated costs for Land and Buildings,12-Jun-23,5105875957,Real Control Solutions Limited,"£8,750.00"
Manchester City Council,Corporate Services,External repairs and maintenance for buildings,12-Jun-23,5105876187,Rachel Hacking Ecology Limited,£675.00
Manchester City Council,Adult Social Care,Personal needs of client,12-Jun-23,1908130471,Redacted Personal Information,"£2,371.36"
Manchester City Council,Adult Social Care,Counsel Costs,12-Jun-23,1908131247,Redacted Personal Information,£562.50
Manchester City Council,Highways Services,Compensation Payments,12-Jun-23,1908133252,Fletchers Solicitors Ltd Client Acc,£575.00
Manchester City Council,Manchester Leisure,Works and associated costs for Land and Buildings,12-Jun-23,1908128463,Go Fit Life of Science Technology,"£85,787.35"
Manchester City Council,Childrens & Education Services,Professional fees,12-Jun-23,1908130811,Redacted Personal Information,£500.00
Manchester City Council,Highways Services,Compensation Payments,12-Jun-23,1908133251,Tylers Solicitors,"£2,014.50"
Manchester City Council,Chief Executives,Construction Works,12-Jun-23,1908132216,United Utilities Water Ltd,"£6,528.00"
Manchester City Council,Manchester Leisure,Special Event,13-Jun-23,5105876316,Showmed,"£1,961.13"
Manchester City Council,Adult Social Care,Personal needs of client,13-Jun-23,5105876435,Tunstall Healthcare (UK) Ltd,"£2,847.00"
Manchester City Council,Libraries and Theatres,Works and associated costs for Land and Buildings,13-Jun-23,5105876330,Eversheds Llp,"£1,815.00"
Manchester City Council,Adult Social Care,Supported Accommodation,13-Jun-23,5105876291,Prism Medical UK Carefree Division,£619.51
Manchester City Council,Housing Revenue Account,West Gorton Mgmt Fee,13-Jun-23,5105876412,The Guinness Partnership Ltd,"-£16,666.00"
Manchester City Council,Adult Social Care,Rents,13-Jun-23,5105876508,Johnnie Johnson Housing,"£1,976.58"
Manchester City Council,Corporate Services,Fees,13-Jun-23,1908130519,Marston Group Limited,"£11,418.80"
Manchester City Council,Corporate Services,Fees,13-Jun-23,1908131221,Marston Group Limited,"£20,662.25"
Manchester City Council,Corporate Services,Fees,13-Jun-23,1908131221,Marston Group Limited,"-£20,662.25"
Manchester City Council,Corporate Services,Fees,13-Jun-23,1908130519,Marston Group Limited,"-£11,418.80"
Manchester City Council,Corporate Services,Transport Taxis,13-Jun-23,1908134428,Street Cars,"£5,000.00"
Manchester City Council,Corporate Services,Transport Taxis,13-Jun-23,1908134429,Street Cars,"£5,000.00"
Manchester City Council,Corporate Services,Transport Taxis,13-Jun-23,1908134427,Street Cars,"£5,375.40"
Manchester City Council,Corporate Services,Transport Taxis,13-Jun-23,1908134430,Street Cars,"£9,890.90"
Manchester City Council,Chief Executives,Agency staff provision,13-Jun-23,5105876562,Adecco Uk Ltd,"£2,065.70"
Manchester City Council,Manchester Leisure,Storage Costs,13-Jun-23,5105876450,Master Moves Ltd,£839.57
Manchester City Council,Manchester Leisure,Removal and Storage of Furniture,13-Jun-23,5105876370,Master Moves Ltd,£941.63
Manchester City Council,Chief Executives,Agency staff provision,13-Jun-23,5105876650,Eden Brown Synergy,"£26,355.28"
Manchester City Council,Chief Executives,Agency staff provision,13-Jun-23,5105876492,Search Consultancy Ltd,"£2,661.84"
Manchester City Council,Childrens & Education Services,Transport Taxis,13-Jun-23,5105876322,M Travel,"£29,115.00"
Manchester City Council,Adult Social Care,Third party payments relating to Voluntary Organisations,13-Jun-23,5105876503,LGBT Foundation,"£10,000.00"
Manchester City Council,Adult Social Care,Catering Provisions,13-Jun-23,1908134468,Brake Bros Foodservice Ltd,£501.61
Manchester City Council,Highways Services,Building Materials for direct delivery,13-Jun-23,5105876494,TARMAC,£850.72
Manchester City Council,Highways Services,Building Materials for direct delivery,13-Jun-23,5105876479,TARMAC,"£1,496.69"
Manchester City Council,Manchester Leisure,Payments to Sub-Contractors,13-Jun-23,5105876480,Arboricultural Services Treework,"£2,080.00"
Manchester City Council,Adult Social Care,Payments for services,13-Jun-23,5105875524,Big Life Centres,"£238,508.00"
Manchester City Council,Childrens & Education Services,Signers/Interpreters,13-Jun-23,5105876372,Language Line Ltd,"£4,132.65"
Manchester City Council,Regeneration Finance,Professional fees,13-Jun-23,5105876371,Lambert Smith Hampton,"£3,000.00"
Manchester City Council,Childrens & Education Services,Third party payments relating to Voluntary Organisations,13-Jun-23,5105875826,Central Mcr Uni Hospital t/a,"£62,500.00"
Manchester City Council,Childrens & Education Services,Third party payments relating to Voluntary Organisations,13-Jun-23,5105875827,Central Mcr Uni Hospital t/a,"£353,447.09"
Manchester City Council,Adult Social Care,Third party payments to Health Authority,13-Jun-23,5105875828,Central Mcr Uni Hospital t/a,"£9,121.75"
Manchester City Council,Adult Social Care,Third party payments to Health Authority,13-Jun-23,5105875829,Central Mcr Uni Hospital t/a,"£47,918.25"
Manchester City Council,Adult Social Care,Third party payments to Health Authority,13-Jun-23,5105875825,Central Mcr Uni Hospital t/a,"£253,500.00"
Manchester City Council,Adult Social Care,Third party payments to Health Authority,13-Jun-23,5105875830,Central Mcr Uni Hospital t/a,"£2,922,242.25"
Manchester City Council,Adult Social Care,Payments for services,13-Jun-23,5105874934,Brook,"£44,851.65"
Manchester City Council,Manchester Leisure,Grant and subscriptions awarded,13-Jun-23,5105876408,Whalley Range Forum,"£2,000.00"
Manchester City Council,Childrens & Education Services,Internal Repairs and Maintenance for buildings,13-Jun-23,5105876519,Manchester School Services Limited,£503.80
Manchester City Council,Childrens & Education Services,Internal Repairs and Maintenance for buildings,13-Jun-23,5105876517,Manchester School Services Limited,£796.60
Manchester City Council,Childrens & Education Services,Internal Repairs and Maintenance for buildings,13-Jun-23,5105876514,Manchester School Services Limited,"£2,954.48"
Manchester City Council,Childrens & Education Services,Gas,13-Jun-23,5105876518,Manchester School Services Limited,"£27,414.83"
Manchester City Council,Childrens & Education Services,Gas,13-Jun-23,5105876518,Manchester School Services Limited,"£52,603.12"
Manchester City Council,Childrens & Education Services,Private Finance and Public Private partnership initiatives,13-Jun-23,5105876373,Manchester School Services Limited,"£7,284.36"
Manchester City Council,Chief Executives,Printing,13-Jun-23,5105876511,Chapel Press Ltd,"£1,595.00"
Manchester City Council,Housing Revenue Account,Council Dwelling Adaptations,13-Jun-23,5105876515,P Casey & Co Ltd,"£174,109.90"
Manchester City Council,Manchester Leisure,Vehicle contract hire and leases,13-Jun-23,5105876667,T.H. Horn Ltd,£625.00
Manchester City Council,Manchester Leisure,Vehicle contract hire and leases,13-Jun-23,5105876668,T.H. Horn Ltd,£625.00
Manchester City Council,Manchester Leisure,Payments to Sub-Contractors,13-Jun-23,5105876661,Community Security (North West),"£9,919.60"
Manchester City Council,Manchester Leisure,Security,13-Jun-23,5105875702,Community Security (North West),"£1,886.40"
Manchester City Council,Manchester Leisure,Security,13-Jun-23,5105875695,Community Security (North West),"£4,287.79"
Manchester City Council,Housing Revenue Account,Works and associated costs for Land and Buildings,13-Jun-23,5105876392,Rowlinson Constructions Ltd,"£566,374.59"
Manchester City Council,Chief Executives,Equipment,13-Jun-23,5105876328,Bennett Workplace Solutions Ltd,£841.99
Manchester City Council,Corporate Services,Fees,13-Jun-23,1908130467,Newlyn Plc,"£2,059.36"
Manchester City Council,Corporate Services,Fees,13-Jun-23,1908131209,Newlyn Plc,"£20,324.77"
Manchester City Council,Corporate Services,Fees,13-Jun-23,1908131208,Newlyn Plc,"£26,645.59"
Manchester City Council,Corporate Services,Fees,13-Jun-23,1908131208,Newlyn Plc,"-£26,645.59"
Manchester City Council,Corporate Services,Fees,13-Jun-23,1908131209,Newlyn Plc,"-£20,324.77"
Manchester City Council,Corporate Services,Fees,13-Jun-23,1908130467,Newlyn Plc,"-£2,059.36"
Manchester City Council,Adult Social Care,Equipment,13-Jun-23,5105876415,Drive Devilbiss Healthcare Ltd,"£1,770.00"
Manchester City Council,Chief Executives,Funeral and coroner related services,13-Jun-23,5105876470,Redacted Personal Information,"£2,830.70"
Manchester City Council,Chief Executives,Funeral and coroner related services,13-Jun-23,5105876439,Redacted Personal Information,"£3,600.00"
Manchester City Council,Chief Executives,Counsel Costs,13-Jun-23,1908130529,18 St John Street Chambers,£650.00
Manchester City Council,Chief Executives,Legal Fees,13-Jun-23,5105876489,Russell & Russell Solicitors LLP,"£1,015.80"
Manchester City Council,Chief Executives,Legal Fees,13-Jun-23,5105876490,Russell & Russell Solicitors LLP,"£1,300.00"
Manchester City Council,Chief Executives,Legal Fees,13-Jun-23,5105876531,Russell & Russell Solicitors LLP,"£1,894.70"
Manchester City Council,Chief Executives,Legal Fees,13-Jun-23,5105876532,Russell & Russell Solicitors LLP,"£1,942.58"
Manchester City Council,Chief Executives,Legal Fees,13-Jun-23,5105876533,Russell & Russell Solicitors LLP,"£2,057.14"
Manchester City Council,Chief Executives,Legal Fees,13-Jun-23,5105876534,Russell & Russell Solicitors LLP,"£2,752.75"
Manchester City Council,Chief Executives,Legal Fees,13-Jun-23,5105876536,Russell & Russell Solicitors LLP,"£3,377.70"
Manchester City Council,Chief Executives,Legal Fees,13-Jun-23,5105876537,Russell & Russell Solicitors LLP,"£3,829.42"
Manchester City Council,Regeneration Finance,Professional fees,13-Jun-23,5105876301,Jacobs UK Ltd,"£50,600.00"
Manchester City Council,Adult Social Care,Counsel Costs,13-Jun-23,5105876542,Outer Temple Chambers,"£1,167.79"
Manchester City Council,Corporate Services,Fees,13-Jun-23,1908130363,Bristow & Sutor,"£4,579.15"
Manchester City Council,Corporate Services,Fees,13-Jun-23,1908130363,Bristow & Sutor,"-£4,579.15"
Manchester City Council,Chief Executives,Compensation Payments,13-Jun-23,1908114341,Weightmans LLP Solicitors,£750.00
Manchester City Council,Chief Executives,Compensation Payments,13-Jun-23,1908114340,Weightmans LLP Solicitors,£983.50
Manchester City Council,Chief Executives,Compensation Payments,13-Jun-23,1908114339,Weightmans LLP Solicitors,"£45,316.00"
Manchester City Council,Chief Executives,Legal Fees,13-Jun-23,5105876310,Weightmans LLP Solicitors,£732.25
Manchester City Council,Chief Executives,Legal Fees,13-Jun-23,5105876404,Weightmans LLP Solicitors,£750.75
Manchester City Council,Chief Executives,Legal Fees,13-Jun-23,1907991243,Weightmans LLP Solicitors,£757.50
Manchester City Council,Chief Executives,Legal Fees,13-Jun-23,5105876405,Weightmans LLP Solicitors,£817.00
Manchester City Council,Chief Executives,Legal Fees,13-Jun-23,5105876406,Weightmans LLP Solicitors,£991.50
Manchester City Council,Chief Executives,Legal Fees,13-Jun-23,5105876402,Weightmans LLP Solicitors,"£2,602.50"
Manchester City Council,Chief Executives,Legal Fees,13-Jun-23,5105875981,Weightmans LLP Solicitors,"£3,029.50"
Manchester City Council,Chief Executives,Legal Fees,13-Jun-23,5105876403,Weightmans LLP Solicitors,"£3,376.75"
Manchester City Council,Corporate Services,Profit Recovered,13-Jun-23,1908133263,Weightmans LLP Solicitors,"£1,712.50"
Manchester City Council,Corporate Services,Profit Recovered,13-Jun-23,1908133264,Weightmans LLP Solicitors,"£4,410.42"
Manchester City Council,Adult Social Care,Third party payments relating to Voluntary Organisations,13-Jun-23,5105876484,Manchester Womens Aid,"£6,340.66"
Manchester City Council,Corporate Services,Works and associated costs for Land and Buildings,13-Jun-23,5105876512,Rider Levett Bucknall UK Ltd,"£15,400.00"
Manchester City Council,Chief Executives,Counsel Costs,13-Jun-23,1908131222,Redacted Personal Information,£900.00
Manchester City Council,Chief Executives,Storage Costs,13-Jun-23,5105876560,Oasis UK formerly Box-It (NW),£824.91
Manchester City Council,Chief Executives,Professional fees,13-Jun-23,1908130475,Redacted Personal Information,£640.04
Manchester City Council,Highways Services,Building Materials for direct delivery,13-Jun-23,5105876642,Ecomix Concrete Ltd,"£1,200.00"
Manchester City Council,Regeneration Finance,Third party payments relating to Voluntary Organisations,13-Jun-23,5105876473,Impact For All,"£6,285.00"
Manchester City Council,Highways Services,Building Materials for direct delivery,13-Jun-23,5105876666,Benchmark Building Supplies Ltd,£878.91
Manchester City Council,Highways Services,Purchase of stores for re-distribution,13-Jun-23,5105876664,Benchmark Building Supplies Ltd,£628.32
Manchester City Council,Manchester Leisure,Testing Fees,13-Jun-23,5105876427,County Scientific Services,"£2,080.00"
Manchester City Council,Childrens & Education Services,Professional fees,13-Jun-23,5105876505,Greater Manchester Chamber of,"£1,600.00"
Manchester City Council,Childrens & Education Services,Professional fees,13-Jun-23,5105876434,Alpha Biolaboratories Limited,£863.50
Manchester City Council,Highways Services,Payments to Sub-Contractors,13-Jun-23,5105876003,Winter Service Solutions Ltd,"£9,980.00"
Manchester City Council,Childrens & Education Services,Third party payments to other Local Authorities,13-Jun-23,5105876410,New Bridge School,"£253,359.51"
Manchester City Council,Housing General Fund,Capital Receipts,13-Jun-23,1908130821,Redrow Homes Lancashire,"£18,600.00"
Manchester City Council,Adult Social Care,Stationery,13-Jun-23,5105876645,Banner Group Limited,£501.84
Manchester City Council,Adult Social Care,Stationery,13-Jun-23,5105876205,Banner Group Limited,£714.41
Manchester City Council,Childrens & Education Services,Professional fees,13-Jun-23,5105876502,Forensic Testing Service Ltd,"£1,837.80"
Manchester City Council,Childrens & Education Services,Professional fees,13-Jun-23,5105876472,Forensic Testing Service Ltd,"£2,284.20"
Manchester City Council,Corporate Services,Fees,13-Jun-23,1908126776,CDER GROUP LIMITED,£712.05
Manchester City Council,Corporate Services,Fees,13-Jun-23,1908130828,CDER GROUP LIMITED,"£1,057.26"
Manchester City Council,Corporate Services,Fees,13-Jun-23,1908130465,CDER GROUP LIMITED,"£2,001.88"
Manchester City Council,Corporate Services,Fees,13-Jun-23,1908130846,CDER GROUP LIMITED,"£11,834.56"
Manchester City Council,Corporate Services,Fees,13-Jun-23,1908130846,CDER GROUP LIMITED,"-£11,834.56"
Manchester City Council,Corporate Services,Fees,13-Jun-23,1908130465,CDER GROUP LIMITED,"-£2,001.88"
Manchester City Council,Corporate Services,Fees,13-Jun-23,1908130828,CDER GROUP LIMITED,"-£1,057.26"
Manchester City Council,Corporate Services,Off Street car parki,13-Jun-23,1908126776,CDER GROUP LIMITED,-£712.05
Manchester City Council,Adult Social Care,Rents,13-Jun-23,5105876554,Eeven Homes Ltd.,"£18,120.00"
Manchester City Council,Manchester Leisure,Training and Development,13-Jun-23,5105876163,Break into Business Ltd,"£1,676.40"
Manchester City Council,Adult Social Care,Rents,13-Jun-23,5105876382,District Homes Cic,"£8,166.87"
Manchester City Council,Adult Social Care,Rents,13-Jun-23,5105876460,District Homes Cic,"£59,491.07"
Manchester City Council,Regeneration Finance,Cleaning Equipment and Materials,13-Jun-23,5105876446,Arrow County Supplies,-£884.83
Manchester City Council,Regeneration Finance,Cleaning Equipment and Materials,13-Jun-23,5105876466,Arrow County Supplies,£884.83
Manchester City Council,Regeneration Finance,Internal Repairs and Maintenance for buildings,13-Jun-23,5105876496,EQUANS Services Limited,"£222,462.41"
Manchester City Council,Manchester Leisure,Special Event,13-Jun-23,5105876383,Beat Bazaar Projects Ltd,"£8,000.00"
Manchester City Council,Chief Executives,Printing,13-Jun-23,5105876457,Impression (Bolton) Ltd,£872.00
Manchester City Council,Chief Executives,Printing,13-Jun-23,5105876456,Impression (Bolton) Ltd,£935.00
Manchester City Council,Adult Social Care,Payments for services,13-Jun-23,5105876501,FoodSync CIC,"£3,415.00"
Manchester City Council,Chief Executives,Counsel Costs,13-Jun-23,1908130526,Central Chambers,£550.00
Manchester City Council,Chief Executives,Counsel Costs,13-Jun-23,1908131217,Central Chambers,£650.00
Manchester City Council,Chief Executives,Counsel Costs,13-Jun-23,1908131219,Central Chambers,£850.00
Manchester City Council,Adult Social Care,Third party payments to Health Authority,13-Jun-23,5105874906,Manchester Active,"£110,000.00"
Manchester City Council,Adult Social Care,Third party payments to Health Authority,13-Jun-23,5105874913,Manchester Active,"£613,325.00"
Manchester City Council,Chief Executives,Legal Fees,13-Jun-23,5105876437,Waddington & Son Solicitors,£500.00
Manchester City Council,Chief Executives,Legal Fees,13-Jun-23,5105875645,Waddington & Son Solicitors,£650.00
Manchester City Council,Chief Executives,Legal Fees,13-Jun-23,5105875125,Waddington & Son Solicitors,£700.00
Manchester City Council,Chief Executives,Legal Fees,13-Jun-23,5105876407,Waddington & Son Solicitors,"£1,043.75"
Manchester City Council,Chief Executives,Legal Fees,13-Jun-23,5105876425,Waddington & Son Solicitors,"£1,716.00"
Manchester City Council,Chief Executives,Legal Fees,13-Jun-23,5105875628,Waddington & Son Solicitors,"£2,111.94"
Manchester City Council,Chief Executives,Legal Fees,13-Jun-23,5105876463,Waddington & Son Solicitors,"£2,296.02"
Manchester City Council,Chief Executives,Legal Fees,13-Jun-23,5105876386,Waddington & Son Solicitors,"£2,441.20"
Manchester City Council,Chief Executives,Legal Fees,13-Jun-23,5105874881,Waddington & Son Solicitors,"£2,631.45"
Manchester City Council,Chief Executives,Legal Fees,13-Jun-23,5105875651,Waddington & Son Solicitors,"£7,201.00"
Manchester City Council,Corporate Services,Profit Recovered,13-Jun-23,1700151863,Waddington & Son Solicitors,"-£4,410.25"
Manchester City Council,Corporate Services,Profit Recovered,13-Jun-23,1700151060,Waddington & Son Solicitors,"-£4,017.92"
Manchester City Council,Corporate Services,Profit Recovered,13-Jun-23,1700151062,Waddington & Son Solicitors,"-£3,025.00"
Manchester City Council,Corporate Services,Profit Recovered,13-Jun-23,1700151063,Waddington & Son Solicitors,"-£2,243.75"
Manchester City Council,Corporate Services,Profit Recovered,13-Jun-23,1700151061,Waddington & Son Solicitors,"-£2,075.00"
Manchester City Council,Corporate Services,Profit Recovered,13-Jun-23,1700151861,Waddington & Son Solicitors,"-£2,067.50"
Manchester City Council,Corporate Services,Profit Recovered,13-Jun-23,1700151862,Waddington & Son Solicitors,"-£2,055.00"
Manchester City Council,Corporate Services,Profit Recovered,13-Jun-23,1700151064,Waddington & Son Solicitors,"-£1,956.25"
Manchester City Council,Corporate Services,Profit Recovered,13-Jun-23,1700151058,Waddington & Son Solicitors,"-£1,750.00"
Manchester City Council,Corporate Services,Profit Recovered,13-Jun-23,1700151059,Waddington & Son Solicitors,"-£1,712.50"
Manchester City Council,Corporate Services,Profit Recovered,13-Jun-23,1908133262,Waddington & Son Solicitors,"£4,017.92"
Manchester City Council,Corporate Services,Professional fees,13-Jun-23,1700151868,Waddington & Son Solicitors,"-£1,075.00"
Manchester City Council,Corporate Services,Professional fees,13-Jun-23,1700151867,Waddington & Son Solicitors,-£875.00
Manchester City Council,Corporate Services,Professional fees,13-Jun-23,1908134416,Waddington & Son Solicitors,£875.00
Manchester City Council,Corporate Services,Professional fees,13-Jun-23,1908134418,Waddington & Son Solicitors,"£1,075.00"
Manchester City Council,Chief Executives,Counsel Costs,13-Jun-23,1908130466,Redacted Personal Information,£812.50
Manchester City Council,Childrens & Education Services,Payments for services,13-Jun-23,5105876397,Thompsons Academy Ltd,"£38,754.42"
Manchester City Council,Chief Executives,Training and Development,13-Jun-23,5105876431,Premier People Solutions Ltd,£550.00
Manchester City Council,Corporate Services,Professional fees,13-Jun-23,5105876173,Pick Everard,"£5,364.00"
Manchester City Council,Adult Social Care,Payments for services,13-Jun-23,5105875919,Slimming World,"£8,520.00"
Manchester City Council,Chief Executives,Counsel Costs,13-Jun-23,1908130469,Redacted Personal Information,£850.00
Manchester City Council,Insurance Fund,Med Mal Insurance,13-Jun-23,5105876497,Redacted Personal Information,"£23,708.16"
Manchester City Council,Adult Social Care,Personal needs of client,13-Jun-23,5105876323,AAT (GB) Ltd,"£2,490.00"
Manchester City Council,Chief Executives,Agency staff provision,13-Jun-23,5105876543,Isherwood Legal Limited,"£1,000.00"
Manchester City Council,Adult Social Care,Third party payments relating to Voluntary Organisations,13-Jun-23,5105876454,Life By Ringley,£600.00
Manchester City Council,Adult Social Care,Third party payments relating to Voluntary Organisations,13-Jun-23,5105876440,Life By Ringley,"£3,101.59"
Manchester City Council,Adult Social Care,Third party payments relating to Voluntary Organisations,13-Jun-23,5105876451,Life By Ringley,"£3,101.59"
Manchester City Council,Adult Social Care,Third party payments relating to Voluntary Organisations,13-Jun-23,5105876452,Life By Ringley,"£3,101.59"
Manchester City Council,Adult Social Care,Third party payments relating to Voluntary Organisations,13-Jun-23,5105876453,Life By Ringley,"£3,101.59"
Manchester City Council,Chief Executives,Grant and subscriptions awarded,13-Jun-23,5105876471,Factory Trust,"£250,000.00"
Manchester City Council,Chief Executives,Counsel Costs,13-Jun-23,1908131259,DEANS COURT CHAMBERS,£750.00
Manchester City Council,Chief Executives,Counsel Costs,13-Jun-23,1908131255,DEANS COURT CHAMBERS,"£9,500.00"
Manchester City Council,Adult Social Care,Training and Development,13-Jun-23,5105876329,Calm Training Limted,£755.00
Manchester City Council,Chief Executives,Payments to Sub-Contractors,13-Jun-23,5105876325,Redacted Personal Information,£552.00
Manchester City Council,Childrens & Education Services,Grant Payments,13-Jun-23,1908133249,Paypoint,"£8,535.83"
Manchester City Council,Highways Services,Compensation Payments,13-Jun-23,1908130459,J F LAW LTD,"£3,000.00"
Manchester City Council,Highways Services,Legal Fees,13-Jun-23,1908130459,J F LAW LTD,"£4,501.00"
Manchester City Council,Childrens & Education Services,Professional fees,13-Jun-23,5105876524,The School of Sign Language,"£3,325.00"
Manchester City Council,Housing Revenue Account,Council Dwelling Adaptations,13-Jun-23,5105876552,Knowsley Lift Services Limited,"£62,105.48"
Manchester City Council,Childrens & Education Services,Professional fees,13-Jun-23,5105876436,The Movez Movement,"£2,697.50"
Manchester City Council,Chief Executives,Training and Development,13-Jun-23,5105876367,Action Sustainability,"£1,725.00"
Manchester City Council,Manchester Leisure,Special Event,13-Jun-23,5105876424,Redacted Personal Information,"£1,000.00"
Manchester City Council,Chief Executives,Professional fees,13-Jun-23,1908130423,Redacted Personal Information,"£2,250.95"
Manchester City Council,Chief Executives,Counsel Costs,13-Jun-23,1908130492,Redacted Personal Information,£833.33
Manchester City Council,Chief Executives,Professional fees,13-Jun-23,1908131234,CY4OR Legal Limited,£864.00
Manchester City Council,Manchester Leisure,Electricity,13-Jun-23,1908131220,E,£532.15
Manchester City Council,Chief Executives,Professional fees,13-Jun-23,1908128255,Expert Psychology Consultancy Ltd,£748.80
Manchester City Council,Chief Executives,Professional fees,13-Jun-23,1908128260,Expert Psychology Consultancy Ltd,£982.80
Manchester City Council,Chief Executives,Professional fees,13-Jun-23,1908128465,Expert Psychology Consultancy Ltd,"£2,340.00"
Manchester City Council,Adult Social Care,Equipment,13-Jun-23,1908130781,Redacted Personal Information,£940.39
Manchester City Council,Chief Executives,Counsel Costs,13-Jun-23,1908128470,Redacted Personal Information,£700.00
Manchester City Council,Chief Executives,Professional fees,13-Jun-23,1908130554,Redacted Personal Information,"£1,300.00"
Manchester City Council,Highways Services,Compensation Payments,13-Jun-23,1908130818,Redacted Personal Information,"£4,000.00"
Manchester City Council,Chief Executives,Counsel Costs,13-Jun-23,1908130783,Redacted Personal Information,£750.00
Manchester City Council,Housing General Fund,Building Works,13-Jun-23,1908132217,Redacted Personal Information,"£5,000.00"
Manchester City Council,Chief Executives,Works and associated costs for Land and Buildings,13-Jun-23,1908134477,Shoosmiths LLP,"£2,400.00"
Manchester City Council,Chief Executives,Counsel Costs,13-Jun-23,1908128837,Redacted Personal Information,£650.00
Manchester City Council,Chief Executives,Counsel Costs,13-Jun-23,1908128578,Redacted Personal Information,£950.00
Manchester City Council,Housing General Fund,Building Works,13-Jun-23,1908130558,Terry Group,"£9,203.00"
Manchester City Council,Housing General Fund,Building Works,13-Jun-23,1908130789,Terry Group,"£13,999.00"
Manchester City Council,Childrens & Education Services,Professional fees,13-Jun-23,1908128755,The Key Support Services Limited,£530.00
Manchester City Council,Childrens & Education Services,Professional fees,13-Jun-23,1908074818,University of Bolton Finance Office,£780.00
Manchester City Council,Corporate Services,Legal Fees,14-Jun-23,5105876620,Eversheds Llp,"£13,791.70"
Manchester City Council,Childrens & Education Services,Payments for services,14-Jun-23,5105876568,Sense,"£3,414.97"
Manchester City Council,Regeneration Finance,Furniture,14-Jun-23,5105876841,BCL,£997.52
Manchester City Council,Chief Executives,Training and Development,14-Jun-23,5105876812,Salford GIS Ltd,"£1,400.00"
Manchester City Council,Highways Services,Building Materials for direct delivery,14-Jun-23,5105876259,Marshalls Mono Ltd,£995.00
Manchester City Council,Manchester Leisure,Contract Cleaning External,14-Jun-23,5105876535,Clearview Event Services Limited,"£20,590.00"
Manchester City Council,Childrens & Education Services,Professional fees,14-Jun-23,5105874935,Mace Ltd,"£2,811.00"
Manchester City Council,Chief Executives,Agency staff provision,14-Jun-23,5105876653,Adecco Uk Ltd,"£1,685.40"
Manchester City Council,Manchester Leisure,Works and associated costs for Land and Buildings,14-Jun-23,5105876915,Clean-Up UK Limited,£600.00
Manchester City Council,Manchester Leisure,Works and associated costs for Land and Buildings,14-Jun-23,5105876914,Clean-Up UK Limited,£960.00
Manchester City Council,Hospitality + Trading Services,Cash Collection,14-Jun-23,1908131291,G4S Cash Solutions (Uk) Ltd,"£1,042.87"
Manchester City Council,Chief Executives,Funeral and coroner related services,14-Jun-23,5105876699,Uni Hospital of South Mcr,"£3,632.00"
Manchester City Council,Chief Executives,Examination Fees,14-Jun-23,5105876698,Uni Hospital of South Mcr,"£1,505.00"
Manchester City Council,Chief Executives,Funeral and coroner related services,14-Jun-23,5105876738,Northern Care Alliance NHS FT,"£3,699.00"
Manchester City Council,Adult Social Care,Third party payments to Health Authority,14-Jun-23,5105876756,Central Mcr Uni Hospital t/a,"£191,957.25"
Manchester City Council,Childrens & Education Services,Payments for services,14-Jun-23,5105876734,Irwell Valley Housing Association,"£5,254.28"
Manchester City Council,Regeneration Finance,Car Parking Permits,14-Jun-23,5105876530,Manchester Airport Plc,£900.23
Manchester City Council,Highways Services,Payments to Sub-Contractors,14-Jun-23,5105876430,Transport for Greater Manchester,"£1,393.01"
Manchester City Council,Childrens & Education Services,Professional fees,14-Jun-23,5105876718,Manchester Settlement,£650.00
Manchester City Council,Manchester Leisure,Grant and subscriptions awarded,14-Jun-23,5105876844,4CT Limited,£535.00
Manchester City Council,Manchester Leisure,Supporting People Payments,14-Jun-23,5105876690,4CT Limited,£500.00
Manchester City Council,Childrens & Education Services,Hire of Premises,14-Jun-23,5105876585,Timpson Ltd,£584.00
Manchester City Council,Adult Social Care,Rents,14-Jun-23,5105876627,Amco Management,"£38,008.84"
Manchester City Council,Manchester Leisure,Goods purchased for resale in Council outlets,14-Jun-23,5105876863,Cornflower Ltd,£688.00
Manchester City Council,Manchester Leisure,Goods purchased for resale in Council outlets,14-Jun-23,5105876864,Cornflower Ltd,£755.00
Manchester City Council,Childrens & Education Services,Third party payments to other Local Authorities,14-Jun-23,5105876735,Ashton On Mersey High School,"£2,105.00"
Manchester City Council,Adult Social Care,Bed & Breakfast Acc,14-Jun-23,5105876564,Redacted Personal Information,"£5,114.00"
Manchester City Council,Adult Social Care,Bed & Breakfast Acc,14-Jun-23,5105876626,Redacted Personal Information,"£11,872.00"
Manchester City Council,Adult Social Care,Personal needs of client,14-Jun-23,5105876353,Hoist & Shower Chair Company,"£2,935.00"
Manchester City Council,Manchester Leisure,Catering,14-Jun-23,5105876567,MIC & Didsbury Mosque,£540.00
Manchester City Council,Chief Executives,Grant Payments,14-Jun-23,5105876760,Suffolk county council,"£1,330.00"
Manchester City Council,Chief Executives,Postage,14-Jun-23,5105876570,Whistl North Ltd,"£6,176.68"
Manchester City Council,Chief Executives,Funeral and coroner related services,14-Jun-23,5105876700,Redacted Personal Information,"£3,000.00"
Manchester City Council,Chief Executives,Legal Fees,14-Jun-23,5105876538,Russell & Russell Solicitors LLP,"£4,079.50"
Manchester City Council,Chief Executives,Legal Fees,14-Jun-23,5105876539,Russell & Russell Solicitors LLP,"£5,139.25"
Manchester City Council,Chief Executives,Legal Fees,14-Jun-23,5105876540,Russell & Russell Solicitors LLP,"£5,517.08"
Manchester City Council,Chief Executives,Legal Fees,14-Jun-23,5105876581,Russell & Russell Solicitors LLP,"£9,161.20"
Manchester City Council,Manchester Leisure,Training and Development,14-Jun-23,5105876829,Institute of Licensing (Events) Ltd,£816.00
Manchester City Council,Chief Executives,Publications,14-Jun-23,5105876619,Thompson Reuters (Professional),"£25,755.21"
Manchester City Council,Highways Services,Payments to Sub-Contractors,14-Jun-23,5105876365,Northern Marking Limited,"£2,572.15"
Manchester City Council,Highways Services,Payments to Sub-Contractors,14-Jun-23,5105876364,Northern Marking Limited,"£10,334.74"
Manchester City Council,Environment and Operations,Construction Works,14-Jun-23,5105875532,Wilde Consultants Ltd,"£1,095.19"
Manchester City Council,Environment and Operations,Construction Works,14-Jun-23,5105875511,Wilde Consultants Ltd,"£1,733.63"
Manchester City Council,Highways Services,Professional fees,14-Jun-23,5105876487,Wilde Consultants Ltd,"£4,968.00"
Manchester City Council,Highways Services,Professional fees,14-Jun-23,5105876488,Wilde Consultants Ltd,"£6,480.00"
Manchester City Council,Chief Executives,Funeral and coroner related services,14-Jun-23,5105876743,Kane Funeral Services,"£1,962.72"
Manchester City Council,Chief Executives,Funeral and coroner related services,14-Jun-23,5105876742,Kane Funeral Services,"£7,700.00"
Manchester City Council,Chief Executives,Funeral and coroner related services,14-Jun-23,5105876744,Kane Funeral Services,"£8,910.00"
Manchester City Council,Manchester Leisure,Goods purchased for resale in Council outlets,14-Jun-23,5105876819,Stone Marketing Ltd,£968.51
Manchester City Council,Chief Executives,Agency staff provision,14-Jun-23,5105876660,Ashberry Recruitment Ltd,"£1,574.64"
Manchester City Council,Childrens & Education Services,Third party payments to other Local Authorities,14-Jun-23,5105876825,Heyes Lane Primary School,"£4,043.00"
Manchester City Council,Childrens & Education Services,Professional fees,14-Jun-23,5105876426,One Education Ltd,"£1,518.00"
Manchester City Council,Adult Social Care,Bed & Breakfast Acc,14-Jun-23,5105876731,Redacted Personal Information,"£16,825.00"
Manchester City Council,Manchester Leisure,ClothsUniformLaundry,14-Jun-23,5105876648,Willfab Ltd,£560.00
Manchester City Council,Chief Executives,Agency staff provision,14-Jun-23,5105876847,Cadence Resourcing Ltd,"£47,314.45"
Manchester City Council,Chief Executives,Agency staff provision,14-Jun-23,5105876846,Cadence Resourcing Ltd,"£48,984.71"
Manchester City Council,Manchester Leisure,Contract Cleaning External,14-Jun-23,5105876575,Biffa Municipal Limited,"£2,100.00"
Manchester City Council,Corporate Services,Refuse Collection,14-Jun-23,5105876559,Biffa Municipal Limited,"£1,319.40"
Manchester City Council,Hospitality + Trading Services,Refuse Collection,14-Jun-23,5105876558,Biffa Municipal Limited,"£13,764.20"
Manchester City Council,Manchester Leisure,Building Materials for direct delivery,14-Jun-23,5105876848,One Green World,"£5,000.00"
Manchester City Council,Corporate Services,Elec Car L-VAT contr,14-Jun-23,1908134424,Northumbria Healthcare NHS FT,£673.27
Manchester City Council,Corporate Services,Elec Car L-VAT contr,14-Jun-23,1908134459,Northumbria Healthcare NHS FT,"£1,210.41"
Manchester City Council,Corporate Services,Elec Car Lease,14-Jun-23,1908134424,Northumbria Healthcare NHS FT,"£7,451.30"
Manchester City Council,Corporate Services,Elec Car Lease,14-Jun-23,1908134459,Northumbria Healthcare NHS FT,"£13,461.58"
Manchester City Council,Housing Revenue Account,Council Dwelling Adaptations,14-Jun-23,5105876838,Rothwell Plumbing Services Ltd,"£12,993.25"
Manchester City Council,Housing Revenue Account,Council Dwelling Adaptations,14-Jun-23,5105876839,Rothwell Plumbing Services Ltd,"£16,805.48"
Manchester City Council,Housing Revenue Account,Council Dwelling Adaptations,14-Jun-23,5105876840,Rothwell Plumbing Services Ltd,"£66,688.47"
Manchester City Council,Adult Social Care,Personal needs of client,14-Jun-23,5105876662,Doro Care Ltd,£600.00
Manchester City Council,Adult Social Care,Personal needs of client,14-Jun-23,5105876665,Doro Care Ltd,"£5,670.00"
Manchester City Council,Environment and Operations,Construction Works,14-Jun-23,5105875122,Balfour Beatty Living Places Ltd,"£2,495.73"
Manchester City Council,Environment and Operations,Construction Works,14-Jun-23,5105875123,Balfour Beatty Living Places Ltd,"£7,171.19"
Manchester City Council,Environment and Operations,Construction Works,14-Jun-23,5105875851,Balfour Beatty Living Places Ltd,"£9,586.02"
Manchester City Council,Hospitality + Trading Services,Vehicle Fuel Costs,14-Jun-23,5105876625,Standard Fuels Oils,"£10,733.00"
Manchester City Council,Hospitality + Trading Services,Vehicle Fuel Costs,14-Jun-23,5105876563,Standard Fuels Oils,"£15,991.10"
Manchester City Council,Hospitality + Trading Services,Vehicle Fuel Costs,14-Jun-23,5105876623,Standard Fuels Oils,"£16,317.38"
Manchester City Council,Hospitality + Trading Services,Vehicle Fuel Costs,14-Jun-23,5105876057,Standard Fuels Oils,"£21,665.63"
Manchester City Council,Childrens & Education Services,Payments for services,14-Jun-23,5105876565,Redacted Personal Information,"£10,474.00"
Manchester City Council,Adult Social Care,Supported Accommodation,14-Jun-23,5105876805,Places For People Homes,"£1,225.18"
Manchester City Council,Adult Social Care,Supported Accommodation,14-Jun-23,5105876806,Places For People Homes,"£1,225.18"
Manchester City Council,Adult Social Care,Furniture,14-Jun-23,5105876708,Furniture Resource Centre Ltd,"£3,497.12"
Manchester City Council,Adult Social Care,Bed & Breakfast Acc,14-Jun-23,5105876720,Medlock House Ltd,"£7,644.00"
Manchester City Council,Adult Social Care,Security,14-Jun-23,5105876821,UNIQUE SPECIALIST SERVICES,"£1,404.00"
Manchester City Council,Adult Social Care,Third party payments relating to Voluntary Organisations,14-Jun-23,5105876657,Quays Housing,"£15,068.92"
Manchester City Council,Manchester Leisure,Professional fees,14-Jun-23,5105876414,Manchester Youth Zone - East,"£4,370.00"
Manchester City Council,Adult Social Care,External repairs and maintenance for buildings,14-Jun-23,5105876781,T F Jones Property Services Ltd,£591.80
Manchester City Council,Adult Social Care,External repairs and maintenance for buildings,14-Jun-23,5105876710,T F Jones Property Services Ltd,£681.76
Manchester City Council,Adult Social Care,External repairs and maintenance for buildings,14-Jun-23,5105876804,T F Jones Property Services Ltd,£710.16
Manchester City Council,Adult Social Care,External repairs and maintenance for buildings,14-Jun-23,5105876779,T F Jones Property Services Ltd,£949.26
Manchester City Council,Adult Social Care,Third party payments relating to Voluntary Organisations,14-Jun-23,5105876438,Life By Ringley,"£3,846.00"
Manchester City Council,Childrens & Education Services,Agency staff provision,14-Jun-23,5105876631,Staff Resources Ltd,"£2,045.00"
Manchester City Council,Childrens & Education Services,Agency staff provision,14-Jun-23,5105876416,Staff Resources Ltd,"£2,700.00"
Manchester City Council,Childrens & Education Services,Agency staff provision,14-Jun-23,5105876419,Staff Resources Ltd,"£3,217.50"
Manchester City Council,Childrens & Education Services,Agency staff provision,14-Jun-23,5105876418,Staff Resources Ltd,"£3,757.50"
Manchester City Council,Childrens & Education Services,Agency staff provision,14-Jun-23,5105876632,Staff Resources Ltd,"£4,117.50"
Manchester City Council,Childrens & Education Services,Payments for services,14-Jun-23,5105876629,Sendcode CIC,"£51,185.00"
Manchester City Council,Childrens & Education Services,Professional fees,14-Jun-23,5105876784,Liam Trippier School Improvement,£950.00
Manchester City Council,Adult Social Care,Bed & Breakfast Acc,14-Jun-23,5105876822,247Hotel.Com,"£1,613.33"
Manchester City Council,Adult Social Care,Bed & Breakfast Acc,14-Jun-23,5105876824,247Hotel.Com,"£4,050.00"
Manchester City Council,Highways Services,Payments to Sub-Contractors,14-Jun-23,5105876230,Project Centre,"£5,600.00"
Manchester City Council,Chief Executives,Licences Purchase,14-Jun-23,5105876577,ITS Software Systems Ltd,"£3,750.00"
Manchester City Council,Childrens & Education Services,Payments for services,14-Jun-23,5105876615,Care Solutions Recruitment,"£1,038.40"
Manchester City Council,Adult Social Care,RNH Permanent Pays,14-Jun-23,5105876729,NHS GREATER MANCHESTER ICB,"£973,103.99"
Manchester City Council,Adult Social Care,Payments for services,14-Jun-23,5105876807,NHS GREATER MANCHESTER ICB,"£819,000.00"
Manchester City Council,Adult Social Care,Payments for services,14-Jun-23,5105876808,NHS GREATER MANCHESTER ICB,"£819,000.00"
Manchester City Council,Adult Social Care,Payments for services,14-Jun-23,5105876810,NHS GREATER MANCHESTER ICB,"£819,000.00"
Manchester City Council,Adult Social Care,Residential Care Homes Payments,14-Jun-23,5105876801,NHS GREATER MANCHESTER ICB,"£22,555.09"
Manchester City Council,Adult Social Care,Residential Care Homes Payments,14-Jun-23,5105876832,NHS GREATER MANCHESTER ICB,"£31,084.41"
Manchester City Council,Adult Social Care,Residential Care Homes Payments,14-Jun-23,5105876761,NHS GREATER MANCHESTER ICB,"£94,112.05"
Manchester City Council,Adult Social Care,Residential Care Homes Payments,14-Jun-23,5105876835,NHS GREATER MANCHESTER ICB,"£113,328.29"
Manchester City Council,Adult Social Care,Residential Care Homes Payments,14-Jun-23,5105876728,NHS GREATER MANCHESTER ICB,"£377,621.57"
Manchester City Council,Adult Social Care,Supported Accommodation,14-Jun-23,5105876766,NHS GREATER MANCHESTER ICB,"£121,553.17"
Manchester City Council,Adult Social Care,Supported Accommodation,14-Jun-23,5105876763,NHS GREATER MANCHESTER ICB,"£208,255.63"
Manchester City Council,Adult Social Care,Third party payments to Health Authority,14-Jun-23,5105876722,NHS GREATER MANCHESTER ICB,"£73,000.00"
Manchester City Council,Adult Social Care,Rents,14-Jun-23,5105876827,NWA Housing Ltd,"£2,490.18"
Manchester City Council,Chief Executives,Examination Fees,14-Jun-23,5105876773,Toxicology UK Ltd,"£5,525.00"
Manchester City Council,Adult Social Care,Third party payments relating to Voluntary Organisations,14-Jun-23,5105876814,Beam Up Ltd,£900.00
Manchester City Council,Manchester Leisure,Special Event,14-Jun-23,5105876624,Redacted Personal Information,"£3,500.00"
Manchester City Council,Chief Executives,Professional fees,14-Jun-23,5105876656,Redacted Personal Information,"£3,800.00"
Manchester City Council,Chief Executives,Professional fees,14-Jun-23,5105876654,Redacted Personal Information,"£9,400.00"
Manchester City Council,Adult Social Care,Professional fees,14-Jun-23,5105876709,WILKYS FLOORING CONTRACTORS LTD,"£1,200.00"
Manchester City Council,Manchester Leisure,Professional fees,14-Jun-23,5105876764,SB Water & Drain Contractors Ltd,"-£1,000.00"
Manchester City Council,Manchester Leisure,Professional fees,14-Jun-23,5105876765,SB Water & Drain Contractors Ltd,"£1,000.00"
Manchester City Council,Chief Executives,Works and associated costs for Land and Buildings,14-Jun-23,5105876682,GIA North LLP,"£2,400.00"
Manchester City Council,Chief Executives,Training and Development,14-Jun-23,5105876638,Future of Greater Manchester,"£3,900.00"
Manchester City Council,Hospitality + Trading Services,Counsel Costs,14-Jun-23,1908126606,Redacted Personal Information,£500.00
Manchester City Council,Manchester Leisure,Goods purchased for resale in Council outlets,14-Jun-23,1908133233,Huddersfield Screenprinting Company,"£3,249.00"
Manchester City Council,Chief Executives,Hospitality,14-Jun-23,1908134482,Marsham Court Hotel Ltd,£788.00
Manchester City Council,Regeneration Finance,Catering,14-Jun-23,1908130812,Meat Raffle Ltd,"£3,399.50"
Manchester City Council,Childrens & Education Services,Training and Development,14-Jun-23,1908130482,Redacted Personal Information,"£18,000.00"
Manchester City Council,Adult Social Care,Rents,14-Jun-23,1908137596,Newswift Management,"£5,980.00"
Manchester City Council,Adult Social Care,Rents,14-Jun-23,1908137596,Newswift Management,"£8,217.77"
Manchester City Council,Manchester Leisure,Goods purchased for resale in Council outlets,14-Jun-23,1908133231,Redacted Personal Information,£525.00
Manchester City Council,Adult Social Care,Supported Accommodation,14-Jun-23,1908123383,Samson Security Limited,£787.45
Manchester City Council,Highways Services,Compensation Payments,14-Jun-23,1908132161,TYLERS SOLICITORS,"£2,850.00"
Manchester City Council,Regeneration Finance,Taxi Vehicle Materia,15-Jun-23,5105876916,VIP-System Ltd,"£6,142.05"
Manchester City Council,Corporate Services,Postage,15-Jun-23,5105876396,Royal Mail Group Plc,"£7,547.11"
Manchester City Council,Adult Social Care,Personal needs of client,15-Jun-23,5105876880,Astor-Bannerman (Medical) Ltd,"£1,126.00"
Manchester City Council,Corporate Services,Works and associated costs for Land and Buildings,15-Jun-23,5105876569,GVA Grimley Ltd,"£2,000.00"
Manchester City Council,Manchester Leisure,Library Materials Acquisition,15-Jun-23,1908138529,Martin-Lavell Limited,"£1,205.74"
Manchester City Council,Manchester Leisure,Hire of Equipment,15-Jun-23,5105876963,Flowbird Smart City Uk Ltd,"£1,747.37"
Manchester City Council,Manchester Leisure,Library Materials Acquisition,15-Jun-23,1908138534,Hewes & Associates,£525.00
Manchester City Council,Hospitality + Trading Services,Hire of Machinery,15-Jun-23,5105876979,R & M Developments Ltd,£858.80
Manchester City Council,Hospitality + Trading Services,Hire of Machinery,15-Jun-23,5105876982,R & M Developments Ltd,£858.80
Manchester City Council,Highways Services,Professional fees,15-Jun-23,5105875331,Mace Ltd,"£5,282.14"
Manchester City Council,Highways Services,Professional fees,15-Jun-23,5105875321,Mace Ltd,"£7,510.50"
Manchester City Council,Highways Services,Professional fees,15-Jun-23,5105875343,Mace Ltd,"£9,255.36"
Manchester City Council,Highways Services,Professional fees,15-Jun-23,5105875325,Mace Ltd,"£11,196.00"
Manchester City Council,Manchester Leisure,Library Materials Acquisition,15-Jun-23,1908138547,Askews and Holts,£603.21
Manchester City Council,Highways Services,Purchase of stores for re-distribution,15-Jun-23,5105877028,Kloeckner Metals UK,"£1,213.00"
Manchester City Council,Highways Services,Building Materials for direct delivery,15-Jun-23,5105876952,TARMAC,£611.84
Manchester City Council,Highways Services,Building Materials for direct delivery,15-Jun-23,5105876953,TARMAC,"£1,313.87"
Manchester City Council,Adult Social Care,Supported Accommodation,15-Jun-23,5105876967,Mediline Supported Living,"£214,573.96"
Manchester City Council,Adult Social Care,Supported Accommodation,15-Jun-23,5105877016,Mediline Supported Living,"£225,000.00"
Manchester City Council,Adult Social Care,Supported Accommodation,15-Jun-23,5105877015,Mediline Supported Living,"£241,469.24"
Manchester City Council,Adult Social Care,Personal needs of client,15-Jun-23,5105876884,Airborne Environmental,£596.20
Manchester City Council,Adult Social Care,Personal needs of client,15-Jun-23,5105876883,Airborne Environmental,£667.48
Manchester City Council,Adult Social Care,Payments for services,15-Jun-23,5105877004,Creative Support Ltd,"£50,810.72"
Manchester City Council,Childrens & Education Services,Private Finance and Public Private partnership initiatives,15-Jun-23,5105874984,NU3PS,"£91,494.92"
Manchester City Council,Childrens & Education Services,Rents,15-Jun-23,1908130484,Partners Of Prisoners & Families,"£4,314.02"
Manchester City Council,Regeneration Finance,External repairs and maintenance for buildings,15-Jun-23,5105876907,Fairway Landscapes Ltd,£928.80
Manchester City Council,Highways Services,Payments to Sub-Contractors,15-Jun-23,5105876913,Fairway Landscapes Ltd,£810.00
Manchester City Council,Childrens & Education Services,Third party payments relating to Voluntary Organisations,15-Jun-23,5105877022,Salford Royal Hospitals Nhs Trust,"£8,250.00"
Manchester City Council,Chief Executives,Printing,15-Jun-23,5105876790,Browns CTP Ltd,£990.00
Manchester City Council,Manchester Leisure,Goods purchased for resale in Council outlets,15-Jun-23,5105877024,Cornflower Ltd,"£1,346.00"
Manchester City Council,Environment and Operations,Construction Works,15-Jun-23,5105876500,Eric Wright Civil Engineering Limit,"£210,434.44"
Manchester City Council,Regeneration Finance,"Consumable items eg Toilet rolls, soap etc",15-Jun-23,5105876980,Wilkinson Bros,£950.00
Manchester City Council,Regeneration Finance,"Consumable items eg Toilet rolls, soap etc",15-Jun-23,5105876977,Wilkinson Bros,£970.00
Manchester City Council,Chief Executives,I T Provision,15-Jun-23,5105876081,Insight Direct (Uk) Ltd,"£4,348.88"
Manchester City Council,Chief Executives,I T Provision,15-Jun-23,5105874861,Insight Direct (Uk) Ltd,"£8,253.88"
Manchester City Council,General Fund,Levies,15-Jun-23,#,GMCA,"£3,905,500.00"
Manchester City Council,Corporate Services,Infrastructure Fees,15-Jun-23,5105876891,Environment Agency,"£13,444.71"
Manchester City Council,Adult Social Care,Rents,15-Jun-23,5105877007,Accommodation Links Ltd,"£89,660.57"
Manchester City Council,Regeneration Finance,Professional fees,15-Jun-23,5105876935,Jacobs UK Ltd,"£1,310.43"
Manchester City Council,Highways Services,Payments to Sub-Contractors,15-Jun-23,5105876892,Northern Marking Limited,£789.35
Manchester City Council,Highways Services,Payments to Sub-Contractors,15-Jun-23,5105876363,Northern Marking Limited,"£1,120.53"
Manchester City Council,Highways Services,Payments to Sub-Contractors,15-Jun-23,5105876366,Northern Marking Limited,"£1,342.80"
Manchester City Council,Regeneration Finance,Rents,15-Jun-23,5105877025,The East Manchester Academy,"£1,264.05"
Manchester City Council,Manchester Leisure,Goods purchased for resale in Council outlets,15-Jun-23,5105876869,Stone Marketing Ltd,£536.94
Manchester City Council,Manchester Leisure,Works and associated costs for Land and Buildings,15-Jun-23,5105876673,ISG Construction Limited,"£459,725.83"
Manchester City Council,Housing Revenue Account,Council Dwelling Fees,15-Jun-23,5105876890,Life Environmental Services,£820.00
Manchester City Council,Regeneration Finance,Rents,15-Jun-23,1908130551,Tesco (Rent Only),"£26,003.00"
Manchester City Council,Regeneration Finance,Refuse Collection,15-Jun-23,5105876925,Restore Datashred Limited,"-£4,449.35"
Manchester City Council,Regeneration Finance,Refuse Collection,15-Jun-23,5105876875,Restore Datashred Limited,"£4,449.35"
Manchester City Council,Housing Revenue Account,Council Dwelling Adaptations,15-Jun-23,5105876962,Rothwell Plumbing Services Ltd,"-£41,112.62"
Manchester City Council,Housing Revenue Account,Council Dwelling Adaptations,15-Jun-23,5105876995,Rothwell Plumbing Services Ltd,"£11,499.63"
Manchester City Council,Housing Revenue Account,Council Dwelling Adaptations,15-Jun-23,5105876993,Rothwell Plumbing Services Ltd,"£28,373.53"
Manchester City Council,Housing Revenue Account,Council Dwelling Adaptations,15-Jun-23,5105876876,Rothwell Plumbing Services Ltd,"£41,112.62"
Manchester City Council,Childrens & Education Services,Professional fees,15-Jun-23,5105876553,Urban Green Space Limited,"£1,630.00"
Manchester City Council,Childrens & Education Services,Professional fees,15-Jun-23,5105876787,Phar Partnership Limited,"£5,000.00"
Manchester City Council,Housing General Fund,Building Works,15-Jun-23,5105877005,One Manchester Limited,"£243,073.92"
Manchester City Council,Childrens & Education Services,Furniture,15-Jun-23,5105876972,Redacted Personal Information,"£1,666.70"
Manchester City Council,Adult Social Care,Personal needs of client,15-Jun-23,5105876971,Doro Care Ltd,"£1,468.00"
Manchester City Council,Adult Social Care,Personal needs of client,15-Jun-23,5105876669,Doro Care Ltd,"£5,100.00"
Manchester City Council,Adult Social Care,Rents,15-Jun-23,5105876919,K L Properties,"£16,060.84"
Manchester City Council,Chief Executives,Payments to Sub-Contractors,15-Jun-23,5105876658,Redacted Personal Information,£909.93
Manchester City Council,Manchester Leisure,Hire of Equipment,15-Jun-23,5105876670,Niche Event Hire,"£2,279.00"
Manchester City Council,Adult Social Care,Rents,15-Jun-23,5105877011,District Homes Cic,"£58,409.53"
Manchester City Council,Adult Social Care,Personal needs of client,15-Jun-23,5105876933,Direct Healthcare Group Ltd,£970.18
Manchester City Council,Adult Social Care,Third party payments to Health Authority,15-Jun-23,5105876870,Caribbean & African,"£16,320.00"
Manchester City Council,Chief Executives,Counsel Costs,15-Jun-23,1908128974,Central Chambers,£750.00
Manchester City Council,Chief Executives,Counsel Costs,15-Jun-23,1908128975,Central Chambers,"£4,500.00"
Manchester City Council,Adult Social Care,Rents,15-Jun-23,5105876994,Hilldale Housing Association,"-£2,575.16"
Manchester City Council,Adult Social Care,Rents,15-Jun-23,5105876985,Hilldale Housing Association,"£4,078.20"
Manchester City Council,Adult Social Care,Rents,15-Jun-23,5105876986,Hilldale Housing Association,"£4,078.20"
Manchester City Council,Adult Social Care,Rents,15-Jun-23,5105876987,Hilldale Housing Association,"£4,194.72"
Manchester City Council,Adult Social Care,Rents,15-Jun-23,5105876988,Hilldale Housing Association,"£4,893.84"
Manchester City Council,Adult Social Care,Rents,15-Jun-23,5105876989,Hilldale Housing Association,"£4,893.84"
Manchester City Council,Adult Social Care,Rents,15-Jun-23,5105876990,Hilldale Housing Association,"£4,893.84"
Manchester City Council,Adult Social Care,Rents,15-Jun-23,5105876991,Hilldale Housing Association,"£4,893.84"
Manchester City Council,Adult Social Care,Rents,15-Jun-23,5105876992,Hilldale Housing Association,"£4,893.84"
Manchester City Council,Corporate Services,WPS Awards,15-Jun-23,5105875282,Furniture Resource Centre Ltd,£532.71
Manchester City Council,Corporate Services,WPS Awards,15-Jun-23,5105875261,Furniture Resource Centre Ltd,£628.25
Manchester City Council,Corporate Services,WPS Awards,15-Jun-23,5105876084,Furniture Resource Centre Ltd,£644.98
Manchester City Council,Corporate Services,WPS Awards,15-Jun-23,5105876088,Furniture Resource Centre Ltd,£658.60
Manchester City Council,Corporate Services,WPS Awards,15-Jun-23,5105875246,Furniture Resource Centre Ltd,£720.05
Manchester City Council,Corporate Services,WPS Awards,15-Jun-23,5105875589,Furniture Resource Centre Ltd,£733.67
Manchester City Council,Corporate Services,WPS Awards,15-Jun-23,5105875942,Furniture Resource Centre Ltd,£880.71
Manchester City Council,Manchester Leisure,Works and associated costs for Land and Buildings,15-Jun-23,5105876420,Theme 3 Ltd,£750.00
Manchester City Council,Corporate Services,Works and associated costs for Land and Buildings,15-Jun-23,5105876966,Seddon Construction Ltd,"£25,454.22"
Manchester City Council,Corporate Services,Works and associated costs for Land and Buildings,15-Jun-23,5105876966,Seddon Construction Ltd,"£23,103.04"
Manchester City Council,Corporate Services,Works and associated costs for Land and Buildings,15-Jun-23,5105876966,Seddon Construction Ltd,"£4,515.12"
Manchester City Council,Adult Social Care,Security,15-Jun-23,5105876789,UNIQUE SPECIALIST SERVICES,"-£1,404.00"
Manchester City Council,Adult Social Care,Security,15-Jun-23,5105876714,UNIQUE SPECIALIST SERVICES,"£1,404.00"
Manchester City Council,Regeneration Finance,Security,15-Jun-23,5105876934,MITIE SECURITY LIMITED,"£4,078.80"
Manchester City Council,Adult Social Care,Grant and subscriptions awarded,15-Jun-23,5105875420,Revolving Doors Housing Trust,"£49,824.77"
Manchester City Council,Adult Social Care,Third party payments to Health Authority,15-Jun-23,5105876799,Bollyfit Active,"£16,320.00"
Manchester City Council,Manchester Leisure,Library Materials Acquisition,15-Jun-23,1908138526,Overdrive Global Limited,"£1,079.31"
Manchester City Council,Manchester Leisure,Library Materials Acquisition,15-Jun-23,1908138524,Overdrive Global Limited,"£2,890.00"
Manchester City Council,Adult Social Care,Third party payments relating to Voluntary Organisations,15-Jun-23,5105877006,Lifted Carers Centre,"£35,000.00"
Manchester City Council,Manchester Leisure,Professional fees,15-Jun-23,5105877019,MOULD SPECIALISTS UK LIMITED,"£1,493.83"
Manchester City Council,Regeneration Finance,Legal Fees,15-Jun-23,1908137584,House of Ethnic Foods Ltd,"£36,000.00"
Manchester City Council,Insurance Fund,Insurance,16-Jun-23,5105877046,Zurich Insurance,"£28,703.51"
Manchester City Council,Insurance Fund,Insurance,16-Jun-23,5105877051,Zurich Insurance,"£1,331,901.33"
Manchester City Council,Childrens & Education Services,Hire of Premises,16-Jun-23,5105877141,Luther King House Educational Trust,£605.75
Manchester City Council,Regeneration Finance,General Office expenses,16-Jun-23,5105877126,Ove Arup & Partners Ltd,"£1,176.47"
Manchester City Council,Corporate Services,Works and associated costs for Land and Buildings,16-Jun-23,5105877127,Ove Arup & Partners Ltd,"£1,123.88"
Manchester City Council,Corporate Services,Works and associated costs for Land and Buildings,16-Jun-23,5105877129,Ove Arup & Partners Ltd,"£1,712.88"
Manchester City Council,Corporate Services,Works and associated costs for Land and Buildings,16-Jun-23,5105877123,Ove Arup & Partners Ltd,"£3,025.00"
Manchester City Council,Corporate Services,Works and associated costs for Land and Buildings,16-Jun-23,5105877136,Ove Arup & Partners Ltd,"£3,991.50"
Manchester City Council,Corporate Services,Works and associated costs for Land and Buildings,16-Jun-23,5105877140,Ove Arup & Partners Ltd,"£4,843.75"
Manchester City Council,Corporate Services,Works and associated costs for Land and Buildings,16-Jun-23,5105877139,Ove Arup & Partners Ltd,"£5,557.50"
Manchester City Council,Corporate Services,Works and associated costs for Land and Buildings,16-Jun-23,5105877122,Ove Arup & Partners Ltd,"£7,433.33"
Manchester City Council,Corporate Services,Works and associated costs for Land and Buildings,16-Jun-23,5105877131,Ove Arup & Partners Ltd,"£7,681.50"
Manchester City Council,Corporate Services,Works and associated costs for Land and Buildings,16-Jun-23,5105877130,Ove Arup & Partners Ltd,"£8,542.50"
Manchester City Council,Corporate Services,Works and associated costs for Land and Buildings,16-Jun-23,5105877124,Ove Arup & Partners Ltd,"£10,005.00"
Manchester City Council,Corporate Services,Works and associated costs for Land and Buildings,16-Jun-23,5105877138,Ove Arup & Partners Ltd,"£11,282.00"
Manchester City Council,Corporate Services,Works and associated costs for Land and Buildings,16-Jun-23,5105877121,Ove Arup & Partners Ltd,"£12,461.25"
Manchester City Council,Corporate Services,Works and associated costs for Land and Buildings,16-Jun-23,5105877125,Ove Arup & Partners Ltd,"£15,129.60"
Manchester City Council,Corporate Services,Works and associated costs for Land and Buildings,16-Jun-23,5105877137,Ove Arup & Partners Ltd,"£31,467.25"
Manchester City Council,Manchester Leisure,I T Provision,16-Jun-23,5105877070,BT PLC,"£3,909.24"
Manchester City Council,Manchester Leisure,Refuse Collection,16-Jun-23,5105877114,GTS Steam Cleaners,£611.33
Manchester City Council,Manchester Leisure,Refuse Collection,16-Jun-23,5105877109,GTS Steam Cleaners,£934.58
Manchester City Council,Corporate Services,Fees,16-Jun-23,1908130476,Marston Group Limited,"£1,243.95"
Manchester City Council,Corporate Services,Fees,16-Jun-23,1908130476,Marston Group Limited,"-£1,243.95"
Manchester City Council,Corporate Services,Works and associated costs for Land and Buildings,16-Jun-23,5105876590,Apex Self Storage Ltd,"£1,331.02"
Manchester City Council,Regeneration Finance,Security,16-Jun-23,5105877106,Showsec International Ltd,"£17,816.04"
Manchester City Council,Manchester Leisure,Grant and subscriptions awarded,16-Jun-23,5105877144,St John Ambulance Supplies,"£4,800.00"
Manchester City Council,Corporate Services,Works and associated costs for Land and Buildings,16-Jun-23,5105877161,Mace Ltd,£680.00
Manchester City Council,Corporate Services,Works and associated costs for Land and Buildings,16-Jun-23,5105877161,Mace Ltd,"£33,298.00"
Manchester City Council,Chief Executives,Legal Fees,16-Jun-23,5105877155,Redacted Personal Information,"£2,749.00"
Manchester City Council,Manchester Leisure,Equipment,16-Jun-23,5105877259,Central Locksmiths,£675.12
Manchester City Council,Adult Social Care,Third party payments to Health Authority,16-Jun-23,5105877095,Central Mcr Uni Hospital t/a,"£14,252.80"
Manchester City Council,Adult Social Care,Third party payments relating to Voluntary Organisations,16-Jun-23,5105877087,Greater Manchester Immigration Aid,"£8,158.00"
Manchester City Council,Adult Social Care,Third party payments relating to Voluntary Organisations,16-Jun-23,5105877085,Greater Manchester Immigration Aid,"£8,160.00"
Manchester City Council,Chief Executives,Printing,16-Jun-23,5105876516,Chapel Press Ltd,"£1,602.00"
Manchester City Council,Childrens & Education Services,Supporting People Payments,16-Jun-23,5105877047,Child Action Northwest,"£4,066.49"
Manchester City Council,Adult Social Care,Supporting People Payments,16-Jun-23,5105877047,Child Action Northwest,"£4,537.55"
Manchester City Council,Highways Services,Legal Fees,16-Jun-23,1908137911,Department For Work & Pensions,£725.00
Manchester City Council,Manchester Leisure,Counsel Costs,16-Jun-23,5105877154,Redacted Personal Information,£500.00
Manchester City Council,Chief Executives,Agency staff provision,16-Jun-23,5105877186,Hays Personnel,"£68,540.78"
Manchester City Council,Environment and Operations,Construction Works,16-Jun-23,5105876932,GMCA,"£23,012.45"
Manchester City Council,General Fund,Levies,16-Jun-23,1908138623,GMCA,"£3,905,500.00"
Manchester City Council,Regeneration Finance,Third party payments relating to Voluntary Organisations,16-Jun-23,5105877010,Proper Job Theatre company,"£14,604.00"
Manchester City Council,Corporate Services,Works and associated costs for Land and Buildings,16-Jun-23,5105877164,Faithful & Gould Ltd,"£37,000.00"
Manchester City Council,Regeneration Finance,Training and Development,16-Jun-23,5105877152,Open Awards,"£2,145.00"
Manchester City Council,Corporate Services,Works and associated costs for Land and Buildings,16-Jun-23,5105875399,Morgan Sindall C & I Ltd,"£455,455.73"
Manchester City Council,Corporate Services,Works and associated costs for Land and Buildings,16-Jun-23,5105875399,Morgan Sindall C & I Ltd,"£711,740.98"
Manchester City Council,Adult Social Care,Works and associated costs for Land and Buildings,16-Jun-23,5105876555,Morgan Sindall C & I Ltd,"£4,731.13"
Manchester City Council,Chief Executives,Legal Fees,16-Jun-23,5105877096,Russell & Russell Solicitors LLP,"£1,162.50"
Manchester City Council,Chief Executives,Legal Fees,16-Jun-23,5105877156,Russell & Russell Solicitors LLP,"£1,912.50"
Manchester City Council,Chief Executives,Legal Fees,16-Jun-23,5105877145,Russell & Russell Solicitors LLP,"£1,997.45"
Manchester City Council,Chief Executives,Legal Fees,16-Jun-23,5105877120,Russell & Russell Solicitors LLP,"£2,376.50"
Manchester City Council,Chief Executives,Legal Fees,16-Jun-23,5105877149,Russell & Russell Solicitors LLP,"£4,023.25"
Manchester City Council,Chief Executives,Legal Fees,16-Jun-23,5105877147,Russell & Russell Solicitors LLP,"£5,655.52"
Manchester City Council,Chief Executives,Legal Fees,16-Jun-23,5105877119,Russell & Russell Solicitors LLP,"£6,115.76"
Manchester City Council,Chief Executives,Legal Fees,16-Jun-23,5105877158,Russell & Russell Solicitors LLP,"£6,868.75"
Manchester City Council,Childrens & Education Services,Third party payments relating to Voluntary Organisations,16-Jun-23,5105876118,Remedi,"£1,400.00"
Manchester City Council,Childrens & Education Services,Third party payments relating to Voluntary Organisations,16-Jun-23,5105876117,Remedi,"£10,000.00"
Manchester City Council,Childrens & Education Services,Third party payments relating to Voluntary Organisations,16-Jun-23,5105876116,Remedi,"£30,000.00"
Manchester City Council,Childrens & Education Services,Third party payments relating to Voluntary Organisations,16-Jun-23,5105876119,Remedi,"£58,333.34"
Manchester City Council,Chief Executives,Catering,16-Jun-23,5105876598,Manchester Central,£557.20
Manchester City Council,Chief Executives,Catering,16-Jun-23,5105876595,Manchester Central,£962.64
Manchester City Council,Chief Executives,Catering,16-Jun-23,5105876596,Manchester Central,"£1,895.35"
Manchester City Council,Chief Executives,Catering,16-Jun-23,5105876597,Manchester Central,"£6,290.39"
Manchester City Council,Childrens & Education Services,Professional fees,16-Jun-23,5105877146,Jacobs UK Ltd,"£1,000.00"
Manchester City Council,Housing Revenue Account,Professional fees,16-Jun-23,5105877133,Jacobs UK Ltd,"£1,250.00"
Manchester City Council,Housing Revenue Account,Professional fees,16-Jun-23,5105877133,Jacobs UK Ltd,"£2,250.00"
Manchester City Council,Adult Social Care,Equipment,16-Jun-23,5105877128,Aidapt Bathrooms Ltd,£750.00
Manchester City Council,Adult Social Care,Equipment,16-Jun-23,5105877116,Aidapt Bathrooms Ltd,£900.00
Manchester City Council,Adult Social Care,Equipment,16-Jun-23,5105877113,Aidapt Bathrooms Ltd,"£1,680.00"
Manchester City Council,Adult Social Care,Equipment,16-Jun-23,5105877060,Aidapt Bathrooms Ltd,"£2,940.00"
Manchester City Council,Adult Social Care,Equipment,16-Jun-23,5105877132,Aidapt Bathrooms Ltd,"£3,024.00"
Manchester City Council,Adult Social Care,Equipment,16-Jun-23,5105877112,Aidapt Bathrooms Ltd,"£3,280.00"
Manchester City Council,Adult Social Care,Equipment,16-Jun-23,5105877110,Aidapt Bathrooms Ltd,"£6,350.00"
Manchester City Council,Adult Social Care,Equipment,16-Jun-23,5105877101,Aidapt Bathrooms Ltd,"£6,601.00"
Manchester City Council,Manchester Leisure,Works and associated costs for Land and Buildings,16-Jun-23,5105875882,ISG Construction Limited,"£793,357.94"
Manchester City Council,Corporate Services,Works and associated costs for Land and Buildings,16-Jun-23,5105877162,Planit,"£3,360.00"
Manchester City Council,Chief Executives,Works and associated costs for Land and Buildings,16-Jun-23,5105877050,Keelagher Okey Associates Ltd t/a,£760.00
Manchester City Council,Chief Executives,Mobilephone Charges,16-Jun-23,1908138691,EE / Orange,"£35,464.62"
Manchester City Council,Chief Executives,Data Links,16-Jun-23,5105877100,The Loop t/a Gamma Telecom Ltd,"£2,857.34"
Manchester City Council,Chief Executives,Works and associated costs for Land and Buildings,16-Jun-23,5105877080,Pierre Angulaire Limited,"£7,560.00"
Manchester City Council,Chief Executives,Works and associated costs for Land and Buildings,16-Jun-23,5105877078,Pierre Angulaire Limited,"£16,848.00"
Manchester City Council,Childrens & Education Services,Third party payments to other Local Authorities,16-Jun-23,5105876103,Chatsworth High School & College,"£6,367.00"
Manchester City Council,Childrens & Education Services,Third party payments to other Local Authorities,16-Jun-23,5105875922,Chatsworth High School & College,"£8,490.00"
Manchester City Council,Childrens & Education Services,Third party payments to other Local Authorities,16-Jun-23,5105876104,Chatsworth High School & College,"£10,614.50"
Manchester City Council,Manchester Leisure,Contract Cleaning External,16-Jun-23,5105877143,Biffa Municipal Limited,"£19,147.18"
Manchester City Council,Childrens Services,Building Works,16-Jun-23,5105875884,Bright Futures Educational Trust,"£394,264.40"
Manchester City Council,Childrens & Education Services,Third party payments relating to Voluntary Organisations,16-Jun-23,5105875453,Safe Families for Children,"£40,500.00"
Manchester City Council,Chief Executives,Payments to Sub-Contractors,16-Jun-23,5105877077,Redacted Personal Information,£643.50
Manchester City Council,Chief Executives,Payments to Sub-Contractors,16-Jun-23,5105877048,Redacted Personal Information,£728.10
Manchester City Council,Adult Social Care,Rents,16-Jun-23,5105876066,Housing Social Ltd,"£36,407.43"
Manchester City Council,Adult Social Care,Payments for services,16-Jun-23,5105877073,Delphi Medical,"£2,570.00"
Manchester City Council,Highways Services,Professional fees,16-Jun-23,5105876945,Waterman Aspen Ltd,"£2,560.00"
Manchester City Council,Highways Services,Professional fees,16-Jun-23,5105876947,Waterman Aspen Ltd,"£4,837.50"
Manchester City Council,Highways Services,Professional fees,16-Jun-23,5105876948,Waterman Aspen Ltd,"£5,779.00"
Manchester City Council,Highways Services,Professional fees,16-Jun-23,5105876946,Waterman Aspen Ltd,"£6,098.40"
Manchester City Council,Highways Services,Professional fees,16-Jun-23,5105876949,Waterman Aspen Ltd,"£6,696.00"
Manchester City Council,Regeneration Finance,Internal Repairs and Maintenance for buildings,16-Jun-23,5105877069,EQUANS Services Limited,"£310,352.63"
Manchester City Council,Chief Executives,Printing,16-Jun-23,5105876149,Geiger Limited,£665.00
Manchester City Council,Corporate Services,Profit Recovered,16-Jun-23,1908138781,Waddington & Son Solicitors,"£1,712.50"
Manchester City Council,Corporate Services,Profit Recovered,16-Jun-23,1908138782,Waddington & Son Solicitors,"£4,410.42"
Manchester City Council,Manchester Leisure,Furniture,16-Jun-23,5105875472,Furniture Resource Centre Ltd,"£2,405.05"
Manchester City Council,Regeneration Finance,Legal Fees,16-Jun-23,5105877081,OPen  (Optimised Environments Ltd),"£2,648.00"
Manchester City Council,Regeneration Finance,Legal Fees,16-Jun-23,5105877082,OPen  (Optimised Environments Ltd),"£7,892.00"
Manchester City Council,Regeneration Finance,Security,16-Jun-23,5105876974,MITIE SECURITY LIMITED,"£122,032.96"
Manchester City Council,Regeneration Finance,Security,16-Jun-23,5105876973,MITIE SECURITY LIMITED,"£122,365.96"
Manchester City Council,Regeneration Finance,Security,16-Jun-23,5105876960,MITIE SECURITY LIMITED,"£4,046.08"
Manchester City Council,Corporate Services,Professional fees,16-Jun-23,5105877052,NE1 Procurement Services Limited,"£12,000.00"
Manchester City Council,Adult Social Care,Grant and subscriptions awarded,16-Jun-23,5105877033,Caritas (St Aidens),"£58,016.00"
Manchester City Council,Regeneration Finance,External repairs and maintenance for buildings,16-Jun-23,5105877171,SMS Solar Maintenance Services,"£1,100.30"
Manchester City Council,Regeneration Finance,External repairs and maintenance for buildings,16-Jun-23,5105877160,SMS Solar Maintenance Services,"£1,298.59"
Manchester City Council,Chief Executives,Payments to Sub-Contractors,16-Jun-23,5105877075,Redacted Personal Information,£660.00
Manchester City Council,Childrens & Education Services,Residential Care Homes Payments,16-Jun-23,1908138947,Holden Knight Healthcare Temp Ltd,£592.80
Manchester City Council,Childrens & Education Services,Residential Care Homes Payments,16-Jun-23,1908138950,Holden Knight Healthcare Temp Ltd,"£49,680.00"
Manchester City Council,Childrens & Education Services,Residential Care Homes Payments,16-Jun-23,1908138955,Holden Knight Healthcare Temp Ltd,"£51,336.00"
Manchester City Council,Childrens & Education Services,Residential Care Homes Payments,16-Jun-23,1908138956,Holden Knight Healthcare Temp Ltd,"£51,336.00"
Manchester City Council,Childrens & Education Services,Residential Care Homes Payments,16-Jun-23,1908138952,Holden Knight Healthcare Temp Ltd,"£58,182.50"
Manchester City Council,Childrens & Education Services,Residential Care Homes Payments,16-Jun-23,1908138957,Holden Knight Healthcare Temp Ltd,"£76,320.00"
Manchester City Council,Childrens & Education Services,Residential Care Homes Payments,16-Jun-23,1908138953,Holden Knight Healthcare Temp Ltd,"£78,864.00"
Manchester City Council,Adult Social Care,Rents,16-Jun-23,1908138661,Greenmark Estates,"£2,200.00"
Manchester City Council,Adult Social Care,Rents,16-Jun-23,1908138661,Greenmark Estates,"£3,850.00"
Manchester City Council,Manchester Leisure,Library Materials Acquisition,16-Jun-23,1700152160,HACHETTE UK DISTRIBUTI,"-£1,623.37"
Manchester City Council,Manchester Leisure,Library Materials Acquisition,16-Jun-23,1700152162,HACHETTE UK DISTRIBUTI,"-£1,623.37"
Manchester City Council,Manchester Leisure,Library Materials Acquisition,16-Jun-23,1908128473,HACHETTE UK DISTRIBUTI,"£1,623.37"
Manchester City Council,Manchester Leisure,Library Materials Acquisition,16-Jun-23,1908128538,HACHETTE UK DISTRIBUTI,"£1,623.37"
Manchester City Council,Childrens & Education Services,Professional fees,16-Jun-23,1908126779,Redacted Personal Information,£839.00
Manchester City Council,Childrens & Education Services,Professional fees,16-Jun-23,1908126838,Redacted Personal Information,£839.00
Manchester City Council,Corporate Services,Electricity,16-Jun-23,1908126687,PAYPOINT NETWORK LTD,"£5,959.61"
Manchester City Council,Adult Social Care,Rents,16-Jun-23,1908138963,Rennsolutions,"£5,230.00"
Manchester City Council,Adult Social Care,Rents,16-Jun-23,1908138963,Rennsolutions,"£8,272.00"
Manchester City Council,Manchester Leisure,Other Insurance,16-Jun-23,1700152166,Redacted Personal Information,-£788.64
Manchester City Council,Childrens & Education Services,Legal Fees,16-Jun-23,1908138966,Zafar Assocites Attorneys At Law,£560.00
Manchester City Council,Adult Social Care,Rents,16-Jun-23,1908138659,Redacted Personal Information,"£1,390.00"
Manchester City Council,Adult Social Care,Rents,16-Jun-23,1908138659,Redacted Personal Information,"£2,200.00"
Manchester City Council,Housing General Fund,Building Works,19-Jun-23,1908139678,Pollock Lifts Ltd,"£13,178.00"
Manchester City Council,Regeneration Finance,Taxi Vehicle Materia,19-Jun-23,5105876385,New Auto Ltd T/A Mogo (Uk),"£1,274.00"
Manchester City Council,Regeneration Finance,Rents,19-Jun-23,1908132174,Knight Frank LLP,"£6,100.52"
Manchester City Council,Adult Social Care,Professional fees,19-Jun-23,5105877040,Action First iPeople Ltd,£700.00
Manchester City Council,Regeneration Finance,Removal and Storage of Furniture,19-Jun-23,5105876307,M&G Transport & Technical Services,£848.00
Manchester City Council,Regeneration Finance,Rents,19-Jun-23,1908131207,CBRE Ltd (Glasgow),"£46,921.50"
Manchester City Council,Adult Social Care,Professional fees,19-Jun-23,5105877134,Back Care Solutions Ltd,"£2,059.88"
Manchester City Council,Hospitality + Trading Services,Hire of Machinery,19-Jun-23,5105877345,R & M Developments Ltd,"£1,073.50"
Manchester City Council,Housing General Fund,Works and associated costs for Land and Buildings,19-Jun-23,5105877012,Mace Ltd,"£28,703.00"
Manchester City Council,Chief Executives,General Office expenses,19-Jun-23,1908130775,Millennium Translations Ltd,"£1,312.56"
Manchester City Council,Childrens Services,Works and associated costs for Land and Buildings,19-Jun-23,5105877271,J Greenwood (Builders) Limited,"£170,309.70"
Manchester City Council,Chief Executives,Legal Fees,19-Jun-23,5105877193,Redacted Personal Information,£540.00
Manchester City Council,Chief Executives,Legal Fees,19-Jun-23,5105877195,Redacted Personal Information,"£1,098.00"
Manchester City Council,Chief Executives,Counsel Costs,19-Jun-23,1908130550,Redacted Personal Information,£520.83
Manchester City Council,Adult Social Care,Equipment,19-Jun-23,5105877272,NRS Healthcare,"£4,731.00"
Manchester City Council,Adult Social Care,Payments for services,19-Jun-23,5105877348,Care Concepts Ltd,"£9,899.78"
Manchester City Council,Adult Social Care,Payments for services,19-Jun-23,5105877275,Great Places Housing Association,"£6,386.17"
Manchester City Council,Childrens Services,Construction Works,19-Jun-23,5105877250,Amey Highways Lighting (Manchester),"£23,332.58"
Manchester City Council,Housing General Fund,Building Works,19-Jun-23,1908139680,Stannah Lift Services Ltd,£851.13
Manchester City Council,Housing General Fund,Building Works,19-Jun-23,1908139686,Stannah Lift Services Ltd,"£3,061.00"
Manchester City Council,Housing General Fund,Building Works,19-Jun-23,1908139688,Stannah Lift Services Ltd,"£6,179.00"
Manchester City Council,Housing General Fund,Building Works,19-Jun-23,1908139684,Stannah Lift Services Ltd,"£6,295.00"
Manchester City Council,Housing General Fund,Building Works,19-Jun-23,1908139683,Stannah Lift Services Ltd,"£6,422.00"
Manchester City Council,Housing General Fund,Building Works,19-Jun-23,1908139687,Stannah Lift Services Ltd,"£6,909.00"
Manchester City Council,Housing General Fund,Building Works,19-Jun-23,1908139685,Stannah Lift Services Ltd,"£7,003.00"
Manchester City Council,Adult Social Care,Professional fees,19-Jun-23,5105876188,M13 Youth Project,"£50,000.00"
Manchester City Council,Chief Executives,Works and associated costs for Land and Buildings,19-Jun-23,5105877166,Manchester International Festival,"£767,335.79"
Manchester City Council,Chief Executives,Works and associated costs for Land and Buildings,19-Jun-23,5105877003,Manchester International Festival,"£2,724,134.00"
Manchester City Council,Manchester Leisure,Special Event,19-Jun-23,5105876299,Manchester Pride Ltd,"£12,000.00"
Manchester City Council,Manchester Leisure,Third party payments relating to Voluntary Organisations,19-Jun-23,5105877246,Bureau Veritas UK Ltd,£874.95
Manchester City Council,Adult Social Care,Third party payments relating to Voluntary Organisations,19-Jun-23,5105877320,Manchester Action On Street Health,"£16,686.12"
Manchester City Council,Manchester Leisure,Grant and subscriptions awarded,19-Jun-23,5105877361,University Of Manchester,"£2,934.00"
Manchester City Council,Childrens & Education Services,Training and Development,19-Jun-23,5105877362,University Of Manchester,"£4,750.00"
Manchester City Council,Adult Social Care,Third party payments relating to Voluntary Organisations,19-Jun-23,5105877150,The Depaul Trust,"£10,603.50"
Manchester City Council,Regeneration Finance,Subsistence and Conference Expenses,19-Jun-23,5105877350,Trinity College London,£738.00
Manchester City Council,General Fund,BRP Top Up Payments,19-Jun-23,#,DCLG,"£1,969,599.00"
Manchester City Council,Adult Social Care,Legal Fees,19-Jun-23,1908138651,Department For Work & Pensions,£688.00
Manchester City Council,Highways Services,Legal Fees,19-Jun-23,1908138914,Department For Work & Pensions,£766.00
Manchester City Council,Hospitality + Trading Services,Vehicle Hire Costs,19-Jun-23,5105877331,Enterprise Flex-E-Rent,£577.50
Manchester City Council,Childrens & Education Services,Licences Purchase,19-Jun-23,5105877371,Insight Direct (Uk) Ltd,£501.04
Manchester City Council,Environment and Operations,Construction Works,19-Jun-23,5105877117,GMCA,"£7,492.41"
Manchester City Council,Regeneration Finance,Third party payments relating to Voluntary Organisations,19-Jun-23,5105877237,Proper Job Theatre company,"£12,450.00"
Manchester City Council,Hospitality + Trading Services,Cleaning Equipment and Materials,19-Jun-23,5105877188,Alliance Disposables Ltd,"-£1,064.34"
Manchester City Council,Hospitality + Trading Services,Cleaning Equipment and Materials,19-Jun-23,5105875696,Alliance Disposables Ltd,"£1,064.34"
Manchester City Council,Childrens Services,Building Works,19-Jun-23,5105877290,Diocese of Salford,"£225,862.50"
Manchester City Council,Chief Executives,Works and associated costs for Land and Buildings,19-Jun-23,5105876120,Morgan Sindall C & I Ltd,"£138,475.83"
Manchester City Council,Chief Executives,Counsel Costs,19-Jun-23,1908131238,18 St John Street Chambers,£650.00
Manchester City Council,Chief Executives,Counsel Costs,19-Jun-23,1908132193,18 St John Street Chambers,£650.00
Manchester City Council,Chief Executives,Counsel Costs,19-Jun-23,1908131264,18 St John Street Chambers,"£3,830.00"
Manchester City Council,Chief Executives,Legal Fees,19-Jun-23,5105877173,Russell & Russell Solicitors LLP,"£3,310.75"
Manchester City Council,Chief Executives,Legal Fees,19-Jun-23,5105877177,Russell & Russell Solicitors LLP,"£3,787.25"
Manchester City Council,Chief Executives,Legal Fees,19-Jun-23,5105877233,Russell & Russell Solicitors LLP,"£5,927.08"
Manchester City Council,Chief Executives,Hire of Equipment,19-Jun-23,5105877098,Sterling Event Group,"£4,212.00"
Manchester City Council,Chief Executives,Professional fees,19-Jun-23,1908131265,Redacted Personal Information,"£1,604.13"
Manchester City Council,Highways Services,Tipping - Tonnage,19-Jun-23,5105877214,Northern Marking Limited,"£1,824.00"
Manchester City Council,Childrens & Education Services,Public Transport,19-Jun-23,5105877035,Wrixon Care,"-£1,725.60"
Manchester City Council,Childrens & Education Services,Public Transport,19-Jun-23,5105877036,Wrixon Care,"£1,725.60"
Manchester City Council,Corporate Services,Works and associated costs for Land and Buildings,19-Jun-23,5105877097,Turner & Townsend Project,"£14,620.00"
Manchester City Council,Chief Executives,Legal Fees,19-Jun-23,1908137907,Weightmans LLP Solicitors,£708.00
Manchester City Council,Chief Executives,Legal Fees,19-Jun-23,1908137908,Weightmans LLP Solicitors,"£1,178.00"
Manchester City Council,Chief Executives,Legal Fees,19-Jun-23,1908137909,Weightmans LLP Solicitors,"£1,507.00"
Manchester City Council,Chief Executives,Legal Fees,19-Jun-23,5105877218,Weightmans LLP Solicitors,"£1,968.07"
Manchester City Council,Chief Executives,Legal Fees,19-Jun-23,1908137906,Weightmans LLP Solicitors,"£43,196.50"
Manchester City Council,Corporate Services,Contribution to PATROL,19-Jun-23,5105877210,PATROL,"£16,287.90"
Manchester City Council,Hospitality + Trading Services,Vehicle Repairs,19-Jun-23,5105877200,Advanced Vehicle Technicians Ltd,"£1,786.31"
Manchester City Council,Childrens & Education Services,Payments for services,19-Jun-23,5105877315,Time Specialist Support Ltd,"£1,978.00"
Manchester City Council,Chief Executives,Legal Fees,19-Jun-23,1908138910,Redacted Personal Information,£920.00
Manchester City Council,Corporate Services,Works and associated costs for Land and Buildings,19-Jun-23,5105877167,Mather & Co Limited,"£5,300.00"
Manchester City Council,Corporate Services,Contribution to PATROL,19-Jun-23,1908139849,Patrol Bus Lanes,"£12,206.70"
Manchester City Council,Chief Executives,Printing,19-Jun-23,5105877103,Leeds Graphic Press Ltd,"£2,359.00"
Manchester City Council,Chief Executives,Printing,19-Jun-23,5105877249,t/a R.C.D.,"£1,075.00"
Manchester City Council,Corporate Services,Works and associated costs for Land and Buildings,19-Jun-23,5105876970,Janice Tullock Associates Ltd,"£2,375.00"
Manchester City Council,Manchester Leisure,Grant and subscriptions awarded,19-Jun-23,5105877251,Cracking Good Food CIC,£820.00
Manchester City Council,Manchester Leisure,Grant and subscriptions awarded,19-Jun-23,5105877251,Cracking Good Food CIC,"£1,230.00"
Manchester City Council,Regeneration Finance,Hire of Premises,19-Jun-23,5105877243,Greater Manchester Chamber of,£655.00
Manchester City Council,Housing Revenue Account,Private Finance and Public Private partnership initiatives,19-Jun-23,5105877341,S4B Limited,"£887,003.03"
Manchester City Council,Housing Revenue Account,Council Dwelling Adaptations,19-Jun-23,5105877352,Solargen Energy Ltd,"£153,097.88"
Manchester City Council,Manchester Leisure,Grant and subscriptions awarded,19-Jun-23,5105877181,Newall Green Primary Academy,"£1,316.67"
Manchester City Council,Housing General Fund,Building Works,19-Jun-23,1908139682,UPS Building & Maintenance Ltd,"£9,903.73"
Manchester City Council,Housing General Fund,Building Works,19-Jun-23,1908139681,UPS Building & Maintenance Ltd,"£20,215.21"
Manchester City Council,Housing General Fund,Building Works,19-Jun-23,1908139679,UPS Building & Maintenance Ltd,"£25,875.34"
Manchester City Council,Childrens Services,Building Works,19-Jun-23,5105876409,Pioneer House High School,"£467,666.90"
Manchester City Council,Regeneration Finance,Grant and subscriptions awarded,19-Jun-23,5105877349,Volition Community,"£8,000.00"
Manchester City Council,Adult Social Care,Rents,19-Jun-23,5105876920,K L Properties,"£15,657.00"
Manchester City Council,Chief Executives,Payments to Sub-Contractors,19-Jun-23,5105876327,Redacted Personal Information,£582.00
Manchester City Council,Chief Executives,Payments to Sub-Contractors,19-Jun-23,5105876324,Redacted Personal Information,£675.75
Manchester City Council,Chief Executives,Payments to Sub-Contractors,19-Jun-23,5105877332,Redacted Personal Information,£873.16
Manchester City Council,Chief Executives,Works and associated costs for Land and Buildings,19-Jun-23,5105877289,BMS Software (Northern) Ltd,"£36,100.00"
Manchester City Council,Chief Executives,Works and associated costs for Land and Buildings,19-Jun-23,5105877319,BMS Software (Northern) Ltd,"£41,075.00"
Manchester City Council,Chief Executives,Works and associated costs for Land and Buildings,19-Jun-23,5105877324,BMS Software (Northern) Ltd,"£46,580.00"
Manchester City Council,Manchester Leisure,Professional fees,19-Jun-23,5105877340,Redacted Personal Information,"£1,150.00"
Manchester City Council,Chief Executives,Counsel Costs,19-Jun-23,1908138959,Central Chambers,£850.00
Manchester City Council,Hospitality + Trading Services,Vehicle Fuel Costs,19-Jun-23,5105877197,Standard Fuels Oils,-£706.31
Manchester City Council,Hospitality + Trading Services,Vehicle Fuel Costs,19-Jun-23,5105874810,Standard Fuels Oils,£706.31
Manchester City Council,Highways Services,Vehicle Fuel Costs,19-Jun-23,5105877198,Standard Fuels Oils,£706.31
Manchester City Council,Chief Executives,Payments to Sub-Contractors,19-Jun-23,5105877264,Redacted Personal Information,£737.10
Manchester City Council,Regeneration Finance,Travel,19-Jun-23,5105877247,Purcell Architecture Limited,"£1,829.72"
Manchester City Council,Corporate Services,Works and associated costs for Land and Buildings,19-Jun-23,5105877205,Purcell Architecture Limited,£900.00
Manchester City Council,Corporate Services,Works and associated costs for Land and Buildings,19-Jun-23,5105877232,Purcell Architecture Limited,"£1,012.50"
Manchester City Council,Corporate Services,Works and associated costs for Land and Buildings,19-Jun-23,5105877242,Purcell Architecture Limited,"£1,500.00"
Manchester City Council,Corporate Services,Works and associated costs for Land and Buildings,19-Jun-23,5105877202,Purcell Architecture Limited,"£2,025.00"
Manchester City Council,Corporate Services,Works and associated costs for Land and Buildings,19-Jun-23,5105877169,Purcell Architecture Limited,"£3,150.00"
Manchester City Council,Corporate Services,Works and associated costs for Land and Buildings,19-Jun-23,5105877206,Purcell Architecture Limited,"£3,337.50"
Manchester City Council,Corporate Services,Works and associated costs for Land and Buildings,19-Jun-23,5105877234,Purcell Architecture Limited,"£3,637.50"
Manchester City Council,Corporate Services,Works and associated costs for Land and Buildings,19-Jun-23,5105877235,Purcell Architecture Limited,"£5,250.00"
Manchester City Council,Corporate Services,Works and associated costs for Land and Buildings,19-Jun-23,5105877170,Purcell Architecture Limited,"£6,112.50"
Manchester City Council,Corporate Services,Works and associated costs for Land and Buildings,19-Jun-23,5105877168,Purcell Architecture Limited,"£6,825.00"
Manchester City Council,Corporate Services,Works and associated costs for Land and Buildings,19-Jun-23,5105877244,Purcell Architecture Limited,"£7,000.00"
Manchester City Council,Corporate Services,Works and associated costs for Land and Buildings,19-Jun-23,5105877203,Purcell Architecture Limited,"£7,312.50"
Manchester City Council,Corporate Services,Works and associated costs for Land and Buildings,19-Jun-23,5105877207,Purcell Architecture Limited,"£7,612.50"
Manchester City Council,Corporate Services,Works and associated costs for Land and Buildings,19-Jun-23,5105877204,Purcell Architecture Limited,"£8,625.00"
Manchester City Council,Corporate Services,Works and associated costs for Land and Buildings,19-Jun-23,5105877236,Purcell Architecture Limited,"£12,675.00"
Manchester City Council,Corporate Services,Works and associated costs for Land and Buildings,19-Jun-23,5105877201,Purcell Architecture Limited,"£13,645.00"
Manchester City Council,Corporate Services,Works and associated costs for Land and Buildings,19-Jun-23,5105877247,Purcell Architecture Limited,"£35,000.00"
Manchester City Council,Chief Executives,External repairs and maintenance for buildings,19-Jun-23,5105877304,Kaberry Construction Ltd,"£11,267.51"
Manchester City Council,Corporate Services,Works and associated costs for Land and Buildings,19-Jun-23,5105876305,Warden Construction Ltd,"£325,691.79"
Manchester City Council,Chief Executives,Counsel Costs,19-Jun-23,1908138911,Redacted Personal Information,£979.17
Manchester City Council,Chief Executives,Payments to Sub-Contractors,19-Jun-23,5105877263,Redacted Personal Information,"£2,206.43"
Manchester City Council,Regeneration Finance,External repairs and maintenance for buildings,19-Jun-23,5105877175,SMS Solar Maintenance Services,"£7,500.04"
Manchester City Council,Childrens & Education Services,Professional fees,19-Jun-23,5105877287,Sir Frederick Snow & Partners Ltd,"£3,209.60"
Manchester City Council,Manchester Leisure,Building Materials for direct delivery,19-Jun-23,5105877215,CPD Property Services,£650.00
Manchester City Council,Adult Social Care,Rents,19-Jun-23,5105877328,Manchester Bumblebee Ltd,"£148,757.71"
Manchester City Council,Adult Social Care,Bed & Breakfast Acc,19-Jun-23,5105877037,Manchester Stay Hotel,"£32,364.00"
Manchester City Council,Adult Social Care,Rents,19-Jun-23,5105877199,Rtech Group Limited,"£8,416.67"
Manchester City Council,Corporate Services,Works and associated costs for Land and Buildings,19-Jun-23,5105877285,Redacted Personal Information,"£2,875.00"
Manchester City Council,Chief Executives,Licences Purchase,19-Jun-23,5105877221,Taxshield,"£2,570.00"
Manchester City Council,Chief Executives,Professional fees,19-Jun-23,1908138894,Redacted Personal Information,"£1,346.55"
Manchester City Council,Chief Executives,Professional fees,19-Jun-23,1908138788,City to Sea CIC,"£4,550.00"
Manchester City Council,Chief Executives,Professional fees,19-Jun-23,1908138903,CY4OR Legal Limited,£746.66
Manchester City Council,Manchester Leisure,Counsel Costs,19-Jun-23,1908056096,Redacted Personal Information,"£1,250.00"
Manchester City Council,Chief Executives,Professional fees,19-Jun-23,1908138913,MEWA LLP,"£2,736.00"
Manchester City Council,Adult Social Care,Third party payments relating to Voluntary Organisations,20-Jun-23,5105877625,Nacro,"£117,306.00"
Manchester City Council,Adult Social Care,Personal needs of client,20-Jun-23,5105877548,Tunstall Healthcare (UK) Ltd,£900.00
Manchester City Council,Corporate Services,Works and associated costs for Land and Buildings,20-Jun-23,5105877385,Eversheds Llp,"£5,524.00"
Manchester City Council,Corporate Services,Works and associated costs for Land and Buildings,20-Jun-23,5105877415,Eversheds Llp,"£9,155.00"
Manchester City Council,Libraries and Theatres,Works and associated costs for Land and Buildings,20-Jun-23,5105877489,Eversheds Llp,"£1,935.00"
Manchester City Council,Manchester Leisure,Payments to Sub-Contractors,20-Jun-23,5105876950,Redacted Personal Information,"£1,640.00"
Manchester City Council,Manchester Leisure,Payments to Sub-Contractors,20-Jun-23,5105876961,Redacted Personal Information,"£1,640.00"
Manchester City Council,Regeneration Finance,Professional fees,20-Jun-23,5105877390,Cushman & Wakefield,"£4,950.00"
Manchester City Council,Manchester Leisure,Hire of Equipment,20-Jun-23,5105876964,Flowbird Smart City Uk Ltd,"£1,747.37"
Manchester City Council,Manchester Leisure,Hire of Equipment,20-Jun-23,5105876965,Flowbird Smart City Uk Ltd,"£1,747.37"
Manchester City Council,Adult Social Care,Personal needs of client,20-Jun-23,5105877455,RNIB,"£1,865.00"
Manchester City Council,Manchester Leisure,Building Materials for direct delivery,20-Jun-23,5105877532,Arco Group Ltd,£694.29
Manchester City Council,Chief Executives,Advertising,20-Jun-23,5105877569,Moonscape Media Ltd,£950.00
Manchester City Council,Manchester Leisure,Supporting People Payments,20-Jun-23,5105877450,Ramora Ltd,"£15,000.00"
Manchester City Council,Adult Social Care,Grant and subscriptions awarded,20-Jun-23,5105877483,Sanctuary Housing Association,"£64,740.00"
Manchester City Council,Adult Social Care,Third party payments relating to Voluntary Organisations,20-Jun-23,5105877482,Sanctuary Housing Association,"£25,881.28"
Manchester City Council,Manchester Leisure,Refuse Collection,20-Jun-23,5105877417,Dickinson Environmental,"£1,073.00"
Manchester City Council,Adult Social Care,Supported Accommodation,20-Jun-23,5105877526,Mosscare Housing Ltd,"£4,184.80"
Manchester City Council,Chief Executives,Legal Fees,20-Jun-23,5105877561,Redacted Personal Information,"£1,036.00"
Manchester City Council,Corporate Services,Tracing fees,20-Jun-23,5105877389,Experian Limited,"£2,092.83"
Manchester City Council,Hospitality + Trading Services,Cash Collection,20-Jun-23,1908139881,G4S Cash Solutions (Uk) Ltd,"£1,042.87"
Manchester City Council,Adult Social Care,Home Care ,20-Jun-23,5105877565,Standwalk Ltd,£634.80
Manchester City Council,Adult Social Care,Home Care ,20-Jun-23,5105877511,Standwalk Ltd,£765.20
Manchester City Council,Adult Social Care,Home Care ,20-Jun-23,5105877512,Standwalk Ltd,£860.85
